Workbook

Sheet PFP
A1: PROPOSTA FINANCEIRA DO PROJETO | J1: CODIGO:
J2: PFP
A3: NOME DA CONSULTORA:
A5: PROJETO: | F5: CONTRATANTE: | J5: Data base:
A6: Estudos e Projeto Básico do Sistema Adutor de Santana do Matos, no Estado do Rio Grande do Norte | F6: 12ª SR CODEVASF | J6: 2024-05-17
A7: Base | B7: Cod2 | C7: Cod3 | D7: Categoria / Insumo | E7: Uni | F7: Qde | G7: CUD | H7: PU | I7: FatorK | J7: CT | K7: PT
A8: SICRO | B8: MO | C8: P0 | D8: Engenheiro coordenador (P8061) | E8: mês | F8: ='CRO1_Ins-Pro'!D5 -> 3 | G8: ='DNIT TC - 102023'!D38 -> 17371.67 | H8: =ROUND(I8*G8,2) -> 22405.98 | I8: ='PFP2.3_FatorKc'!E36 -> 1.2898 | J8: =ROUND(F8*G8,2) -> 52115.01 | K8: =ROUND(F8*H8,2) -> 67217.94
A9: SICRO | B9: MO | C9: P1 | D9: Engenheiro de projeto pleno - Civil/Sanitarista (P8066) | E9: mês | F9: ='CRO1_Ins-Pro'!D6 -> 5 | G9: ='DNIT TC - 102023'!D43 -> 11895.06 | H9: 25567.24 | I9: ='PFP2.1_FatorKa'!E36 -> 2.1494 | J9: =ROUND(F9*G9,2) -> 59475.3 | K9: =ROUND(F9*H9,2) -> 127836.2
A10: SICRO | B10: MO | C10: P2 | D10: Engenheiro ambiental pleno (P8058) | E10: mês | F10: ='CRO1_Ins-Pro'!D7 -> 3 | G10: ='DNIT TC - 102023'!D35 -> 11513.98 | H10: =ROUND(I10*G10,2) -> 17619.84 | I10: ='PFP2.2_FatorKb'!E36 -> 1.5303 | J10: 34541.94 | K10: 52859.52
A11: SICRO | B11: MO | C11: P3 | D11: Engenheiro pleno - demais esp. (P8066) | E11: mês | F11: ='CRO1_Ins-Pro'!D8 -> 2 | G11: ='DNIT TC - 102023'!D43 -> 11895.06 | H11: =ROUND(I11*G11,2) -> 18203.01 | I11: ='PFP2.2_FatorKb'!E36 -> 1.5303 | J11: 23790.12 | K11: 36406.02
A12: SICRO | B12: MO | C12: T1 | D12: Técnico de projetos/obra (P8147) | E12: mês | F12: ='CRO1_Ins-Pro'!D9 -> 7 | G12: ='DNIT TC - 102023'!D70 -> 3136.59 | H12: 6741.79 | I12: ='PFP2.1_FatorKa'!$E$36 -> 2.1494 | J12: 21956.13 | K12: 47192.53
A13: SICRO | B13: MO | C13: A1 | D13: Auxiliar administrativo (P8026) | E13: mês | F13: ='CRO1_Ins-Pro'!D10 -> 7 | G13: ='DNIT TC - 102023'!D17 -> 1794.31 | H13: 3856.69 | I13: ='PFP2.1_FatorKa'!$E$36 -> 2.1494 | J13: 12560.17 | K13: 26996.83
A14: SICRO | B14: EC | C14: ECA | D14: Encargos Comp. e Adicionais | E14: mês | F14: ='CRO1_Ins-Pro'!D11 -> 27 | G14: ='DNIT TC - 102023'!H43+'DNIT TC - 102023'!J43+'DNIT TC - 102023'!L43+'DNIT TC - 102023'!N43+'DNIT TC - 102023'!P43+'DNIT TC - 102023'!R43+'DNIT TC - 102023'!T43+'DNIT TC - 102023'!V43 -> 1028.89 | H14: 1237.34 | I14: =PFP3_FatorKd!$E$17 -> 1.2026 | J14: 27780.03 | K14: 33408.18
A15: CODE | B15: LO | C15: V1 | D15: Diárias | E15: dia | F15: ='CRO1_Ins-Pro'!D12 -> 70 | G15: ='CPU HOSPEDAGEM'!C19 -> 184.1230833 | H15: 221.43 | I15: =PFP3_FatorKd!$E$17 -> 1.2026 | J15: 12888.62 | K15: 15500.1
A16: CODE | B16: LO | C16: V2 | D16: Pick-up cabine dupla | E16: dia | F16: ='CRO1_Ins-Pro'!D13 -> 70 | G16: ='CPU-VEICULO_PickUp'!C11 -> 325.6268258 | H16: 391.6 | I16: =PFP3_FatorKd!$E$17 -> 1.2026 | J16: 22793.88 | K16: 27412 | P16: CODE | Q16: LO | R16: V2 | S16: Pick-up Cab. Dupla | T16: 259.5 | U16: =ROUND(T16*W19,2) -> 314.26 | V16: 2020-02-01 | W16: 239.69
A17: PROP | B17: LO | C17: V3 | D17: Passagens Aéreas (ida e volta) | E17: un | F17: ='CRO1_Ins-Pro'!D14 -> 3 | G17: ='Cotação Voos'!B104 -> 2371.125 | H17: 2851.51 | I17: =PFP3_FatorKd!$E$17 -> 1.2026 | J17: 7113.38 | K17: 8554.53 | V17: 2024-01-01 | W17: 290.267
A18: CODE | B18: EM | C18: M1 | D18: Relatório Parcial | E18: un | F18: ='CRO1_Ins-Pro'!D15 -> 14 | G18: =U26 -> 40.39 | H18: 48.57 | I18: =PFP3_FatorKd!$E$17 -> 1.2026 | J18: 565.46 | K18: 679.98 | W18: =(W17-W16)/W16 -> 0.2110100547
A19: CODE | B19: EM | C19: M2 | D19: Relatório Final | E19: un | F19: ='CRO1_Ins-Pro'!D16 -> 4 | G19: =U27 -> 1790.84 | H19: 2153.66 | I19: =PFP3_FatorKd!$E$17 -> 1.2026 | J19: 7163.36 | K19: 8614.64 | W19: =1+W18 -> 1.211010055
A20: CODE | B20: SU | C20: TOP | D20: Total Serviços Cartográficos | E20: un | F20: ='CRO1_Ins-Pro'!D17 -> 1 | G20: - | H20: ='PFP1.1_Topo'!H23 -> 148957.5026 | I20: - | J20: - | K20: 148957.5 | P20: CODE | Q20: DP | R20: V1 | S20: Diárias | T20: 239 | U20: =ROUND(T20*W24,2) -> 276.3
A21: CODE | B21: SU | C21: GEO | D21: Total Serviços Geotécnicos | E21: un | F21: ='CRO1_Ins-Pro'!D18 -> 1 | G21: - | H21: ='PFP1.2_Geo'!H35 -> 135023.4245 | I21: - | J21: - | K21: 135023.42
A22: CODE | B22: SU | C22: AMB | D22: Total Serviços Ambientais | E22: un | F22: ='CRO1_Ins-Pro'!D19 -> 1 | G22: - | H22: ='PFP1.3_Amb'!H29 -> 3562.913664 | I22: - | J22: - | K22: 3562.91 | V22: 2021-07-01 | W22: 251.077
A23: TOTAL DOS CUSTOS DIRETOS | H23: =SUM(J8:J22) -> 282743.4 | W23: =(W17-W22)/W22 -> 0.1560875747
A24: TOTAL DOS ENCARGOS E DISPESAS DIVERSAS | H24: =ROUND(H25-H23,2) -> 169935.07 | W24: =1+W23 -> 1.156087575
A25: TOTAL DA PROPOSTA A PREÇO GLOBAL | H25: =SUM(K8:K19) -> 452678.47
A26: TOTAL DA PROPOSTA A PREÇO UNITÁRIO | H26: =SUM(K20:K22) -> 287543.83 | P26: CODE | Q26: EM | R26: M1 | S26: Relatório Parcial | T26: 33.35 | U26: =ROUND(T26*W19,2) -> 40.39
A27: TOTAL DA PROPOSTA | H27: =H25+H26 -> 740222.3 | P27: CODE | Q27: EM | R27: M2 | S27: Relatório Final | T27: 1478.8 | U27: =ROUND(T27*W19,2) -> 1790.84
A28: OBSERVAÇÃO:
A29: Alocar os Insumos MO, com respectivo FatorK, dentro da categoria de vínculo contratual (com ou sem) de cada tipo de profissional
A30: Uni - unidade de medição do insumo;
A31: Qde - Quantidade do Insumo (não pode ocorrer alteração pela Licitante)
A32: CUD - Custo Unitário Direto do Insumo (sem encargos, taxas e impostos, valor não pode ser maior que o Orçado pela Codevasf)
A33: CT - Custo Total (sem encargos, taxas e impostos) - CT = Qde x CUD
A34: FatorK - Taxa de Ressarcimento de Despesas e Encargos (detalhar composição nas Planilhas "PFP2.1", "PFP2.2", "PFP3")
A35: PU - Preço Unitário do Insumo (incluído encargos, taxas e impostos) - PU = CUD x FatorK
A36: PT - Preço Total do Insumo (incluído encargos, taxas e impostos) - PT = Qde x PU
A37: P - Profissionais nível superior nas áreas de Engenharia, Química, Arquitetura, Agronomia e Veterinária, conforme disposições da Lei 4.950-A/66
A38: S - Profissionais de nível superior nas demais áreas de atuação, incluindo Arqueólogo, Biólogo, Geógrafo e Socioólogo
A39: T - Profissionais de nível médio técnico nas diversas áreas de atuação
A40: A - Profissionais de nível médio de apoio técnico-administrativo

Sheet PFP1.1_Topo
A1: SERVIÇOS TOPOGRÁFICOS/CARTOGRÁFICOS | H1: CODIGO:
H2: PFP-1.1
A3: NOME DA EMPRESA:
A5: PROJETO: | E5: CONTRATANTE: | H5: =PFP!J5 -> Data base:
A6: =PFP!A6 -> Estudos e Projeto Básico do Sistema Adutor de Santana do Matos, no Estado do Rio Grande do Norte | E6: 12ª SR CODEVASF | H6: =PFP!J6 -> 2024-05-17
A7: Referência | B7: Código | C7: Insumos | D7: Uni | E7: Qde | F7: Custo Unitário (PU) | G7: Custo Total | H7: Preço Total (PT)
A8: TP08 | B8: CODE | C8: Nivelamento Geométrico classe IIN | D8: km | E8: 42 | F8: 604.79 | G8: =ROUND(F8*E8,2) -> 25401.18 | H8: =G8*1.1469 -> 29132.61334
A9: TP09 | B9: CODE | C9: Nivelamento Geométrico classe IIN (Secções) | D9: km | E9: =(42000/20)*0.012 -> 25.2 | F9: =F8 -> 604.79 | G9: 15240.71 | H9: =G9*1.1469 -> 17479.5703
A10: EMOP/COMPOSIÇÃO | B10: 01.016.0035-0 | C10: Poligonal Classe IIP (Locação) | D10: km | E10: 42 | F10: 1336.49 | G10: 56132.58 | H10: 64378.456
A11: CPOS/CDHU/COMPOSIÇÃO | B11: 01.20.921 | C11: Pontos GPS de dupla frequencia (L1/L2) | D11: un | E11: 10 | F11: 1216.81 | G11: 12168.1 | H11: 13955.59389 | J11: MEMÓRIA DE CALCULO DO BDI DE FORNECIMENTO
A12: TP20 | B12: CODE | C12: Levantamento Ecobatimetrico | D12: ha | E12: 2 | F12: 657.29 | G12: 1314.58 | H12: 1507.691802
A13: TP21 | B13: CODE | C13: Levantamento Topobatimétrico | D13: km | E13: 2 | F13: 1140.36 | G13: 2280.72 | H13: 2615.757768 | J13: ITEM | K13: DISCRIMINAÇÃO | L13: PERC. (%)
A14: TP23 | B14: CODE | C14: Cadastro Físico (Faixa domínio e instalações) | D14: ha | E14: 50 | F14: 12.88 | G14: 644 | H14: 738.6036
A15: TP24 | B15: CODE | C15: Cadastro Agrícola (Faixa domínio e instalações) | D15: ha | E15: 50 | F15: 4.29 | G15: 214.5 | H15: 246.01005
A16: TP25 | B16: CODE | C16: Cadastro Jurídico (Faixa domínio e instalações) | D16: ha | E16: 50 | F16: 8.59 | G16: 429.5 | H16: 492.59355 | J16: 1.00 | K16: Despesas Indiretas
A17: TP26 | B17: CODE | C17: Cadastro Socioeconomico (Faixa domínio e instalações) | D17: ha | E17: 50 | F17: 2.86 | G17: 143 | H17: 164.0067 | J17: A1 | K17: Seguro e Garantia | L17: 0.008
A18: ORSE/INSUMO | B18: 4369 | C18: Marco de Concreto (12x18x60cm) | D18: un | E18: =E11 -> 10 | F18: 73 | G18: 730 | H18: 837.237 | J18: A2 | K18: Riscos e Imprevistos | L18: 0.0115
A19: EMBASA/INSUMO | B19: D059722497 | C19: Estaca Testemunha de Madeira (2x4x70cm) | D19: un | E19: 210 | F19: 0.55 | G19: 115.5 | H19: 132.46695 | J19: A3 | K19: Despesas Financeiras | L19: 0.0105
A20: SEINFRA/INSUMO | B20: I1652 | C20: Piquetes de Madeira (2x2x20cm) | D20: un | E20: 2100 | F20: 2.08 | G20: 4368 | H20: 5009.6592 | J20: A4 | K20: Administração Central | L20: 0.022
A21: PD06 | B21: CODE | C21: Picada Manual p/ levantamento TP | D21: km | E21: 42 | F21: 154 | G21: 6468 | H21: 7418.1492 | J21: Total do Grupo A = | L21: =SUM(L17:L20) -> 0.052
A22: PD08 | B22: CODE | C22: Picada c/ Trator de Esteira | D22: km | E22: 4 | F22: 1057 | G22: 4228 | H22: 4849.0932 | J22: 2.00 | K22: Benefício
A23: TOTAL SERVIÇOS TOPOGRÁFICOS: | G23: =SUM(G8:G22) -> 129878.37 | H23: =SUM(H8:H22) -> 148957.5026 | J23: B1 | K23: LUCRO | L23: 0.05
A24: BDI: | H24: =L33 -> 0.146920122 | J24: Total do Grupo B = | L24: =L23 -> 0.05
A25: TOTAL SERVIÇOS TOPOGRÁFICOS COM BDI: | J25: 3.00 | K25: Impostos
A26: OBSERVAÇÃO: | J26: C1 | K26: PIS / PASEP | L26: 0.0065
A27: Uni - unidade de medição do insumo; | J27: C2 | K27: COFINS | L27: 0.03
A28: Qde - Quantidade do Insumo (não pode ocorrer alteração pela Licitante) | J28: C3 | K28: ISS | L28: 0
A29: PU - Preço Unitário (composições padrão da Codevasf, já incluso o FatorK) | J29: Total do Grupo C = | L29: =SUM(L26:L28) -> 0.0365
A30: PT - Preço Total (incluído encargos, taxas e impostos) - PT = Qde x PU | J30: Fórmula Para Cálculo do B.D.I
J31: BDI =(((1+A4+A1+A2)*(1+A3)*(1+B))/(1-C))-1
J33: Bonificação Sobre Despesas indiretas (B.D.I) = | L33: =(((1+L20+L17+L18)*(1+L19)*(1+L24))/(1-L29))-1 -> 0.146920122

Sheet PFP1.2_Geo
A1: SERVIÇOS GEOLÓGICOS/GEOTÉCNICOS | H1: CODIGO:
H2: PFP-1.2
A3: NOME DA EMPRESA:
A5: PROJETO: | E5: CONTRATANTE: | H5: ='PFP1.1_Topo'!H5 -> Data base:
A6: =PFP!A6 -> Estudos e Projeto Básico do Sistema Adutor de Santana do Matos, no Estado do Rio Grande do Norte | E6: 12ª SR CODEVASF | H6: ='PFP1.1_Topo'!H6 -> 2024-05-17
A7: Código | B7: Referência | C7: Insumos | D7: Uni | E7: Qde | F7: Custo Unitário (PU) | G7: Custo Total | H7: Preço Total (PT)
A8: A.07.000.020350 | B8: CPOS | C8: Sondagem Rotativa: (Des)Mobilização | D8: un | E8: 1 | F8: 6382.49 | G8: =ROUND(F8*E8,2) -> 6382.49 | H8: =G8*1.1469 -> 7320.077781
A9: 01.002.0015-0 | B9: EMOP | C9: Sondagem Rotativa: Ø N em rochas | D9: m | E9: 50 | F9: 345.01 | G9: =ROUND(F9*E9,2) -> 17250.5 | H9: =G9*1.1469 -> 19784.59845
A10: 01.002.0003-A | B10: EMOP | C10: Sondagem Rotativa: Ø N em solo | D10: m | E10: 30 | F10: 134.78 | G10: =ROUND(F10*E10,2) -> 4043.4 | H10: 4637.37546
A11: GT04 | B11: CODE | C11: Sondagem Rotativa: Desl/Inst 0-200 m | D11: un | E11: 0 | F11: Já incluso* | G11: 0 | H11: 0
A12: GT05 | B12: CODE | C12: Sondagem Rotativa: Desl/Inst 201-500 m | D12: un | E12: 0 | F12: Já incluso* | G12: 0 | H12: 0
A13: GT06 | B13: CODE | C13: Sondagem Rotativa: Desl/Inst >500 m | D13: un | E13: 0 | F13: Já incluso* | G13: 0 | H13: 0
A14: A.07.000.020476 | B14: CPOS | C14: Sondagem Percussão: (Des)Mobilização | D14: un | E14: 4 | F14: 1250.72 | G14: =ROUND(F14*E14,2) -> 5002.88 | H14: 5737.803072
A15: A.07.000.020483 | B15: CPOS | C15: Sondagem Percursão: com SPT | D15: m | E15: 100 | F15: 87.92 | G15: 8792 | H15: 10083.5448
A16: 200204 | B16: SIURB | C16: Sondagem Percursão: Desloc/Instalação 0-200 m | D16: un | E16: 2 | F16: 191.34 | G16: 382.68 | H16: 438.895692
A17: 200205 | B17: SIURB | C17: Sondagem Percursão: Desloc/Instalação 201-500 m | D17: un | E17: 8 | F17: 287.01 | G17: 2296.08 | H17: 2633.374152 | J17: Estimativa para cálculo do poço de inspeção
A18: 32.01.01 | B18: EMBASA | C18: Sondagem Trado | D18: m | E18: 30 | F18: 97.5 | G18: 2925 | H18: 3354.6825 | J18: Comprimento: | K18: 1
A19: 95.03.01 | B19: SUDECAP/INSUMO | C19: Poço de Inspeção | D19: m | E19: 200 | F19: =680*K21 -> 204 | G19: 40800 | H19: 46793.52 | J19: Pronfundidade: | K19: 1
C20: Ensaios de caractrização do solo | H20: 0 | J20: Base: | K20: 0.3
A21: 34.01.23 | B21: EMBASA | C21: Ensaio: Umidade Natural | D21: un | E21: 20 | F21: 75 | G21: =ROUND(F21*E21,2) -> 1500 | H21: 1720.35 | J21: Volume (m³): | K21: =K20*K19*K18 -> 0.3
A22: 01.001.0091-A | B22: EMOP | C22: Ensaio: Densidade Natural | D22: un | E22: 20 | F22: 50.67 | G22: 1013.4 | H22: 1162.26846 | J22: A largura da base é a mesma largura da concha de uma retroescavadeira
A23: ED-49553 | B23: SETOP | C23: Ensaio: Limite de Liquidez | D23: un | E23: 20 | F23: 79.81 | G23: 1596.2 | H23: 1830.68178
A24: ED-49554 | B24: SETOP | C24: Ensaio: Limite de Plasticidade | D24: un | E24: 20 | F24: 79.82 | G24: 1596.4 | H24: 1830.91116
A25: ED-49552 | B25: SETOP | C25: Ensaio: Granulometria por Peneiramento e Sedimentação | D25: un | E25: 30 | F25: 150.69 | G25: 4520.7 | H25: 5184.79083 | K25: MEMÓRIA DE CALCULO DO BDI DE FORNECIMENTO
A26: 4685 | B26: ORSE | C26: Ensaio: Compactação Proctor Normal | D26: un | E26: 20 | F26: 220 | G26: 4400 | H26: 5046.36
A27: 34.01.16 | B27: EMBASA | C27: Ensaio: Massa Especifica Real dos Grãos | D27: un | E27: 20 | F27: 65.78 | G27: 1315.6 | H27: 1508.86164 | K27: ITEM | L27: DISCRIMINAÇÃO | M27: PERC. (%)
C28: Ensaios de dispersão | H28: 0
A29: E200320120 | B29: EMBASA | C29: Ensaio: Dispersão Granulometria Comparativa | D29: un | E29: 10 | F29: 697 | G29: =ROUND(F29*E29,2) -> 6970 | H29: 7993.893
A30: E200320121 | B30: EMBASA | C30: Ensaio: Dispersão Crumb Test | D30: un | E30: 10 | F30: 250 | G30: =ROUND(F30*E30,2) -> 2500 | H30: 2867.25 | K30: 1.00 | L30: Despesas Indiretas
C31: Ensaios de análise da areia | H31: 0 | K31: A1 | L31: Seguro e Garantia | M31: 0.008
A32: GT6.1.16.2 | B32: CODE | C32: Ensaio: Mineralogia da Areia | D32: un | E32: 5 | F32: 423.33 | G32: =ROUND(F32*E32,2) -> 2116.65 | H32: 2427.585885 | K32: A2 | L32: Riscos e Imprevistos | M32: 0.0115
A33: 01.001.0009-A | B33: EMOP | C33: Ensaio: Equivalente de Areia | D33: un | E33: 5 | F33: 215.01 | G33: =ROUND(F33*E33,2) -> 1075.05 | H33: 1232.974845 | K33: A3 | L33: Despesas Financeiras | M33: 0.0105
A34: 34.05.30 | B34: EMBASA | C34: Ensaio: Teor de Matéria Orgânica | D34: un | E34: 5 | F34: 250 | G34: =ROUND(F34*E34,2) -> 1250 | H34: 1433.625 | K34: A4 | L34: Administração Central | M34: 0.022
A35: TOTAL SERVIÇOS GEOTÉCNICOS | G35: =SUM(G8:G34) -> 117729.03 | H35: =SUM(H8:H34) -> 135023.4245 | K35: Total do Grupo A = | M35: =SUM(M31:M34) -> 0.052
A36: BDI: | H36: =M47 -> 0.146920122 | K36: 2.00 | L36: Benefício
A37: TOTAL SERVIÇOS TOPOGRÁFICOS COM BDI: | K37: B1 | L37: LUCRO | M37: 0.05
A38: LEGENDA: | K38: Total do Grupo B = | M38: =M37 -> 0.05
A39: Uni - unidade de medição do insumo; | K39: 3.00 | L39: Impostos
A40: Qde - Quantidade do Insumo (não pode ocorrer alteração pela Licitante) | K40: C1 | L40: PIS / PASEP | M40: 0.0065
A41: PU - Preço Unitário (composições padrão da Codevasf, já incluso o FatorK) | K41: C2 | L41: COFINS | M41: 0.03
A42: PT - Preço Total (incluído encargos, taxas e impostos) - PT = Qde x PU | K42: C3 | L42: ISS | M42: 0
K43: Total do Grupo C = | M43: =SUM(M40:M42) -> 0.0365
K44: Fórmula Para Cálculo do B.D.I
K45: BDI =(((1+A4+A1+A2)*(1+A3)*(1+B))/(1-C))-1
K47: Bonificação Sobre Despesas indiretas (B.D.I) = | M47: =(((1+M34+M31+M32)*(1+M33)*(1+M38))/(1-M43))-1 -> 0.146920122

Sheet PFP1.3_Amb
A1: SERVIÇOS ANÁLISE AMBIENTAL | H1: CODIGO:
H2: PFP-1.3
A3: NOME DA EMPRESA:
A5: PROJETO: | E5: CONTRATANTE: | H5: ='PFP1.2_Geo'!H5 -> Data base:
A6: =PFP!A6 -> Estudos e Projeto Básico do Sistema Adutor de Santana do Matos, no Estado do Rio Grande do Norte | E6: 12ª SR CODEVASF | H6: ='PFP1.2_Geo'!H6 -> 2024-05-17
A7: Código | B7: Referência | C7: Insumos | D7: Uni | E7: Qde | F7: Custo Unitário (PU) | G7: Custo Total | H7: Preço Total (PT)
A8: 33.01.02 | B8: EMBASA/COMPOSIÇÃO | C8: Alcalinidade Total | D8: un | E8: 3 | F8: 30 | G8: =ROUND(E8*F8,2) -> 90 | H8: =G8*1.1469 -> 103.221
A9: 33.01.10 | B9: EMBASA/COMPOSIÇÃO | C9: Condutividade | D9: un | E9: 3 | F9: 18 | G9: 54 | H9: =G9*1.1469 -> 61.9326
A10: 33.01.13 | B10: EMBASA/COMPOSIÇÃO | C10: DBO | D10: un | E10: 3 | F10: 62 | G10: 186 | H10: 213.3234
A11: 33.01.13 | B11: EMBASA/COMPOSIÇÃO | C11: DQO | D11: un | E11: 3 | F11: 62 | G11: 186 | H11: 213.3234
A12: F099703031 | B12: EMBASA/INSUMO | C12: Salinidade | D12: un | E12: 3 | F12: 17.5 | G12: 52.5 | H12: 60.21225
A13: F099703048 | B13: EMBASA/INSUMO | C13: Sólidos Dissolvidos Totais | D13: un | E13: 3 | F13: 25 | G13: 75 | H13: 86.0175
A14: 33.02.71 | B14: EMBASA/COMPOSIÇÃO | C14: Sólidos Suspensos | D14: un | E14: 3 | F14: 24.18 | G14: 72.54 | H14: 83.196126
A15: 33.01.48 | B15: EMBASA/COMPOSIÇÃO | C15: Sólidos Totais | D15: un | E15: 3 | F15: 22 | G15: 66 | H15: 75.6954
A16: 33.01.51 | B16: EMBASA/COMPOSIÇÃO | C16: Turbidez | D16: un | E16: 3 | F16: 20 | G16: 60 | H16: 68.814
A17: 33.01.38 | B17: EMBASA/COMPOSIÇÃO | C17: Oxigênio Dissolvido | D17: un | E17: 3 | F17: 23 | G17: 69 | H17: 79.1361
A18: E200330139 | B18: EMBASA/INSUMO | C18: pH | D18: un | E18: 3 | F18: 17 | G18: 51 | H18: 58.4919 | K18: MEMÓRIA DE CALCULO DO BDI DE FORNECIMENTO
A19: F099703027 | B19: EMBASA/INSUMO | C19: Temperatura | D19: un | E19: 3 | F19: 11.16 | G19: 33.48 | H19: 38.398212
A20: F099703046 | B20: EMBASA/INSUMO | C20: Fósforo Total | D20: un | E20: 3 | F20: 92.5 | G20: 277.5 | H20: 318.26475 | K20: ITEM | L20: DISCRIMINAÇÃO | M20: PERC. (%)
A21: E200330130 | B21: EMBASA/INSUMO | C21: Nitrogênio Amoniacal | D21: un | E21: 3 | F21: 32 | G21: 96 | H21: 110.1024
A22: E200330133 | B22: EMBASA/INSUMO | C22: Nitrogênio Nitrato | D22: un | E22: 3 | F22: 34 | G22: 102 | H22: 116.9838
A23: E200330132 | B23: EMBASA/INSUMO | C23: Nitrogênio Total | D23: un | E23: 3 | F23: 32 | G23: 96 | H23: 110.1024 | K23: 1.00 | L23: Despesas Indiretas
A24: F099703058 | B24: EMBASA/INSUMO | C24: Clorofila A | D24: un | E24: 3 | F24: 30 | G24: 90 | H24: 103.221 | K24: A1 | L24: Seguro e Garantia | M24: 0.008
A25: F099703057 | B25: EMBASA/INSUMO | C25: Coliformes Termotolerantes | D25: un | E25: 3 | F25: 25 | G25: 75 | H25: 86.0175 | K25: A2 | L25: Riscos e Imprevistos | M25: 0.0115
A26: E200330128 | B26: EMBASA/INSUMO | C26: Metais Pesados | D26: un | E26: 3 | F26: 37.2 | G26: 111.6 | H26: 127.99404 | K26: A3 | L26: Despesas Financeiras | M26: 0.0105
A27: E200330140 | B27: EMBASA/INSUMO | C27: Organoclorados | D27: un | E27: 3 | F27: 210.49 | G27: 631.47 | H27: 724.232943 | K27: A4 | L27: Administração Central | M27: 0.022
A28: E200330140 | B28: EMBASA/INSUMO | C28: Organofosforado | D28: un | E28: 3 | F28: 210.49 | G28: 631.47 | H28: 724.232943 | K28: Total do Grupo A = | M28: =SUM(M24:M27) -> 0.052
A29: TOTAL SERVIÇOS GEOTÉCNICOS | G29: =SUM(G8:G27) -> 2475.09 | H29: =SUM(H8:H28) -> 3562.913664 | K29: 2.00 | L29: Benefício
A30: BDI: | H30: =M40 -> 0.146920122 | K30: B1 | L30: LUCRO | M30: 0.05
A31: TOTAL SERVIÇOS TOPOGRÁFICOS COM BDI: | H31: =(G29*H30)+G29 -> 2838.730525 | K31: Total do Grupo B = | M31: =M30 -> 0.05
A32: LEGENDA: | K32: 3.00 | L32: Impostos
A33: Uni - unidade de medição do insumo; | K33: C1 | L33: PIS / PASEP | M33: 0.0065
A34: Qde - Quantidade do Insumo (não pode ocorrer alteração pela Licitante) | K34: C2 | L34: COFINS | M34: 0.03
A35: PU - Preço Unitário (composições padrão da Codevasf, já incluso o FatorK) | K35: C3 | L35: ISS | M35: 0
A36: PT - Preço Total (incluído encargos, taxas e impostos) - PT = Qde x PU | K36: Total do Grupo C = | M36: =SUM(M33:M35) -> 0.0365
K37: Fórmula Para Cálculo do B.D.I
K38: BDI =(((1+A4+A1+A2)*(1+A3)*(1+B))/(1-C))-1
K40: Bonificação Sobre Despesas indiretas (B.D.I) = | M40: =(((1+M27+M24+M25)*(1+M26)*(1+M31))/(1-M36))-1 -> 0.146920122

Sheet PFP2.1_FatorKa
A1: DETALHAMENTO DOS ENCARGOS SOCIAIS: Ka | F1: CODIGO:
F2: PFP-2.1
A3: NOME DA CONSULTORA:
A5: PROJETO: | C5: CONTRATANTE: | F5: Data base: SINAPI dez/2023
A6: =PFP!A6 -> Estudos e Projeto Básico do Sistema Adutor de Santana do Matos, no Estado do Rio Grande do Norte | C6: 12ª SR CODEVASF
A7: Cod | B7: DESCRIÇÃO | E7: % | F7: R$
A8: A | B8: ENCARGOS SOCIAIS BÁSICOS | E8: =ROUND(SUM(E9:E17),4) -> 0.368 | F8: =ROUND(E8*SUMIF(PFP!$B$8:$B$21,"MO1",PFP!$J$8:$J$21),2) -> 0
A9: A1 | B9: INSS | E9: 0.2 | F9: =ROUND(E9*SUMIF(PFP!$B$8:$B$21,"MO1",PFP!$J$8:$J$21),2) -> 0
A10: A2 | B10: SESI | E10: 0.015 | F10: =ROUND(E10*SUMIF(PFP!$B$8:$B$21,"MO1",PFP!$J$8:$J$21),2) -> 0
A11: A3 | B11: SENAI | E11: 0.01 | F11: =ROUND(E11*SUMIF(PFP!$B$8:$B$21,"MO1",PFP!$J$8:$J$21),2) -> 0
A12: A4 | B12: INCRA | E12: 0.002 | F12: =ROUND(E12*SUMIF(PFP!$B$8:$B$21,"MO1",PFP!$J$8:$J$21),2) -> 0
A13: A5 | B13: SEBRAE | E13: 0.006 | F13: =ROUND(E13*SUMIF(PFP!$B$8:$B$21,"MO1",PFP!$J$8:$J$21),2) -> 0
A14: A6 | B14: Salário Educação | E14: 0.025 | F14: =ROUND(E14*SUMIF(PFP!$B$8:$B$21,"MO1",PFP!$J$8:$J$21),2) -> 0
A15: A7 | B15: Seguro Contra Acidentes de Trabalho | E15: 0.03 | F15: =ROUND(E15*SUMIF(PFP!$B$8:$B$21,"MO1",PFP!$J$8:$J$21),2) -> 0
A16: A8 | B16: FGTS | E16: 0.08 | F16: =ROUND(E16*SUMIF(PFP!$B$8:$B$21,"MO1",PFP!$J$8:$J$21),2) -> 0
A17: A9 | B17: SECONCI | E17: 0 | F17: =ROUND(E17*SUMIF(PFP!$B$8:$B$21,"MO1",PFP!$J$8:$J$21),2) -> 0
A18: B | B18: ENCARGOS SOCIAIS QUE RECEBEM INCIDÊNCIA DE "A" | E18: =ROUND(SUM(E19:E25),4) -> 0.2012 | F18: =ROUND(E18*SUMIF(PFP!$B$8:$B$21,"MO1",PFP!$J$8:$J$21),2) -> 0
A19: B3 | B19: Auxílio Enfermidade | E19: 0.0064 | F19: =ROUND(E19*SUMIF(PFP!$B$8:$B$21,"MO1",PFP!$J$8:$J$21),2) -> 0
A20: B4 | B20: 13º Salário | E20: 0.0833 | F20: =ROUND(E20*SUMIF(PFP!$B$8:$B$21,"MO1",PFP!$J$8:$J$21),2) -> 0
A21: B5 | B21: Licença Paternidade | E21: 0.0004 | F21: =ROUND(E21*SUMIF(PFP!$B$8:$B$21,"MO1",PFP!$J$8:$J$21),2) -> 0
A22: B6 | B22: Faltas Justificadas | E22: 0.0056 | F22: =ROUND(E22*SUMIF(PFP!$B$8:$B$21,"MO1",PFP!$J$8:$J$21),2) -> 0
A23: B8 | B23: Auxílio Acidente de Trabalho | E23: 0.0008 | F23: =ROUND(E23*SUMIF(PFP!$B$8:$B$21,"MO1",PFP!$J$8:$J$21),2) -> 0
A24: B9 | B24: Férias Gozadas | E24: 0.1044 | F24: =ROUND(E24*SUMIF(PFP!$B$8:$B$21,"MO1",PFP!$J$8:$J$21),2) -> 0
A25: B10 | B25: Salário Maternidade | E25: 0.0003 | F25: =ROUND(E25*SUMIF(PFP!$B$8:$B$21,"MO1",PFP!$J$8:$J$21),2) -> 0
A26: C | B26: ENCARGOS SOCIAIS QUE NÃO RECEBEM INCIDÊNCIA DE "A" | E26: =ROUND(SUM(E27:E31),4) -> 0.0681 | F26: =ROUND(E26*SUMIF(PFP!$B$8:$B$21,"MO1",PFP!$J$8:$J$21),2) -> 0
A27: C1 | B27: Aviso Prévio Indenizado | E27: 0.0391 | F27: =ROUND(E27*SUMIF(PFP!$B$8:$B$21,"MO1",PFP!$J$8:$J$21),2) -> 0
A28: C2 | B28: Aviso Prévio Trabalhado | E28: 0.0009 | F28: =ROUND(E28*SUMIF(PFP!$B$8:$B$21,"MO1",PFP!$J$8:$J$21),2) -> 0
A29: C3 | B29: Férias Indenizadas | E29: 0.0066 | F29: =ROUND(E29*SUMIF(PFP!$B$8:$B$21,"MO1",PFP!$J$8:$J$21),2) -> 0
A30: C4 | B30: Depósito Rescisão Sem Justa Causa | E30: 0.0182 | F30: =ROUND(E30*SUMIF(PFP!$B$8:$B$21,"MO1",PFP!$J$8:$J$21),2) -> 0
A31: C5 | B31: Indenização Adicional | E31: 0.0033 | F31: =ROUND(E31*SUMIF(PFP!$B$8:$B$21,"MO1",PFP!$J$8:$J$21),2) -> 0
A32: D | B32: REINCIDÊNCIAS | E32: =ROUND(SUM(E33:E34),4) -> 0.0775 | F32: =ROUND(E32*SUMIF(PFP!$B$8:$B$21,"MO1",PFP!$J$8:$J$21),2) -> 0
A33: D1 | B33: Reincidência de "A" sobre "B" | E33: =ROUND(E8*E18,4) -> 0.074 | F33: =ROUND(E33*SUMIF(PFP!$B$8:$B$21,"MO1",PFP!$J$8:$J$21),2) -> 0
A34: D2 | B34: Reincidência de "A" sobre Aviso Prévio Trabalhado e reincidência do FGTS sobre Aviso Prévio Indenizado | E34: =ROUND((E28*E8)+(E27*E16),4) -> 0.0035 | F34: =ROUND(E34*SUMIF(PFP!$B$8:$B$21,"MO1",PFP!$J$8:$J$21),2) -> 0
A35: K1a | B35: ENCARGOS SOCIAIS | E35: =ROUND(E8+E18+E26+E32,4) -> 0.7148 | F35: =ROUND(E35*SUMIF(PFP!$B$8:$B$21,"MO1",PFP!$J$8:$J$21),2) -> 0
A36: Ka | B36: TAXA DE RESSARCIMENTO DE DESPESAS E ENCARGOS SOBRE MO1 | E36: =ROUND((1+E35+PFP3_FatorKd!E13)*(1+PFP3_FatorKd!E12)*(1+PFP3_FatorKd!E8),4) -> 2.1494
A37: OBSERVAÇÃO: CELETISTAS E EQUIVALENTES
A38: 1 - DISCRIMINAR OS ENCARGOS SOCIAIS COM SEUS RESPECTIVOS PERCENTUAS TOTALIZANDO OS MESMOS.
A39: 2 - APLICAR O % TOTAL P/ CALCULAR OS E. SOCIAIS INCIDENTES NA MÃO-DE-OBRA CELETISTAS
A40: Ka - Taxa de Ressarcimento de Despesas e Encargos sobre a Mão de Obra CELETISTA (incide apenas no Insumo Codigo MO1)
A41: Ka = (1 + K1 + K2) x (1 + K3) x (1 + K4)

Sheet PFP2.2_FatorKb
A1: DETALHAMENTO DOS ENCARGOS SOCIAIS: Kb | F1: CODIGO:
F2: PFP-2.2
A3: NOME DA CONSULTORA:
A5: PROJETO: | C5: CONTRATANTE: | F5: Data base: SINAPI dez/2023
A6: =PFP!A6 -> Estudos e Projeto Básico do Sistema Adutor de Santana do Matos, no Estado do Rio Grande do Norte | C6: 12ª SR CODEVASF
A7: Cod | B7: DESCRIÇÃO | E7: % | F7: R$
A8: A | B8: ENCARGOS SOCIAIS BÁSICOS | E8: =ROUND(SUM(E9:E17),4) -> 0.2 | F8: =ROUND(E8*SUMIF(PFP!$B$8:$B$21,"MO2",PFP!$J$8:$J$21),2) -> 0
A9: A1 | B9: INSS | E9: 0.2 | F9: =ROUND(E9*SUMIF(PFP!$B$8:$B$21,"MO2",PFP!$J$8:$J$21),2) -> 0
A10: A2 | B10: SESI | E10: 0 | F10: =ROUND(E10*SUMIF(PFP!$B$8:$B$21,"MO2",PFP!$J$8:$J$21),2) -> 0
A11: A3 | B11: SENAI | E11: 0 | F11: =ROUND(E11*SUMIF(PFP!$B$8:$B$21,"MO2",PFP!$J$8:$J$21),2) -> 0
A12: A4 | B12: INCRA | E12: 0 | F12: =ROUND(E12*SUMIF(PFP!$B$8:$B$21,"MO2",PFP!$J$8:$J$21),2) -> 0
A13: A5 | B13: SEBRAE | E13: 0 | F13: =ROUND(E13*SUMIF(PFP!$B$8:$B$21,"MO2",PFP!$J$8:$J$21),2) -> 0
A14: A6 | B14: Salário Educação | E14: 0 | F14: =ROUND(E14*SUMIF(PFP!$B$8:$B$21,"MO2",PFP!$J$8:$J$21),2) -> 0
A15: A7 | B15: Seguro Contra Acidentes de Trabalho | E15: 0 | F15: =ROUND(E15*SUMIF(PFP!$B$8:$B$21,"MO2",PFP!$J$8:$J$21),2) -> 0
A16: A8 | B16: FGTS | E16: 0 | F16: =ROUND(E16*SUMIF(PFP!$B$8:$B$21,"MO2",PFP!$J$8:$J$21),2) -> 0
A17: A9 | B17: SECONCI | E17: 0 | F17: =ROUND(E17*SUMIF(PFP!$B$8:$B$21,"MO2",PFP!$J$8:$J$21),2) -> 0
A18: B | B18: ENCARGOS SOCIAIS QUE RECEBEM INCIDÊNCIA DE "A" | E18: =ROUND(SUM(E19:E25),4) -> 0 | F18: =ROUND(E18*SUMIF(PFP!$B$8:$B$21,"MO2",PFP!$J$8:$J$21),2) -> 0
A19: B3 | B19: Auxílio Enfermidade | E19: 0 | F19: =ROUND(E19*SUMIF(PFP!$B$8:$B$21,"MO2",PFP!$J$8:$J$21),2) -> 0
A20: B4 | B20: 13º Salário | E20: 0 | F20: =ROUND(E20*SUMIF(PFP!$B$8:$B$21,"MO2",PFP!$J$8:$J$21),2) -> 0
A21: B5 | B21: Licença Paternidade | E21: 0 | F21: =ROUND(E21*SUMIF(PFP!$B$8:$B$21,"MO2",PFP!$J$8:$J$21),2) -> 0
A22: B6 | B22: Faltas Justificadas | E22: 0 | F22: =ROUND(E22*SUMIF(PFP!$B$8:$B$21,"MO2",PFP!$J$8:$J$21),2) -> 0
A23: B8 | B23: Auxílio Acidente de Trabalho | E23: 0 | F23: =ROUND(E23*SUMIF(PFP!$B$8:$B$21,"MO2",PFP!$J$8:$J$21),2) -> 0
A24: B9 | B24: Férias Gozadas | E24: 0 | F24: =ROUND(E24*SUMIF(PFP!$B$8:$B$21,"MO2",PFP!$J$8:$J$21),2) -> 0
A25: B10 | B25: Salário Maternidade | E25: 0 | F25: =ROUND(E25*SUMIF(PFP!$B$8:$B$21,"MO2",PFP!$J$8:$J$21),2) -> 0
A26: C | B26: ENCARGOS SOCIAIS QUE NÃO RECEBEM INCIDÊNCIA DE "A" | E26: =ROUND(SUM(E27:E31),4) -> 0 | F26: =ROUND(E26*SUMIF(PFP!$B$8:$B$21,"MO2",PFP!$J$8:$J$21),2) -> 0
A27: C1 | B27: Aviso Prévio Indenizado | E27: 0 | F27: =ROUND(E27*SUMIF(PFP!$B$8:$B$21,"MO2",PFP!$J$8:$J$21),2) -> 0
A28: C2 | B28: Aviso Prévio Trabalhado | E28: 0 | F28: =ROUND(E28*SUMIF(PFP!$B$8:$B$21,"MO2",PFP!$J$8:$J$21),2) -> 0
A29: C3 | B29: Férias Indenizadas | E29: 0 | F29: =ROUND(E29*SUMIF(PFP!$B$8:$B$21,"MO2",PFP!$J$8:$J$21),2) -> 0
A30: C4 | B30: Depósito Rescisão Sem Justa Causa | E30: 0 | F30: =ROUND(E30*SUMIF(PFP!$B$8:$B$21,"MO2",PFP!$J$8:$J$21),2) -> 0
A31: C5 | B31: Indenização Adicional | E31: 0 | F31: =ROUND(E31*SUMIF(PFP!$B$8:$B$21,"MO2",PFP!$J$8:$J$21),2) -> 0
A32: D | B32: REINCIDÊNCIAS | E32: =ROUND(SUM(E33:E34),4) -> 0 | F32: =ROUND(E32*SUMIF(PFP!$B$8:$B$21,"MO2",PFP!$J$8:$J$21),2) -> 0
A33: D1 | B33: Reincidência de "A" sobre "B" | E33: =ROUND(E8*E18,4) -> 0 | F33: =ROUND(E33*SUMIF(PFP!$B$8:$B$21,"MO2",PFP!$J$8:$J$21),2) -> 0
A34: D2 | B34: Reincidência de "A" sobre Aviso Prévio Trabalhado e reincidência do FGTS sobre Aviso Prévio Indenizado | E34: =ROUND(E8*E28,4)+ROUND(E27*E11,4) -> 0 | F34: =ROUND(E34*SUMIF(PFP!$B$8:$B$21,"MO2",PFP!$J$8:$J$21),2) -> 0
A35: K1b | B35: ENCARGOS SOCIAIS | E35: =ROUND(E8+E18+E26+E32,4) -> 0.2 | F35: =ROUND(E35*SUMIF(PFP!$B$8:$B$21,"MO2",PFP!$J$8:$J$21),2) -> 0
A36: Kb | B36: TAXA DE RESSARCIMENTO DE DESPESAS E ENCARGOS SOBRE MO2 | E36: =ROUND((1+E35+PFP3_FatorKd!E13)*(1+PFP3_FatorKd!E12)*(1+PFP3_FatorKd!E8),4) -> 1.5303
A37: OBSERVAÇÃO: AUTÔNOMOS E EQUIVALENTES
A38: 1 - DISCRIMINAR OS ENCARGOS SOCIAIS COM SEUS RESPECTIVOS PERCENTUAS TOTALIZANDO OS MESMOS.
A39: 2 - APLICAR O % TOTAL P/ CALCULAR OS E. SOCIAIS INCIDENTES NA MÃO-DE-OBRA AUTONÔMOS
A40: Kb - Taxa de Ressarcimento de Despesas e Encargos sobre a Mão de Obra AUTONÔMA (incide apenas no Insumo Codigo MO2)
A41: Kb = (1 + K1 + K2) x (1 + K3) x (1 + K4)

Sheet PFP2.3_FatorKc
A1: DETALHAMENTO DOS ENCARGOS SOCIAIS: Kc | F1: CODIGO:
F2: PFP-2.3
A3: NOME DA CONSULTORA:
A5: PROJETO: | C5: CONTRATANTE: | F5: Data base: SINAPI dez/2023
A6: =PFP!A6 -> Estudos e Projeto Básico do Sistema Adutor de Santana do Matos, no Estado do Rio Grande do Norte | C6: 12ª SR CODEVASF
A7: Cod | B7: DESCRIÇÃO | E7: % | F7: R$
A8: A | B8: ENCARGOS SOCIAIS BÁSICOS | E8: =SUM(E9:E17) -> 0 | F8: =ROUND(E8*SUMIF(PFP!$B$8:$B$21,"MO3",PFP!$J$8:$J$21),2) -> 0
A9: A1 | B9: INSS | E9: 0 | F9: =ROUND(E9*SUMIF(PFP!$B$8:$B$21,"MO3",PFP!$J$8:$J$21),2) -> 0
A10: A2 | B10: SESI | E10: 0 | F10: =ROUND(E10*SUMIF(PFP!$B$8:$B$21,"MO3",PFP!$J$8:$J$21),2) -> 0
A11: A3 | B11: SENAI | E11: 0 | F11: =ROUND(E11*SUMIF(PFP!$B$8:$B$21,"MO3",PFP!$J$8:$J$21),2) -> 0
A12: A4 | B12: INCRA | E12: 0 | F12: =ROUND(E12*SUMIF(PFP!$B$8:$B$21,"MO3",PFP!$J$8:$J$21),2) -> 0
A13: A5 | B13: SEBRAE | E13: 0 | F13: =ROUND(E13*SUMIF(PFP!$B$8:$B$21,"MO3",PFP!$J$8:$J$21),2) -> 0
A14: A6 | B14: Salário Educação | E14: 0 | F14: =ROUND(E14*SUMIF(PFP!$B$8:$B$21,"MO3",PFP!$J$8:$J$21),2) -> 0
A15: A7 | B15: Seguro Contra Acidentes de Trabalho | E15: 0 | F15: =ROUND(E15*SUMIF(PFP!$B$8:$B$21,"MO3",PFP!$J$8:$J$21),2) -> 0
A16: A8 | B16: FGTS | E16: 0 | F16: =ROUND(E16*SUMIF(PFP!$B$8:$B$21,"MO3",PFP!$J$8:$J$21),2) -> 0
A17: A9 | B17: SECONCI | E17: 0 | F17: =ROUND(E17*SUMIF(PFP!$B$8:$B$21,"MO3",PFP!$J$8:$J$21),2) -> 0
A18: B | B18: ENCARGOS SOCIAIS QUE RECEBEM INCIDÊNCIA DE "A" | E18: =ROUND(SUM(E19:E25),4) -> 0 | F18: =ROUND(E18*SUMIF(PFP!$B$8:$B$21,"MO3",PFP!$J$8:$J$21),2) -> 0
A19: B3 | B19: Auxílio Enfermidade | E19: 0 | F19: =ROUND(E19*SUMIF(PFP!$B$8:$B$21,"MO3",PFP!$J$8:$J$21),2) -> 0
A20: B4 | B20: 13º Salário | E20: 0 | F20: =ROUND(E20*SUMIF(PFP!$B$8:$B$21,"MO3",PFP!$J$8:$J$21),2) -> 0
A21: B5 | B21: Licença Paternidade | E21: 0 | F21: =ROUND(E21*SUMIF(PFP!$B$8:$B$21,"MO3",PFP!$J$8:$J$21),2) -> 0
A22: B6 | B22: Faltas Justificadas | E22: 0 | F22: =ROUND(E22*SUMIF(PFP!$B$8:$B$21,"MO3",PFP!$J$8:$J$21),2) -> 0
A23: B8 | B23: Auxílio Acidente de Trabalho | E23: 0 | F23: =ROUND(E23*SUMIF(PFP!$B$8:$B$21,"MO3",PFP!$J$8:$J$21),2) -> 0
A24: B9 | B24: Férias Gozadas | E24: 0 | F24: =ROUND(E24*SUMIF(PFP!$B$8:$B$21,"MO3",PFP!$J$8:$J$21),2) -> 0
A25: B10 | B25: Salário Maternidade | E25: 0 | F25: =ROUND(E25*SUMIF(PFP!$B$8:$B$21,"MO3",PFP!$J$8:$J$21),2) -> 0
A26: C | B26: ENCARGOS SOCIAIS QUE NÃO RECEBEM INCIDÊNCIA DE "A" | E26: =ROUND(SUM(E27:E31),4) -> 0 | F26: =ROUND(E26*SUMIF(PFP!$B$8:$B$21,"MO3",PFP!$J$8:$J$21),2) -> 0
A27: C1 | B27: Aviso Prévio Indenizado | E27: 0 | F27: =ROUND(E27*SUMIF(PFP!$B$8:$B$21,"MO3",PFP!$J$8:$J$21),2) -> 0
A28: C2 | B28: Aviso Prévio Trabalhado | E28: 0 | F28: =ROUND(E28*SUMIF(PFP!$B$8:$B$21,"MO3",PFP!$J$8:$J$21),2) -> 0
A29: C3 | B29: Férias Indenizadas | E29: 0 | F29: =ROUND(E29*SUMIF(PFP!$B$8:$B$21,"MO3",PFP!$J$8:$J$21),2) -> 0
A30: C4 | B30: Depósito Rescisão Sem Justa Causa | E30: 0 | F30: =ROUND(E30*SUMIF(PFP!$B$8:$B$21,"MO3",PFP!$J$8:$J$21),2) -> 0
A31: C5 | B31: Indenização Adicional | E31: 0 | F31: =ROUND(E31*SUMIF(PFP!$B$8:$B$21,"MO3",PFP!$J$8:$J$21),2) -> 0
A32: D | B32: REINCIDÊNCIAS | E32: =ROUND(SUM(E33:E34),4) -> 0 | F32: =ROUND(E32*SUMIF(PFP!$B$8:$B$21,"MO3",PFP!$J$8:$J$21),2) -> 0
A33: D1 | B33: Reincidência de "A" sobre "B" | E33: =ROUND(E8*E18,4) -> 0 | F33: =ROUND(E33*SUMIF(PFP!$B$8:$B$21,"MO3",PFP!$J$8:$J$21),2) -> 0
A34: D2 | B34: Reincidência de "A" sobre Aviso Prévio Trabalhado e reincidência do FGTS sobre Aviso Prévio Indenizado | E34: =ROUND(E8*E28,4)+ROUND(E27*E11,4) -> 0 | F34: =ROUND(E34*SUMIF(PFP!$B$8:$B$21,"MO3",PFP!$J$8:$J$21),2) -> 0
A35: K1c | B35: ENCARGOS SOCIAIS | E35: =ROUND(E8+E18+E26+E32,4) -> 0 | F35: =ROUND(E35*SUMIF(PFP!$B$8:$B$21,"MO3",PFP!$J$8:$J$21),2) -> 0
A36: Kc | B36: TAXA DE RESSARCIMENTO DE DESPESAS E ENCARGOS SOBRE MO3 | E36: =ROUND((1+E35+PFP3_FatorKd!E13)*(1+PFP3_FatorKd!E12)*(1+PFP3_FatorKd!E8),4) -> 1.2898
A37: OBSERVAÇÃO: SOCIETÁRIOS E EQUIVALENTES
A38: 1 - DISCRIMINAR OS ENCARGOS SOCIAIS COM SEUS RESPECTIVOS PERCENTUAS TOTALIZANDO OS MESMOS.
A39: 2 - APLICAR O % TOTAL P/ CALCULAR OS E. SOCIAIS INCIDENTES NA MÃO-DE-OBRA DE SOCIETÁRIOS
A40: Kc - Taxa de Ressarcimento de Despesas e Encargos sobre a Mão de Obra SOCIETÁRIA (incide apenas no Insumo Codigo MO3)
A41: Kc = (1 + K1 + K2) x (1 + K3) x (1 + K4)

Sheet PFP3_FatorKd
A1: DESPESAS FISCAIS E CUSTOS DIVERSOS: Kc | F1: CODIGO:
F2: PFP-3
A3: NOME DA CONSULTORA:
A5: PROJETO: | C5: CONTRATANTE: | F5: Data base: SINAPI dez/2023
A6: =PFP!A6 -> Estudos e Projeto Básico do Sistema Adutor de Santana do Matos, no Estado do Rio Grande do Norte | C6: 12ª SR CODEVASF
A7: Cod | B7: DESCRIÇÃO1 | D7: % preço2 | E7: % custo4 | F7: R$
A8: K4 | B8: TRIBUTOS | D8: =ROUND(D9+D10+D11,4) -> 0.104 | E8: =ROUND(E9+E10+E11,4) -> 0.1161 | F8: =E8*SUM(SUMIF(PFP!$B$8:$B$21,"MO1",PFP!$J$8:$J$21)*(1+'PFP2.1_FatorKa'!$E$35)+SUMIF(PFP!$B$8:$B$21,"MO2",PFP!$J$8:$J$21)*(1+'PFP2.2_FatorKb'!$E$35)+SUMIF(PFP!$B$8:$B$21,"<>MO*",PFP!$J$8:$J$21)+$F$13+$F$12) -> 11649.91937
A9: K4.1 | B9: ISS | D9: 0.03 | E9: =ROUND((1/(1-$D$8))*D9,4) -> 0.0335 | F9: =E9*SUM(SUMIF(PFP!$B$8:$B$21,"MO1",PFP!$J$8:$J$21)*(1+'PFP2.1_FatorKa'!$E$35)+SUMIF(PFP!$B$8:$B$21,"MO2",PFP!$J$8:$J$21)*(1+'PFP2.2_FatorKb'!$E$35)+SUMIF(PFP!$B$8:$B$21,"<>MO*",PFP!$J$8:$J$21)+$F$13+$F$12) -> 3361.518509
A10: K4.2 | B10: PIS3 - aliquota efetiva aplicavel percentual-desconto | D10: 0.0132 | E10: =ROUND((1/(1-$D$8))*D10,4) -> 0.0147 | F10: =E10*SUM(SUMIF(PFP!$B$8:$B$21,"MO1",PFP!$J$8:$J$21)*(1+'PFP2.1_FatorKa'!$E$35)+SUMIF(PFP!$B$8:$B$21,"MO2",PFP!$J$8:$J$21)*(1+'PFP2.2_FatorKb'!$E$35)+SUMIF(PFP!$B$8:$B$21,"<>MO*",PFP!$J$8:$J$21)+$F$13+$F$12) -> 1475.05439
A11: K4.3 | B11: COFINS3 - aliquota efetiva aplicavel percentual-desconto | D11: 0.0608 | E11: 0.0679 | F11: =E11*SUM(SUMIF(PFP!$B$8:$B$21,"MO1",PFP!$J$8:$J$21)*(1+'PFP2.1_FatorKa'!$E$35)+SUMIF(PFP!$B$8:$B$21,"MO2",PFP!$J$8:$J$21)*(1+'PFP2.2_FatorKb'!$E$35)+SUMIF(PFP!$B$8:$B$21,"<>MO*",PFP!$J$8:$J$21)+$F$13+$F$12) -> 6813.346469
A12: K3 | B12: REMUNERAÇÃO DA EMPRESA (LUCRO) | E12: 0.0775 | F12: =E12*SUM(SUMIF(PFP!$B$8:$B$21,"MO1",PFP!$J$8:$J$21)*(1+'PFP2.1_FatorKa'!$E$35)+SUMIF(PFP!$B$8:$B$21,"MO2",PFP!$J$8:$J$21)*(1+'PFP2.2_FatorKb'!$E$35)+SUMIF(PFP!$B$8:$B$21,"<>MO*",PFP!$J$8:$J$21)+$F$13) -> 7217.306075
A13: K2 | B13: CUSTOS DA ADMINISTRAÇÃO CENTRAL | E13: 0.0725 | F13: =ROUND(E13*SUMIF(PFP!$B$8:$B$21,"MO*",PFP!$J$8:$J$21),2) -> 14821.8
A14: K2.1 | B14: Custos da administração central da empresa (diretoria, pessoal técnico de apoio e pessoal administrativo não diretamente vinculado à prestação dos serviços) | E14: 0.04 | F14: =ROUND(E14*SUMIF(PFP!$B$8:$B$21,"MO*",PFP!$J$8:$J$21),2) -> 8177.55
A15: K2.2 | B15: Outras despesas que afetam o custo de produção como treinamento, biblioteca, programa de qualidade, programa de benefícios, auditoria interna e externa | E15: 0.02 | F15: =ROUND(E15*SUMIF(PFP!$B$8:$B$21,"MO*",PFP!$J$8:$J$21),2) -> 4088.77
A16: K2.3 | B16: Despesas fixas e variaveis com patrimônio, aluguéis, comunicação, manutenção e transporte não diretamente relacionados com o custo direto dos serviços | E16: 0.01 | F16: =ROUND(E16*SUMIF(PFP!$B$8:$B$21,"MO*",PFP!$J$8:$J$21),2) -> 2044.39
A17: Kd | B17: TAXA RESSARCIMENTO DE DESPESAS SOBRE CUSTOS DIVERSOS | E17: =ROUND((1+E12)*(1+E8),4) -> 1.2026
A18: NOME DO INFORMANTE: | E18: QUALIFICAÇÃO:
A20: ASSINATURA: | E20: DATA:
A22: Observação:
A23: 1 - RELACIONAR OS CUSTOS DE ADMINISTRAÇÃO COM RESPECTIVOS PERCENTUAIS INCIDENTES NA MÃO -DE-OBRA
A24: 1 - DISCRIMINAR OS TRIBUTOS QUE INCIDEM SOBRE OS CUSTOS DA PRESTAÇÃO DOS SERVIÇOS
A25: 2 - K4 = INDICAR % DE CADA TRIBUTO E A SOMA DOS MESMOS (ex: ISS 5% + PIS 1,65% + COFINS 7,60% = 14,25%)
A26: 3 - PIS e COFINS, Regime de Incidencia Acumulativa (0,65% e 3,00% - sem percentual de desconto) ou em Regime de Incidencia Não Acumulativa (1,65% e 7,60% - aplicável percentual de desconto) de acordo com a forma de apuração do lucro no IRPJ. APRESENTAR COMPROVANTES de aproveitamento de créditos tributários dos últimos 12 meses em caso de aplicação de "percentual de desconto".
A27: 4 - AS DESPESAS FISCAIS (K4) INCIDEM SOBRE O TOTAL DA FATURA E NÃO SOBRE OS CUSTOS INCORRIDOS,
A28: DEVENDO SER CALCULADO O K4' APLICANDO-SE A SEGUINTE FÓRMULA:
A29: K4' = { [ 1 / ( 1 - K4) ] - 1 } x 100
A30: =CONCATENATE(" K4' = { [ 1 / ( 1 - ",D8," ) ] - 1 } x 100") -> K4' = { [ 1 / ( 1 - 0,104 ) ] - 1 } x 100
A31: Kc - Taxa de Ressarcimento de Despesas sobre Custos Diversos (incide sobre os Insumos Codigo DP e EM)
A32: Kc = (1 + K3) x (1 + K4)
A33: K2 - Incide sobre o Custo Total (CT) da Mão de Obra (MO* = MO1 + MO2)
A34: K3 - Incide sobre o Custo Total (CT) Mão de Obra com encargos (MO1 x Ka ou MO2 x Kb), demais Custos (DP e EM), e Custos da Administração Central (K2)
A35: K4 - Incide sobre o Custo Total (CT) Mão de Obra com encargos (MO1 x Ka ou MO2 x Kb), demais Custos (DP e EM), e Custos da Administração Central (K2) e Lucro (K3)

Sheet CRO1_Ins-Pro
A1: INSUMOS POR ETAPA/PRODUTO | I1: CODIGO:
I2: CRO-1
A3: Cod. | B3: Categoria / Insumo | C3: Uni | D3: Qde | E3: CUD | F3: PU | G3: FatorK | H3: EB | I3: EVTEA | J3: EA | K3: PB
G4: Meses | H4: 2 | I4: 2 | J4: 1 | K4: 2
A5: =PFP!C8 -> P0 | B5: =PFP!D8 -> Engenheiro coordenador (P8061) | C5: mês | D5: 3 | E5: =PFP!G8 -> 17371.67 | F5: =PFP!H8 -> 22405.98 | G5: =PFP!I8 -> 1.2898 | H5: 0.5 | I5: 1 | J5: 0.5 | K5: 1
A6: =PFP!C10 -> P2 | B6: =PFP!D9 -> Engenheiro de projeto pleno - Civil/Sanitarista (P8066) | C6: mês | D6: 5 | E6: =PFP!G9 -> 11895.06 | F6: =PFP!H9 -> 25567.24 | G6: =PFP!I9 -> 2.1494 | H6: 1 | I6: 1.5 | J6: 1 | K6: 1.5
A7: P2 | B7: =PFP!D10 -> Engenheiro ambiental pleno (P8058) | C7: mês | D7: 3 | E7: =PFP!G10 -> 11513.98 | F7: =PFP!H10 -> 17619.84 | G7: =PFP!I10 -> 1.5303 | H7: 0.5 | I7: 1 | J7: 1 | K7: 0.5
A8: P2 | B8: =PFP!D11 -> Engenheiro pleno - demais esp. (P8066) | C8: mês | D8: 2 | E8: =PFP!G11 -> 11895.06 | F8: =PFP!H11 -> 18203.01 | G8: =PFP!I11 -> 1.5303 | H8: 0.5 | I8: 0.5 | J8: 0 | K8: 1
A9: =PFP!C12 -> T1 | B9: =PFP!D12 -> Técnico de projetos/obra (P8147) | C9: mês | D9: 7 | E9: =PFP!G12 -> 3136.59 | F9: =PFP!H12 -> 6741.79 | G9: =PFP!I12 -> 2.1494 | H9: 2 | I9: 2 | J9: 1 | K9: 2
A10: A1 | B10: Auxiliar administrativo | C10: mês | D10: 7 | E10: =PFP!G13 -> 1794.31 | F10: =PFP!H13 -> 3856.69 | G10: =PFP!I13 -> 2.1494 | H10: 2 | I10: 2 | J10: 1 | K10: 2
A11: =PFP!C14 -> ECA | B11: =PFP!D14 -> Encargos Comp. e Adicionais | C11: mês | D11: =SUM(H11:K11) -> 27 | E11: =PFP!G14 -> 1028.89 | F11: =PFP!H14 -> 1237.34 | G11: =PFP!I14 -> 1.2026 | H11: =SUM(H5:H10) -> 6.5 | I11: =SUM(I5:I10) -> 8 | J11: =SUM(J5:J10) -> 4.5 | K11: =SUM(K5:K10) -> 8
A12: =PFP!C15 -> V1 | B12: =PFP!D15 -> Diárias | C12: dia | D12: 70 | E12: =PFP!G15 -> 184.1230833 | F12: =PFP!H15 -> 221.43 | G12: =PFP!I15 -> 1.2026 | H12: =H4*5*2 -> 20 | I12: =I4*5*2 -> 20 | J12: =J4*5*2 -> 10 | K12: =K4*5*2 -> 20
A13: =PFP!C16 -> V2 | B13: =PFP!D16 -> Pick-up cabine dupla | C13: dia | D13: 70 | E13: =PFP!G16 -> 325.6268258 | F13: =PFP!H16 -> 391.6 | G13: =PFP!I16 -> 1.2026 | H13: 20 | I13: 20 | J13: 10 | K13: 20
A14: =PFP!C17 -> V3 | B14: =PFP!D17 -> Passagens Aéreas (ida e volta) | C14: un | D14: 3 | E14: =PFP!G17 -> 2371.125 | F14: =PFP!H17 -> 2851.51 | G14: =PFP!I17 -> 1.2026 | H14: 1 | I14: 1 | J14: 0 | K14: 1
A15: =PFP!C18 -> M1 | B15: =PFP!D18 -> Relatório Parcial | C15: un | D15: 14 | E15: =PFP!G18 -> 40.39 | F15: =PFP!H18 -> 48.57 | G15: =PFP!I18 -> 1.2026 | H15: 2 | I15: 5 | J15: 2 | K15: 5
A16: =PFP!C19 -> M2 | B16: =PFP!D19 -> Relatório Final | C16: un | D16: 4 | E16: =PFP!G19 -> 1790.84 | F16: =PFP!H19 -> 2153.66 | G16: =PFP!I19 -> 1.2026 | H16: 1 | I16: 1 | J16: 1 | K16: 1
A17: =PFP!C20 -> TOP | B17: =PFP!D20 -> Total Serviços Cartográficos | C17: un | D17: 1 | E17: =PFP!G20 -> - | F17: =PFP!H20 -> 148957.5026 | G17: =PFP!I20 -> - | H17: 1
A18: =PFP!C21 -> GEO | B18: =PFP!D21 -> Total Serviços Geotécnicos | C18: un | D18: 1 | E18: =PFP!G21 -> - | F18: =PFP!H21 -> 135023.4245 | G18: =PFP!I21 -> - | H18: 1
A19: =PFP!C22 -> AMB | B19: =PFP!D22 -> Total Serviços Ambientais | C19: un | D19: 1 | E19: =PFP!G22 -> - | F19: =PFP!H22 -> 3562.913664 | G19: =PFP!I22 -> - | H19: 1
A20: TOTAL | B20: VALOR TOTAL POR PRODUTO | C20: R$ | D20: =TRUNC(SUM(H20:K20),1) -> 740222.3 | H20: =SUM(H5:H19*$F$5:$F$19) -> 388828.0757 | I20: =SUM(I5:I19*$F$5:$F$19) -> 136082.485 | J20: =SUM(J5:J19*$F$5:$F$19) -> 78937.68 | K20: =SUM(K5:K19*$F$5:$F$19) -> 136374.07
C21: % | D21: 1 | H21: =ROUND(H20/$D$20,5) -> 0.52529 | I21: =ROUND(I20/$D$20,5) -> 0.18384 | J21: =ROUND(J20/$D$20,5) -> 0.10664 | K21: =ROUND(K20/$D$20,5) -> 0.18423
A22: TOTAL | B22: VALOR PARCIAL POR PRODUTO (80% DO VALOR TOTAL) (ITEM 7.6 DO EDITAL) | C22: R$ | D22: 592177.8486 | H22: =H20*0.8 -> 311062.4606 | I22: =I20*0.8 -> 108865.988 | J22: =J20*0.8 -> 63150.144 | K22: =K20*0.8 -> 109099.256
A32: TOTAL | B32: VALOR PAGAMENTO DO PRODUTO FINAL (80% DO VALOR TOTAL) (ITEM 7.6 DO EDITAL) | C32: R$ | D32: =SUM(H32:K32) -> 148044.4621 | H32: =H20-H22 -> 77765.61514 | I32: =I20-I22 -> 27216.497 | J32: 15787.536 | K32: 27274.814

Sheet Cronograma Físico-Financeiro
B1: CRONOGRAMA FÍSICO-FINANCEIRO
D4: Mês 1 | E4: Mês 2 | F4: Mês 3 | G4: Mês 4 | H4: Mês 5 | I4: Mês 6 | J4: Mês 7 | K4: Mês 8 | L4: Mês 9 | M4: Mês 10 | N4: Mês 11
B5: Estudos Básicos (EB) | C5: ='CRO1_Ins-Pro'!H20 -> 388828.0757 | D5: =D6*$C$5 -> 38882.80757 | E5: 213855.4416 | F5: 0 | G5: 136089.8265 | H5: 0 | I5: 0 | J5: 0 | K5: 0 | L5: 0 | M5: =M6*$C$5 -> 0 | N5: =N6*$C$5 -> 0 | O5: =SUM(D5:M5) -> 388828.0757
D6: 0.1 | E6: 0.55 | G6: 0.35 | O6: 1
B7: Estudo de Viabilidade Técnica, Econômica e Ambiental (EVTEA) | C7: ='CRO1_Ins-Pro'!I20 -> 136082.485 | D7: =D8*$C$7 -> 0 | E7: 20412.37275 | F7: 115670.1123 | G7: 0 | H7: 0 | I7: 0 | J7: 0 | K7: 0 | L7: 0 | M7: 0 | N7: 0 | O7: 136082.485
E8: 0.15 | F8: 0.85 | O8: 1
B9: Estudos Ambientais (EA) | C9: ='CRO1_Ins-Pro'!J20 -> 78937.68 | D9: =D10*$C$9 -> 0 | E9: 0 | F9: 78937.68 | G9: 0 | H9: 0 | I9: 0 | J9: 0 | K9: 0 | L9: 0 | M9: 0 | N9: 0 | O9: 78937.68
E10: 0 | F10: 1 | O10: 1
B11: Projeto Básico (PB) | C11: ='CRO1_Ins-Pro'!K20 -> 136374.07 | D11: =D12*$C$11 -> 0 | E11: 0 | F11: 0 | G11: 0 | H11: 0 | I11: 34093.5175 | J11: 102280.5525 | K11: 0 | L11: 0 | M11: 0 | N11: 0 | O11: 136374.07
H12: 0 | I12: 0.25 | J12: 0.75 | O12: 1
B14: NO MÊS | D14: =D5+D7+D9+D11 -> 38882.80757 | E14: 234267.8144 | F14: 194607.7923 | G14: 136089.8265 | H14: 0 | I14: 34093.5175 | J14: 102280.5525 | K14: 0 | L14: 0 | M14: =M5+M7+M9+M11 -> 0 | N14: =N5+N7+N9+N11 -> 0 | O14: =SUM(D14:M14) -> 740222.3107
D15: =D14/SUM($C$5:$C$12) -> 0.05252855393 | E15: 0.3164830498 | F15: 0.2629045213 | G15: =G14/SUM($C$5:$C$12) -> 0.1838499388 | H15: 0 | I15: 0.04605848406 | J15: 0.1381754522 | K15: 0 | L15: 0 | M15: 0 | N15: 0 | O15: =SUM(D15:M15) -> 1
C16: DESEMBOLSO (80% do Subproduto) | D16: =D14*0.8 -> 31106.24606 | E16: =E14*0.8 -> 187414.2515 | F16: =F14*0.8 + (0.2*O7) + (0.2*O9) -> 198690.2668 | G16: =G14*0.8+(O5*0.2) -> 186637.4763 | H16: =H14*0.8 -> 0 | I16: 27274.814 | J16: =J14*0.8+(O11*0.2) -> 109099.256 | K16: 0 | L16: 0 | M16: 0 | N16: 0 | O16: =SUM(D16:M16) -> 740222.3107
D17: =D16/SUM($C$5,$C$7,$C$9,$C$11) -> 0.04202284315 | E17: =E16/SUM($C$5,$C$7,$C$9,$C$11) -> 0.2531864398 | F17: 0.2684197219 | G17: 0.2521370589 | H17: 0 | I17: 0.03684678725 | J17: 0.147387149 | K17: 0 | L17: 0 | M17: 0 | N17: 0 | O17: =SUM(D17:M17) -> 1
B18: ACUMULADO | D18: =D16 -> 31106.24606 | E18: =D18+E16 -> 218520.4976 | F18: =E18+F16 -> 417210.7644 | G18: 603848.2407 | H18: 603848.2407 | I18: 631123.0547 | J18: =TRUNC(I18+J16,1) -> 740222.3 | K18: 740222.3 | L18: 740222.3 | M18: =L18+M16 -> 740222.3 | N18: =M18+N16 -> 740222.3
D19: =D15 -> 0.05252855393 | E19: =D19+E15 -> 0.3690116037 | F19: 0.631916125 | G19: 0.8157660638 | H19: 0.8157660638 | I19: 0.8618245478 | J19: 1 | K19: 1 | L19: 1 | M19: 1 | N19: 1

Sheet Planilha de Medição
B1: PLANILHA DE MEDIÇÃO
B5: # | D5: DESCRIÇÃO | E5: P. PARCIAL (80%) | F5: P. GLOBAL | G5: P. UNITÁRIO | H5: P. TOTAL | I5: % PRODUTO
B6: 1 | C6: 1 | D6: Estudos Básicos (EB) | H6: ='CRO1_Ins-Pro'!H20 -> 388828.0757 | I6: =H6/$H$29 -> 0.525285547
B7: 1 | C7: 1.1 | D7: Estudo Preliminares | E7: =H7*0.8 -> 30748.25066 | F7: =H7 -> 38435.31333 | H7: =$H$6*I7 -> 38435.31333 | I7: =1-(I8+I9+I10) -> 0.09884912055
B8: 1 | C8: 1.2 | D8: Estudo Hidrológicos/Demanda | E8: =H8*0.8 -> 53129.46827 | F8: =H8-G8 -> 62848.92167 | G8: ='CRO1_Ins-Pro'!F19 -> 3562.913664 | H8: =$H$6*I8 -> 66411.83533 | I8: 0.1708
B9: 1 | C9: 1.3 | D9: Estudo Topográfico/Cartográfico | E9: =H9*0.8 -> 119166.002 | G9: =H9 -> 148957.5026 | H9: ='CRO1_Ins-Pro'!F17 -> 148957.5026 | I9: =H9/H6 -> 0.3830934849
B10: 1 | C10: 1.4 | D10: Serviços Geológicos/Geotécnicos | E10: =H10*0.8 -> 108018.7396 | G10: =H10 -> 135023.4245 | H10: ='CRO1_Ins-Pro'!F18 -> 135023.4245 | I10: =H10/H6 -> 0.3472573946
B11: 2 | C11: 2 | D11: Estudo de Viabilidade Técnica, Econômica e Ambiental (EVTEA) | H11: ='CRO1_Ins-Pro'!I20 -> 136082.485 | I11: =H11/$H$29 -> 0.1838400235
B12: 2 | C12: 2.1 | D12: Estudo de Concepção de Alternativas | E12: =H12*0.8 -> 13423.17632 | F12: =H12-G12 -> 16778.9704 | H12: =I12*$H$11 -> 16778.9704 | I12: 0.1233
B13: 2 | C13: 2.2 | D13: Estudo Técnico | E13: =H13*0.8 -> 23558.5998 | F13: =H13-G13 -> 29448.24975 | H13: =I13*$H$11 -> 29448.24975 | I13: 0.2164
B14: 2 | C14: 2.3 | D14: Estudo Ambiental | E14: =H14*0.8 -> 16885.11474 | F14: 21106.39342 | H14: 21106.39342 | I14: 0.1551
B15: 2 | C15: 2.4 | D15: Estudo Econômico | E15: 14468.28981 | F15: 18085.36226 | H15: 18085.36226 | I15: 0.1329
B16: 2 | C16: 2.5 | D16: Estudo de Seleção | E16: =H16*0.8 -> 21903.83679 | F16: 27379.79598 | H16: 27379.79598 | I16: 0.2012
B17: 2 | C17: 2.6 | D17: Estudo Consolidado e Peças Complementares | E17: =H17*0.8 -> 18626.97055 | F17: 23283.71318 | H17: 23283.71318 | I17: =1-SUM(I12:I16) -> 0.1711
B18: 3 | C18: 3 | D18: Estudos Ambientais (EA) | H18: ='CRO1_Ins-Pro'!J20 -> 78937.68 | I18: =H18/$H$29 -> 0.1066405052
B19: 4 | C19: 4 | D19: Projeto Básico (PB) | H19: ='CRO1_Ins-Pro'!K20 -> 136374.07 | I19: =H19/$H$29 -> 0.1842339389
B20: 4 | C20: 4.1 | D20: Projeto de Terraplenagem e Urbanização | E20: =H20*0.8 -> 12099.10749 | F20: =H20-G20 -> 15123.88436 | H20: =I20*$H$19 -> 15123.88436 | I20: 0.1109
B21: 4 | C21: 4.2 | D21: Projeto de Edificações, Fundações e Elementos Civis | E21: 15437.54472 | F21: =H21-G21 -> 19296.9309 | H21: =I21*$H$19 -> 19296.9309 | I21: 0.1415
B22: 4 | C22: 4.3 | D22: Projeto de Hidromecânico | E22: 34093.5175 | F22: 42616.89688 | H22: 42616.89688 | I22: 0.3125
B23: 4 | C23: 4.4 | D23: Projeto Elétrico, Automação e Controle | E23: 16855.83505 | F23: 21069.79382 | H23: 21069.79382 | I23: 0.1545
B24: 4 | C24: 4.5 | D24: Projeto Fundiário e de Desapropriação | E24: 6207.747666 | F24: 7759.684583 | H24: 7759.684583 | I24: 0.0569
B25: 4 | C25: 4.6 | D25: Orçamento e Especificações Técnicas | E25: 9557.094826 | F25: 11946.36853 | H25: 11946.36853 | I25: 0.0876
B26: 4 | C26: 4.7 | D26: Projeto Consolidado e Peças Complementares | E26: 14848.40874 | F26: 18560.51093 | H26: 18560.51093 | I26: =1-SUM(I20:I25) -> 0.1361
H29: =TRUNC(H6+H11+H18+H19,1) -> 740222.3 | I29: =I19+I18+I11+I6 -> 1.000000014

Sheet CPU HOSPEDAGEM
B2: Engenharia Consultiva da Codevasf
B3: CPU - HOSPEDAGEM EQUIPE DE CAMPO (4 PESSOAS/MÊS) | D3: Código/Referencia
B4: ALUGUEL | C4: 3074.56 | D4: F020003334/EMBASA
B5: Aquisição de Mobiliário | C5: =43.89*C16 -> 175.56 | D5: B8954/DNIT
B6: Material de limpeza e diarista | C6: =126.93+(123*8) -> 1110.93 | D6: 10563/ORSE - E200300131/EMBASA
B7: manutenção da casa alugada - Serviços Gerais/Vigia | C7: 2461.71 | D7: 41096/SINAPI
B8: Energia | C8: 180 | D8: 10555/ORSE
B9: Água | C9: 394.99 | D9: 10554/ORSE
B10: telefone/Internet | C10: =154.99+89 -> 243.99 | D10: 10557/10558/ORSE
B11: IPTU (mês) | C11: =(C4*0.5)/12 -> 128.1066667
B12: Despesas Gerais - 10% | C12: =SUM(C4:C11)*0.1 -> 776.9846667
B13: Custo Mensal: | C13: =SUM(C4:C12) -> 8546.831333
B14: Custo Mensal por pessoa: | C14: =C13/C16 -> 2136.707833
B15: Custo diário por pessoa: | C15: =C14/22 -> 97.12308333
B16: número de pessoas: | C16: 4
B17: Alimentação: | C17: 87 | D17: Tabela Diária Codevasf
B19: Diária Total (alimentação + hospedagem): | C19: =C15+C17 -> 184.1230833

Sheet CPU-VEICULO_PickUp
A5: Composição de Preços de Locação de Veículo tipo pick-up
B6: Data de atualização: | C6: 2024-01-22 | E6: CV | F6: Média | G6: Mediana | K6: CV | L6: Média | M6: Mediana | V6: CV | W6: Média | X6: Mediana
A7: CODEVASF | E7: =_xlfn.STDEV.S(E10:H10)/AVERAGE(E10:H10) -> 0.09266792266 | F7: =AVERAGE(E10:H10) -> 179935.5 | G7: =MEDIAN(E10:H10) -> 184702 | K7: =_xlfn.STDEV.S(L9:S9)/AVERAGE(L9:S9) -> 0.2095249415 | L7: =AVERAGE(L9:S9) -> 31.09571429 | M7: =MEDIAN(L9:S9) -> 30.16 | V7: =_xlfn.STDEV.S(W9:AD9)/AVERAGE(W9:AD9) -> 0.1324098854 | W7: =AVERAGE(W9:AD9) -> 430.6009375 | X7: =MEDIAN(W9:AD9) -> 437.31625
A8: OBS: Preço sem BDI e sem motorista BDI= | E8: Preço FIPE | J8: PRODUTO | K8: MENOR (MÉDIA, MEDIANA) | L8: COT. 1 | M8: COT. 2 | N8: COT. 3 | O8: COT. 4 | P8: COT. 5 | Q8: COT. 6 | R8: COT. 7 | S8: COT. 8 | U8: PRODUTO | V8: MENOR (MÉDIA, MEDIANA) | W8: COT. 1 | X8: COT. 2 | Y8: COT. 3 | Z8: COT. 4 | AA8: COT. 5 | AB8: COT. 6 | AC8: COT. 7 | AD8: COT. 8
A9: Veículo tipo pick-up, cabine dupla - 2.0 16V 4x4 diesel Aut. | E9: Toro Ultra 2.0 16V 4x4 TB Diesel Aut. | F9: Toro Freedom 2.0 16V 4x4 TB Diesel Aut. | G9: Toro Volcano 2.0 16V 4x4 TB Diesel Aut. | H9: Toro Ranch 2.0 16V 4x4 TB Diesel Aut. | J9: LUBRIFICANTE 5W30 | K9: =SMALL(L7:M7,1) -> 30.16 | L9: 32.27 | M9: 28.9 | N9: 30.16 | O9: 37.7 | P9: 39.99 | Q9: 20.25 | R9: 28.4 | U9: Pneu 225/65 R17 | V9: =SMALL(W7:X7,1) -> 430.6009375 | W9: =1661.85/4 -> 415.4625 | X9: =1940.9/4 -> 485.225 | Y9: 399.88 | Z9: 330.46 | AA9: 479.6 | AB9: 386.23 | AC9: 459.17 | AD9: 488.78
B10: Custo Mensal (R$): | C10: =C51 -> 7163.790168 | E10: 193030 | F10: 157308 | G10: 177450 | H10: 191954
B11: Custo Diária (R$): | C11: =C10/22 -> 325.6268258
B12: Custo Horário (R$): | C12: =C10/176 -> 40.70335323
A13: A | B13: Depreciação mensal do equipamento
A14: A1 | B14: Preço de Aquisição | C14: =SMALL(F7:G7,1) -> 179935.5
A15: A2 | B15: Tempo previsto de vida útil (meses) | C15: 36
A16: A3 | B16: Previsão de recup. Na venda do bem usado | C16: 0.4
A17: A4 | B17: Custo mensal [A1-(A3xA1)]/A2 | C17: =(C14-(C16*C14))/C15 -> 2998.925
A18: B | B18: Juros pelo Capital empregado
A19: B1 | B19: Taxa mensal de Juros * | C19: =POWER(1+C56,1/12)-1 -> 0.009300823619
A20: B2 | B20: Juros s/depreciação/aluguel (B1xA4) | C20: =C19*C17 -> 27.89247247
A21: C | B21: Conservação e manutenção ** | C21: 0.75
A22: C1 | B22: Taxa de gastos s/a deprec. Inc. seguros (%) | C22: =C21 -> 0.75 | AF22: PREÇO DO DIESEL | AG22: 5.98
A23: C2 | B23: Incidência mensal (C1xA4) | C23: =C22*C17 -> 2249.19375 | AF23: https://precos.petrobras.com.br/sele%C3%A7%C3%A3o-de-estados-diesel
A24: D | B24: Combustível
A25: D1 | B25: Média mensal de quilômetro por veículo | C25: =130*22 -> 2860
A26: D2 | B26: Preço do litro de combustível | C26: =AG22 -> 5.98
A27: D3 | B27: Quilômetros rodados com um litro combustivel | C27: 10
A28: D4 | B28: Combustivel (D1/D3)*D2 | C28: =(C25/C27)*C26 -> 1710.28
A29: E | B29: Lubrificantes
A30: E1 | B30: Quilometragem do Contrato (D1*12) | C30: =C25*36 -> 102960
A31: E2 | B31: Franquia por troca de óleo (km) | C31: 10000
A32: E3 | B32: Preço do litro de óleo | C32: =K9 -> 30.16
A33: E4 | B33: Quantidade de litros de óleo por troca | C33: 5
A34: E5 | B34: Quantidade de dias do Contrato | C34: =365*3 -> 1095
A35: E6 | B35: Lubrificantes E = (E1*E3*E4*30)/E2*E5 | C35: =(C30*C32*C33*30)/(C31*C34) -> 42.53799452
A36: F | B36: Pneus
A37: F1 | B37: Quilometragem do Contrato | C37: =C30 -> 102960
A38: F2 | B38: Vida do Pneu em quilômetros | C38: 45000
A39: F3 | B39: Quantidade de pneus | C39: 5
A40: F4 | B40: Preço do Pneu | C40: =V9 -> 430.6009375
A41: F5 | B41: Quantidade de dias do contrato | C41: =C34 -> 1095
A42: F6 | B42: Pneus = (F1*F3*F4*30)/(F2*F5) | C42: =(C37*C39*C40*30)/(C38*C41) -> 134.9609514
A43: G | B43: Motorista
A44: G1 | B44: Salário com encargos sociais | C44: 0 | J44: https://www.google.com/search?q=lubrificante+5w30&sxsrf=AJOqlzUM514L6uswJHb1jIGpGgXchTtV5A:1677092590843&source=lnms&tbm=shop&sa=X&sqi=2&ved=
A45: H | B45: Custo Mensal
B46: Sem Motorista (A4+B2+C2+D4+E6+F6) | C46: =C17+C20+C23+C28+C35+C42 -> 7163.790168
B47: Com Motorista (A4+B2+C2+D4+E6+F6+G1) | C47: =C17+C20+C23+C28+C35+C42+C44 -> 7163.790168
A48: I | B48: Custo Direto p/ km Rodado
B49: Sem Motorista | C49: =C46/C25 -> 2.504821737
B50: Com Motorista | C50: =C47/C25 -> 2.504821737
A51: J | B51: Preço cobrado sem BDI | C51: =C46*(1+C8) -> 7163.790168
A52: J1 | B52: Sem Motorista | C52: =C51 -> 7163.790168
A53: J2 | B53: Com Motorista | C53: =C47 -> 7163.790168 | T53: https://www.google.com/search?q=pneu+225%2F65+R17&sa=X&biw=1600&bih=757&tbm=shop&sxsrf=AJOqlzWsb-d4PS1_OUOEhKmRc2RbtSg3RQ%3A1677092596279&ei=9Gb2Y9K5ENTa5OUPvLykGA&ved=0ahUKEwjSg9Pj6Kn9AhVULbkGHTweCQMQ4dUDCAg&uact=5&oq=pneu+225%2F65+R17&gs_lcp=Cgtwcm9kdWN0cy1jYxADMgsIABCABBCxAxCDATIFCAAQgAQyBwgAEIAEEAoyBwgAEIAEEAoyBwgAEIAEEAoyBwgAEIAEEAoyBwgAEIAEEAoyBQgAEIAEMgcIABCABBAKMgcIABCABBAKOgQIIxAnOgQIABBDSgQIQRgAUABYoTJgqUBoAHAAeACAAdIFiAGUKZIBDTAuMi42LjIuMi4yLjGYAQCgAQHAAQE&sclient=products-cc
B55: OBSERVAÇÕES:
A56: * | B56: Calculado com base na taxa SELIC JANEIRO/2024: | C56: 0.1175
B57: Taxa de Juros Selic — Português (Brasil) (www.gov.br)
A58: ** | B58: Conservação e manutenção - é calculado com o uso de um coeficiente multiplicador "k", conforme tabela abaixo, sobre a
B59: depreciação mensal do equipamento (Item A da planilha de composição de preços). Os valores de K são fornecidos por
B60: fabricantes.
B61: Metodologia conforme a bibliografia "Como Preparar Orçamentos de Obras", 3 edição, Aldo Dórea Mattos, 2019.

Sheet Cotação Voos
A1: COTAÇÕES - IDA DIA 24/06/2024 E VOLTA DIA 28/06/2024
A3: BSB -RN | B3: Cia 1 | C3: Cia 2 | D3: Cia 3 | E3: Média
B4: 2090 | C4: 2204 | E4: =AVERAGE(B4:D4) -> 2147
A29: SP -RN | B29: Cia 1 | C29: Cia 2 | D29: Cia 3 | E29: Média
B30: 1143 | C30: 1292 | E30: =AVERAGE(B30:D30) -> 1217.5
A55: CURITIBA -RN | B55: Cia 1 | C55: Cia 2 | D55: Cia 3 | E55: Média
B56: 2763 | C56: 2763 | E56: =AVERAGE(B56:D56) -> 2763
A80: MANAUS -RN | B80: Cia 1 | C80: Cia 2 | D80: Cia 3 | E80: Média
B81: 2957 | C81: 3757 | E81: =AVERAGE(B81:D81) -> 3357
A104: VALOR ADOTADO: | B104: =AVERAGE(E4:E81) -> 2371.125

Sheet DNIT TC - 102023
A1: Código | B1: Categoria | C1: Unid. | D1: Salário | E1: Encargos Sociais | G1: Encargos Complementares | Q1: Encargos Adicionais | W1: Encargos Totais | Y1: Valor Total
G2: Alimentação | I2: EPI | K2: Ferramenta | M2: Transporte | O2: Exame Ocupacional | Q2: Cesta Básica | S2: Assistência Médica | U2: Seguro de Vida
D3: R$ | E3: % | F3: R$ | G3: % | H3: R$ | I3: % | J3: R$ | K3: % | L3: R$ | M3: % | N3: R$ | O3: % | P3: R$ | Q3: % | R3: R$ | S3: % | T3: R$ | U3: % | V3: R$ | W3: % | X3: R$ | Y3: R$
A4: P8001 | B4: Advogado júnior | C4: mês | D4: 4328.07 | E4: 0.7941 | F4: 3436.92 | G4: 0.1624 | H4: 702.89 | I4: 0.0057 | J4: 24.82 | K4: 0 | L4: 0 | M4: 0 | N4: 0 | O4: 0.0007 | P4: 2.9 | Q4: 0 | R4: 0 | S4: 0.0664 | T4: 287.48 | U4: 0.0023 | V4: 9.98 | W4: 1.0316 | X4: 4465 | Y4: 8793.07
A5: P8002 | B5: Advogado pleno | C5: mês | D5: 5770.76 | E5: 0.7941 | F5: 4582.56 | G5: 0.1218 | H5: 702.89 | I5: 0.0043 | J5: 24.82 | K5: 0 | L5: 0 | M5: 0 | N5: 0 | O5: 0.0005 | P5: 2.9 | Q5: 0 | R5: 0 | S5: 0.0498 | T5: 287.48 | U5: 0.0017 | V5: 9.98 | W5: 0.9723 | X5: 5610.64 | Y5: 11381.4
A6: P8003 | B6: Advogado sênior | C6: mês | D6: 10385.12 | E6: 0.7941 | F6: 8246.82 | G6: 0.0677 | H6: 702.89 | I6: 0.0024 | J6: 24.82 | K6: 0 | L6: 0 | M6: 0 | N6: 0 | O6: 0.0003 | P6: 2.9 | Q6: 0 | R6: 0 | S6: 0.0277 | T6: 287.48 | U6: 0.001 | V6: 9.98 | W6: 0.8931 | X6: 9274.9 | Y6: 19660.02
A7: P8007 | B7: Analista de desenvolvimento de sistemas júnior | C7: mês | D7: 4362.56 | E7: 0.7946 | F7: 3466.49 | G7: 0.1611 | H7: 702.89 | I7: 0 | J7: 0 | K7: 0 | L7: 0 | M7: 0 | N7: 0 | O7: 0.0008 | P7: 3.62 | Q7: 0 | R7: 0 | S7: 0.0659 | T7: 287.48 | U7: 0.0023 | V7: 9.98 | W7: 1.0247 | X7: 4470.46 | Y7: 8833.02
A8: P8008 | B8: Analista de desenvolvimento de sistemas pleno | C8: mês | D8: 5257.05 | E8: 0.7946 | F8: 4177.25 | G8: 0.1337 | H8: 702.89 | I8: 0 | J8: 0 | K8: 0 | L8: 0 | M8: 0 | N8: 0 | O8: 0.0007 | P8: 3.62 | Q8: 0 | R8: 0 | S8: 0.0547 | T8: 287.48 | U8: 0.0019 | V8: 9.98 | W8: 0.9856 | X8: 5181.22 | Y8: 10438.27
A9: P8009 | B9: Analista de desenvolvimento de sistemas sênior | C9: mês | D9: 9343.88 | E9: 0.7946 | F9: 7424.64 | G9: 0.0752 | H9: 702.89 | I9: 0 | J9: 0 | K9: 0 | L9: 0 | M9: 0 | N9: 0 | O9: 0.0004 | P9: 3.62 | Q9: 0 | R9: 0 | S9: 0.0308 | T9: 287.48 | U9: 0.0011 | V9: 9.98 | W9: 0.902 | X9: 8428.62 | Y9: 17772.49
A10: P8013 | B10: Arquiteto júnior | C10: mês | D10: 11220 | E10: 0.7936 | F10: 8904.19 | G10: 0.0626 | H10: 702.89 | I10: 0.0022 | J10: 24.82 | K10: 0 | L10: 0 | M10: 0 | N10: 0 | O10: 0.0003 | P10: 3.29 | Q10: 0 | R10: 0 | S10: 0.0256 | T10: 287.48 | U10: 0.0009 | V10: 9.98 | W10: 0.8853 | X10: 9932.66 | Y10: 21152.66
A11: P8014 | B11: Arquiteto pleno | C11: mês | D11: 11758.79 | E11: 0.7936 | F11: 9331.77 | G11: 0.0598 | H11: 702.89 | I11: 0.0021 | J11: 24.82 | K11: 0 | L11: 0 | M11: 0 | N11: 0 | O11: 0.0003 | P11: 3.29 | Q11: 0 | R11: 0 | S11: 0.0244 | T11: 287.48 | U11: 0.0008 | V11: 9.98 | W11: 0.8811 | X11: 10360.24 | Y11: 22119.03
A12: P8015 | B12: Arquiteto sênior | C12: mês | D12: 14256.53 | E12: 0.7936 | F12: 11313.98 | G12: 0.0493 | H12: 702.89 | I12: 0.0017 | J12: 24.82 | K12: 0 | L12: 0 | M12: 0 | N12: 0 | O12: 0.0002 | P12: 3.29 | Q12: 0 | R12: 0 | S12: 0.0202 | T12: 287.48 | U12: 0.0007 | V12: 9.98 | W12: 0.8657 | X12: 12342.45 | Y12: 26598.98
A13: P8019 | B13: Assistente social júnior | C13: mês | D13: 3151.76 | E13: 0.8006 | F13: 2523.3 | G13: 0.223 | H13: 702.89 | I13: 0.0079 | J13: 24.82 | K13: 0 | L13: 0 | M13: 0.0095 | N13: 29.93 | O13: 0.0015 | P13: 4.69 | Q13: 0 | R13: 0 | S13: 0.0912 | T13: 287.48 | U13: 0.0032 | V13: 9.98 | W13: 1.1369 | X13: 3583.09 | Y13: 6734.85
A14: P8020 | B14: Assistente social pleno | C14: mês | D14: 4202.35 | E14: 0.8006 | F14: 3364.4 | G14: 0.1673 | H14: 702.89 | I14: 0.0059 | J14: 24.82 | K14: 0 | L14: 0 | M14: 0 | N14: 0 | O14: 0.0011 | P14: 4.69 | Q14: 0 | R14: 0 | S14: 0.0684 | T14: 287.48 | U14: 0.0024 | V14: 9.98 | W14: 1.0457 | X14: 4394.27 | Y14: 8596.61
A15: P8021 | B15: Assistente social sênior | C15: mês | D15: 7005.06 | E15: 0.8006 | F15: 5608.25 | G15: 0.1003 | H15: 702.89 | I15: 0.0035 | J15: 24.82 | K15: 0 | L15: 0 | M15: 0 | N15: 0 | O15: 0.0007 | P15: 4.69 | Q15: 0 | R15: 0 | S15: 0.041 | T15: 287.48 | U15: 0.0014 | V15: 9.98 | W15: 0.9476 | X15: 6638.12 | Y15: 13643.18
A16: P8025 | B16: Auxiliar | C16: mês | D16: 1496.52 | E16: 0.8093 | F16: 1211.13 | G16: 0.4697 | H16: 702.89 | I16: 0.0202 | J16: 30.22 | K16: 0.001 | L16: 1.55 | M16: 0.0864 | N16: 129.24 | O16: 0.0044 | P16: 6.65 | Q16: 0 | R16: 0 | S16: 0.1921 | T16: 287.48 | U16: 0.0067 | V16: 9.98 | W16: 1.5898 | X16: 2379.14 | Y16: 3875.66
A17: P8026 | B17: Auxiliar administrativo | C17: mês | D17: 1794.31 | E17: 0.8015 | F17: 1438.14 | G17: 0.3917 | H17: 702.89 | I17: 0 | J17: 0 | K17: 0 | L17: 0 | M17: 0.0621 | N17: 111.37 | O17: 0.0021 | P17: 3.82 | Q17: 0 | R17: 0 | S17: 0.1602 | T17: 287.48 | U17: 0.0056 | V17: 9.98 | W17: 1.4232 | X17: 2553.69 | Y17: 4348
A18: P8027 | B18: Auxiliar de laboratório | C18: mês | D18: 1649.67 | E18: 0.8025 | F18: 1323.86 | G18: 0.4261 | H18: 702.89 | I18: 0.0183 | J18: 30.22 | K18: 0.0019 | L18: 3.19 | M18: 0.0728 | N18: 120.05 | O18: 0.0026 | P18: 4.22 | Q18: 0 | R18: 0 | S18: 0.1743 | T18: 287.48 | U18: 0.006 | V18: 9.98 | W18: 1.5045 | X18: 2481.9 | Y18: 4131.58
A19: P8028 | B19: Auxiliar de topografia | C19: mês | D19: 1496.52 | E19: 0.8046 | F19: 1204.1 | G19: 0.4697 | H19: 702.89 | I19: 0.0202 | J19: 30.22 | K19: 0.0009 | L19: 1.35 | M19: 0.0864 | N19: 129.24 | O19: 0.0031 | P19: 4.69 | Q19: 0 | R19: 0 | S19: 0.1921 | T19: 287.48 | U19: 0.0067 | V19: 9.98 | W19: 1.5836 | X19: 2369.95 | Y19: 3866.47
A20: P8032 | B20: Biólogo júnior | C20: mês | D20: 3221.42 | E20: 0.7965 | F20: 2565.86 | G20: 0.2182 | H20: 702.89 | I20: 0.0077 | J20: 24.82 | K20: 0 | L20: 0 | M20: 0.008 | N20: 25.75 | O20: 0.0012 | P20: 3.74 | Q20: 0 | R20: 0 | S20: 0.0892 | T20: 287.48 | U20: 0.0031 | V20: 9.98 | W20: 1.1239 | X20: 3620.53 | Y20: 6841.95
A21: P8033 | B21: Biólogo pleno | C21: mês | D21: 4295.23 | E21: 0.7965 | F21: 3421.15 | G21: 0.1636 | H21: 702.89 | I21: 0.0058 | J21: 24.82 | K21: 0 | L21: 0 | M21: 0 | N21: 0 | O21: 0.0009 | P21: 3.74 | Q21: 0 | R21: 0 | S21: 0.0669 | T21: 287.48 | U21: 0.0023 | V21: 9.98 | W21: 1.036 | X21: 4450.07 | Y21: 8745.3
A22: P8034 | B22: Biólogo sênior | C22: mês | D22: 7598.64 | E22: 0.7965 | F22: 6052.32 | G22: 0.0925 | H22: 702.89 | I22: 0.0033 | J22: 24.82 | K22: 0 | L22: 0 | M22: 0 | N22: 0 | O22: 0.0005 | P22: 3.74 | Q22: 0 | R22: 0 | S22: 0.0378 | T22: 287.48 | U22: 0.0013 | V22: 9.98 | W22: 0.9319 | X22: 7081.23 | Y22: 14679.87
A23: P8038 | B23: Chefe de escritório | C23: mês | D23: 3345.08 | E23: 0.7949 | F23: 2659.01 | G23: 0.2101 | H23: 702.89 | I23: 0 | J23: 0 | K23: 0 | L23: 0 | M23: 0.0055 | N23: 18.33 | O23: 0.0009 | P23: 2.97 | Q23: 0 | R23: 0 | S23: 0.0859 | T23: 287.48 | U23: 0.003 | V23: 9.98 | W23: 1.1003 | X23: 3680.66 | Y23: 7025.74
A24: P8040 | B24: Contador júnior | C24: mês | D24: 4102.78 | E24: 0.7942 | F24: 3258.43 | G24: 0.1713 | H24: 702.89 | I24: 0 | J24: 0 | K24: 0 | L24: 0 | M24: 0 | N24: 0 | O24: 0.0006 | P24: 2.54 | Q24: 0 | R24: 0 | S24: 0.0701 | T24: 287.48 | U24: 0.0024 | V24: 9.98 | W24: 1.0386 | X24: 4261.32 | Y24: 8364.1
A25: P8041 | B25: Contador pleno | C25: mês | D25: 5470.37 | E25: 0.7942 | F25: 4344.57 | G25: 0.1285 | H25: 702.89 | I25: 0 | J25: 0 | K25: 0 | L25: 0 | M25: 0 | N25: 0 | O25: 0.0005 | P25: 2.54 | Q25: 0 | R25: 0 | S25: 0.0526 | T25: 287.48 | U25: 0.0018 | V25: 9.98 | W25: 0.9775 | X25: 5347.46 | Y25: 10817.83
A26: P8042 | B26: Contador sênior | C26: mês | D26: 10477.63 | E26: 0.7942 | F26: 8321.33 | G26: 0.0671 | H26: 702.89 | I26: 0 | J26: 0 | K26: 0 | L26: 0 | M26: 0 | N26: 0 | O26: 0.0002 | P26: 2.54 | Q26: 0 | R26: 0 | S26: 0.0274 | T26: 287.48 | U26: 0.001 | V26: 9.98 | W26: 0.8899 | X26: 9324.23 | Y26: 19801.86
A27: P8044 | B27: Coordenador ambiental | C27: mês | D27: 16975.59 | E27: 0.7949 | F27: 13493.89 | G27: 0.0414 | H27: 702.89 | I27: 0.0013 | J27: 22.67 | K27: 0 | L27: 0 | M27: 0 | N27: 0 | O27: 0.0002 | P27: 3.5 | Q27: 0 | R27: 0 | S27: 0.0169 | T27: 287.48 | U27: 0.0006 | V27: 9.98 | W27: 0.8554 | X27: 14520.41 | Y27: 31496
A28: P8045 | B28: Economista júnior | C28: mês | D28: 4743.39 | E28: 0.7879 | F28: 3737.32 | G28: 0.1482 | H28: 702.89 | I28: 0 | J28: 0 | K28: 0 | L28: 0 | M28: 0 | N28: 0 | O28: 0.0004 | P28: 1.8 | Q28: 0 | R28: 0 | S28: 0.0606 | T28: 287.48 | U28: 0.0021 | V28: 9.98 | W28: 0.9992 | X28: 4739.47 | Y28: 9482.86
A29: P8046 | B29: Economista pleno | C29: mês | D29: 6324.52 | E29: 0.7879 | F29: 4983.09 | G29: 0.1111 | H29: 702.89 | I29: 0 | J29: 0 | K29: 0 | L29: 0 | M29: 0 | N29: 0 | O29: 0.0003 | P29: 1.8 | Q29: 0 | R29: 0 | S29: 0.0455 | T29: 287.48 | U29: 0.0016 | V29: 9.98 | W29: 0.9464 | X29: 5985.24 | Y29: 12309.76
A30: P8047 | B30: Economista sênior | C30: mês | D30: 10763.82 | E30: 0.7879 | F30: 8480.82 | G30: 0.0653 | H30: 702.89 | I30: 0 | J30: 0 | K30: 0 | L30: 0 | M30: 0 | N30: 0 | O30: 0.0002 | P30: 1.8 | Q30: 0 | R30: 0 | S30: 0.0267 | T30: 287.48 | U30: 0.0009 | V30: 9.98 | W30: 0.881 | X30: 9482.96 | Y30: 20246.79
A31: P8054 | B31: Engenheiro agrônomo júnior | C31: mês | D31: 11220 | E31: 0.7904 | F31: 8868.29 | G31: 0.0626 | H31: 702.89 | I31: 0.0022 | J31: 24.82 | K31: 0 | L31: 0 | M31: 0 | N31: 0 | O31: 0.0002 | P31: 2.31 | Q31: 0 | R31: 0 | S31: 0.0256 | T31: 287.48 | U31: 0.0009 | V31: 9.98 | W31: 0.882 | X31: 9895.77 | Y31: 21115.77
A32: P8055 | B32: Engenheiro agrônomo pleno | C32: mês | D32: 11841.21 | E32: 0.7904 | F32: 9359.29 | G32: 0.0594 | H32: 702.89 | I32: 0.0021 | J32: 24.82 | K32: 0 | L32: 0 | M32: 0 | N32: 0 | O32: 0.0002 | P32: 2.31 | Q32: 0 | R32: 0 | S32: 0.0243 | T32: 287.48 | U32: 0.0008 | V32: 9.98 | W32: 0.8772 | X32: 10386.78 | Y32: 22227.99
A33: P8056 | B33: Engenheiro agrônomo sênior | C33: mês | D33: 13685.26 | E33: 0.7904 | F33: 10816.83 | G33: 0.0514 | H33: 702.89 | I33: 0.0018 | J33: 24.82 | K33: 0 | L33: 0 | M33: 0 | N33: 0 | O33: 0.0002 | P33: 2.31 | Q33: 0 | R33: 0 | S33: 0.021 | T33: 287.48 | U33: 0.0007 | V33: 9.98 | W33: 0.8655 | X33: 11844.31 | Y33: 25529.58
A34: P8057 | B34: Engenheiro ambiental júnior | C34: mês | D34: 11220 | E34: 0.7964 | F34: 8935.61 | G34: 0.0626 | H34: 702.89 | I34: 0.0022 | J34: 24.82 | K34: 0 | L34: 0 | M34: 0 | N34: 0 | O34: 0.0003 | P34: 3.71 | Q34: 0 | R34: 0 | S34: 0.0256 | T34: 287.48 | U34: 0.0009 | V34: 9.98 | W34: 0.8881 | X34: 9964.49 | Y34: 21184.49
A35: P8058 | B35: Engenheiro ambiental pleno | C35: mês | D35: 11513.98 | E35: 0.7964 | F35: 9169.73 | G35: 0.061 | H35: 702.89 | I35: 0.0022 | J35: 24.82 | K35: 0 | L35: 0 | M35: 0 | N35: 0 | O35: 0.0003 | P35: 3.71 | Q35: 0 | R35: 0 | S35: 0.025 | T35: 287.48 | U35: 0.0009 | V35: 9.98 | W35: 0.8858 | X35: 10198.62 | Y35: 21712.6
A36: P8059 | B36: Engenheiro ambiental sênior | C36: mês | D36: 14163.68 | E36: 0.7964 | F36: 11279.95 | G36: 0.0496 | H36: 702.89 | I36: 0.0018 | J36: 24.82 | K36: 0 | L36: 0 | M36: 0 | N36: 0 | O36: 0.0003 | P36: 3.71 | Q36: 0 | R36: 0 | S36: 0.0203 | T36: 287.48 | U36: 0.0007 | V36: 9.98 | W36: 0.869 | X36: 12308.84 | Y36: 26472.52
A37: P8060 | B37: Engenheiro consultor especial | C37: mês | D37: 20846 | E37: 0.7951 | F37: 16574.66 | G37: 0.0337 | H37: 702.89 | I37: 0.0011 | J37: 22.67 | K37: 0 | L37: 0 | M37: 0 | N37: 0 | O37: 0.0002 | P37: 3.72 | Q37: 0 | R37: 0 | S37: 0.0138 | T37: 287.48 | U37: 0.0005 | V37: 9.98 | W37: 0.8444 | X37: 17601.4 | Y37: 38447.41
A38: P8061 | B38: Engenheiro coordenador | C38: mês | D38: 17371.67 | E38: 0.7951 | F38: 13812.22 | G38: 0.0405 | H38: 702.89 | I38: 0.0013 | J38: 22.67 | K38: 0 | L38: 0 | M38: 0 | N38: 0 | O38: 0.0002 | P38: 3.72 | Q38: 0 | R38: 0 | S38: 0.0165 | T38: 287.48 | U38: 0.0006 | V38: 9.98 | W38: 0.8542 | X38: 14838.96 | Y38: 32210.63
A39: P8062 | B39: Engenheiro de pesca júnior | C39: mês | D39: 11220 | E39: 0.804 | F39: 9020.88 | G39: 0.0626 | H39: 702.89 | I39: 0.0022 | J39: 24.82 | K39: 0 | L39: 0 | M39: 0 | N39: 0 | O39: 0.0004 | P39: 4.63 | Q39: 0 | R39: 0 | S39: 0.0256 | T39: 287.48 | U39: 0.0009 | V39: 9.98 | W39: 0.8958 | X39: 10050.69 | Y39: 21270.69
A40: P8063 | B40: Engenheiro de pesca pleno | C40: mês | D40: 12007.3 | E40: 0.804 | F40: 9653.87 | G40: 0.0585 | H40: 702.89 | I40: 0.0021 | J40: 24.82 | K40: 0 | L40: 0 | M40: 0 | N40: 0 | O40: 0.0004 | P40: 4.63 | Q40: 0 | R40: 0 | S40: 0.0239 | T40: 287.48 | U40: 0.0008 | V40: 9.98 | W40: 0.8898 | X40: 10683.68 | Y40: 22690.98
A41: P8064 | B41: Engenheiro de pesca sênior | C41: mês | D41: 15859.45 | E41: 0.804 | F41: 12751 | G41: 0.0443 | H41: 702.89 | I41: 0.0016 | J41: 24.82 | K41: 0 | L41: 0 | M41: 0 | N41: 0 | O41: 0.0003 | P41: 4.63 | Q41: 0 | R41: 0 | S41: 0.0181 | T41: 287.48 | U41: 0.0006 | V41: 9.98 | W41: 0.8689 | X41: 13780.8 | Y41: 29640.25
A42: P8065 | B42: Engenheiro de projetos júnior | C42: mês | D42: 11220 | E42: 0.7951 | F42: 8921.02 | G42: 0.0626 | H42: 702.89 | I42: 0.0022 | J42: 24.82 | K42: 0 | L42: 0 | M42: 0 | N42: 0 | O42: 0.0003 | P42: 3.72 | Q42: 0 | R42: 0 | S42: 0.0256 | T42: 287.48 | U42: 0.0009 | V42: 9.98 | W42: 0.8868 | X42: 9949.92 | Y42: 21169.92
A43: P8066 | B43: Engenheiro de projetos pleno | C43: mês | D43: 11895.06 | E43: 0.7951 | F43: 9457.76 | G43: 0.0591 | H43: 702.89 | I43: 0.0021 | J43: 24.82 | K43: 0 | L43: 0 | M43: 0 | N43: 0 | O43: 0.0003 | P43: 3.72 | Q43: 0 | R43: 0 | S43: 0.0242 | T43: 287.48 | U43: 0.0008 | V43: 9.98 | W43: 0.8816 | X43: 10486.66 | Y43: 22381.71
A44: P8067 | B44: Engenheiro de projetos sênior | C44: mês | D44: 15077.28 | E44: 0.7951 | F44: 11987.94 | G44: 0.0466 | H44: 702.89 | I44: 0.0016 | J44: 24.82 | K44: 0 | L44: 0 | M44: 0 | N44: 0 | O44: 0.0002 | P44: 3.72 | Q44: 0 | R44: 0 | S44: 0.0191 | T44: 287.48 | U44: 0.0007 | V44: 9.98 | W44: 0.8633 | X44: 13016.84 | Y44: 28094.11
A45: P8068 | B45: Engenheiro florestal júnior | C45: mês | D45: 11220 | E45: 0.804 | F45: 9020.88 | G45: 0.0626 | H45: 702.89 | I45: 0.0022 | J45: 24.82 | K45: 0 | L45: 0 | M45: 0 | N45: 0 | O45: 0.0004 | P45: 4.63 | Q45: 0 | R45: 0 | S45: 0.0256 | T45: 287.48 | U45: 0.0009 | V45: 9.98 | W45: 0.8958 | X45: 10050.69 | Y45: 21270.69
A46: P8069 | B46: Engenheiro florestal pleno | C46: mês | D46: 12007.3 | E46: 0.804 | F46: 9653.87 | G46: 0.0585 | H46: 702.89 | I46: 0.0021 | J46: 24.82 | K46: 0 | L46: 0 | M46: 0 | N46: 0 | O46: 0.0004 | P46: 4.63 | Q46: 0 | R46: 0 | S46: 0.0239 | T46: 287.48 | U46: 0.0008 | V46: 9.98 | W46: 0.8898 | X46: 10683.68 | Y46: 22690.98
A47: P8070 | B47: Engenheiro florestal sênior | C47: mês | D47: 15859.45 | E47: 0.804 | F47: 12751 | G47: 0.0443 | H47: 702.89 | I47: 0.0016 | J47: 24.82 | K47: 0 | L47: 0 | M47: 0 | N47: 0 | O47: 0.0003 | P47: 4.63 | Q47: 0 | R47: 0 | S47: 0.0181 | T47: 287.48 | U47: 0.0006 | V47: 9.98 | W47: 0.8689 | X47: 13780.8 | Y47: 29640.25
A48: P8080 | B48: Geólogo júnior | C48: mês | D48: 10004.5 | E48: 0.8003 | F48: 8006.6 | G48: 0.0703 | H48: 702.89 | I48: 0.0025 | J48: 24.82 | K48: 0 | L48: 0 | M48: 0 | N48: 0 | O48: 0.0004 | P48: 3.73 | Q48: 0 | R48: 0 | S48: 0.0287 | T48: 287.48 | U48: 0.001 | V48: 9.98 | W48: 0.9031 | X48: 9035.51 | Y48: 19040.01
A49: P8081 | B49: Geólogo pleno | C49: mês | D49: 11923 | E49: 0.8003 | F49: 9541.97 | G49: 0.059 | H49: 702.89 | I49: 0.0021 | J49: 24.82 | K49: 0 | L49: 0 | M49: 0 | N49: 0 | O49: 0.0003 | P49: 3.73 | Q49: 0 | R49: 0 | S49: 0.0241 | T49: 287.48 | U49: 0.0008 | V49: 9.98 | W49: 0.8866 | X49: 10570.88 | Y49: 22493.88
A50: P8082 | B50: Geólogo sênior | C50: mês | D50: 13841.49 | E50: 0.8003 | F50: 11077.35 | G50: 0.0508 | H50: 702.89 | I50: 0.0018 | J50: 24.82 | K50: 0 | L50: 0 | M50: 0 | N50: 0 | O50: 0.0003 | P50: 3.73 | Q50: 0 | R50: 0 | S50: 0.0208 | T50: 287.48 | U50: 0.0007 | V50: 9.98 | W50: 0.8746 | X50: 12106.25 | Y50: 25947.75
A51: P8092 | B51: Jornalista júnior | C51: mês | D51: 2844.43 | E51: 0.7961 | F51: 2264.45 | G51: 0.2471 | H51: 702.89 | I51: 0.0087 | J51: 24.82 | K51: 0 | L51: 0 | M51: 0.017 | N51: 48.37 | O51: 0.001 | P51: 2.88 | Q51: 0 | R51: 0 | S51: 0.1011 | T51: 287.48 | U51: 0.0035 | V51: 9.98 | W51: 1.1745 | X51: 3340.86 | Y51: 6185.29
A52: P8093 | B52: Jornalista pleno | C52: mês | D52: 3792.57 | E52: 0.7961 | F52: 3019.27 | G52: 0.1853 | H52: 702.89 | I52: 0.0065 | J52: 24.82 | K52: 0 | L52: 0 | M52: 0 | N52: 0 | O52: 0.0008 | P52: 2.88 | Q52: 0 | R52: 0 | S52: 0.0758 | T52: 287.48 | U52: 0.0026 | V52: 9.98 | W52: 1.0672 | X52: 4047.32 | Y52: 7839.89
A53: P8094 | B53: Jornalista sênior | C53: mês | D53: 7316.95 | E53: 0.7961 | F53: 5825.02 | G53: 0.0961 | H53: 702.89 | I53: 0.0034 | J53: 24.82 | K53: 0 | L53: 0 | M53: 0 | N53: 0 | O53: 0.0004 | P53: 2.88 | Q53: 0 | R53: 0 | S53: 0.0393 | T53: 287.48 | U53: 0.0014 | V53: 9.98 | W53: 0.9366 | X53: 6853.07 | Y53: 14170.02
A54: P8098 | B54: Laboratorista | C54: mês | D54: 2199.57 | E54: 0.8025 | F54: 1765.15 | G54: 0.3196 | H54: 702.89 | I54: 0.0127 | J54: 27.83 | K54: 0 | L54: 0 | M54: 0.0396 | N54: 87.06 | O54: 0.0019 | P54: 4.22 | Q54: 0 | R54: 0 | S54: 0.1307 | T54: 287.48 | U54: 0.0045 | V54: 9.98 | W54: 1.3114 | X54: 2884.61 | Y54: 5084.18
A55: P8102 | B55: Médico veterinário | C55: mês | D55: 11220 | E55: 0.7922 | F55: 8888.48 | G55: 0.0626 | H55: 702.89 | I55: 0.0022 | J55: 24.82 | K55: 0 | L55: 0 | M55: 0 | N55: 0 | O55: 0.0003 | P55: 2.82 | Q55: 0 | R55: 0 | S55: 0.0256 | T55: 287.48 | U55: 0.0009 | V55: 9.98 | W55: 0.8838 | X55: 9916.48 | Y55: 21136.48
A56: P8106 | B56: Meteorologista júnior | C56: mês | D56: 5087.64 | E56: 0.7921 | F56: 4029.92 | G56: 0.1382 | H56: 702.89 | I56: 0.0049 | J56: 24.82 | K56: 0 | L56: 0 | M56: 0 | N56: 0 | O56: 0.0005 | P56: 2.69 | Q56: 0 | R56: 0 | S56: 0.0565 | T56: 287.48 | U56: 0.002 | V56: 9.98 | W56: 0.9941 | X56: 5057.78 | Y56: 10145.42
A57: P8107 | B57: Meteorologista pleno | C57: mês | D57: 6783.52 | E57: 0.7921 | F57: 5373.23 | G57: 0.1036 | H57: 702.89 | I57: 0.0037 | J57: 24.82 | K57: 0 | L57: 0 | M57: 0 | N57: 0 | O57: 0.0004 | P57: 2.69 | Q57: 0 | R57: 0 | S57: 0.0424 | T57: 287.48 | U57: 0.0015 | V57: 9.98 | W57: 0.9436 | X57: 6401.08 | Y57: 13184.61
A58: P8108 | B58: Meteorologista sênior | C58: mês | D58: 11511.99 | E58: 0.7921 | F58: 9118.64 | G58: 0.0611 | H58: 702.89 | I58: 0.0022 | J58: 24.82 | K58: 0 | L58: 0 | M58: 0 | N58: 0 | O58: 0.0002 | P58: 2.69 | Q58: 0 | R58: 0 | S58: 0.025 | T58: 287.48 | U58: 0.0009 | V58: 9.98 | W58: 0.8814 | X58: 10146.5 | Y58: 21658.49
A59: P8112 | B59: Motorista de caminhão | C59: mês | D59: 2197.64 | E59: 0.8045 | F59: 1768 | G59: 0.3198 | H59: 702.89 | I59: 0.0137 | J59: 30.22 | K59: 0 | L59: 0 | M59: 0.0397 | N59: 87.17 | O59: 0.0021 | P59: 4.57 | Q59: 0 | R59: 0 | S59: 0.1308 | T59: 287.48 | U59: 0.0045 | V59: 9.98 | W59: 1.3152 | X59: 2890.32 | Y59: 5087.96
A60: P8113 | B60: Motorista de veículo leve | C60: mês | D60: 1972.46 | E60: 0.801 | F60: 1579.94 | G60: 0.3564 | H60: 702.89 | I60: 0.0153 | J60: 30.22 | K60: 0 | L60: 0 | M60: 0.051 | N60: 100.68 | O60: 0.0021 | P60: 4.23 | Q60: 0 | R60: 0 | S60: 0.1457 | T60: 287.48 | U60: 0.0051 | V60: 9.98 | W60: 1.3767 | X60: 2715.43 | Y60: 4687.88
A61: P8117 | B61: Oceanógrafo júnior | C61: mês | D61: 4737.63 | E61: 0.8002 | F61: 3791.05 | G61: 0.1484 | H61: 702.89 | I61: 0.0052 | J61: 24.82 | K61: 0 | L61: 0 | M61: 0 | N61: 0 | O61: 0.0007 | P61: 3.52 | Q61: 0 | R61: 0 | S61: 0.0607 | T61: 287.48 | U61: 0.0021 | V61: 9.98 | W61: 1.0173 | X61: 4819.75 | Y61: 9557.38
A62: P8118 | B62: Oceanógrafo pleno | C62: mês | D62: 6316.84 | E62: 0.8002 | F62: 5054.74 | G62: 0.1113 | H62: 702.89 | I62: 0.0039 | J62: 24.82 | K62: 0 | L62: 0 | M62: 0 | N62: 0 | O62: 0.0006 | P62: 3.52 | Q62: 0 | R62: 0 | S62: 0.0455 | T62: 287.48 | U62: 0.0016 | V62: 9.98 | W62: 0.963 | X62: 6083.43 | Y62: 12400.27
A63: P8119 | B63: Oceanógrafo sênior | C63: mês | D63: 11433.23 | E63: 0.8002 | F63: 9148.87 | G63: 0.0615 | H63: 702.89 | I63: 0.0022 | J63: 24.82 | K63: 0 | L63: 0 | M63: 0 | N63: 0 | O63: 0.0003 | P63: 3.52 | Q63: 0 | R63: 0 | S63: 0.0251 | T63: 287.48 | U63: 0.0009 | V63: 9.98 | W63: 0.8902 | X63: 10177.56 | Y63: 21610.79
A64: P8129 | B64: Pedagogo júnior | C64: mês | D64: 2381.38 | E64: 0.8221 | F64: 1957.74 | G64: 0.2952 | H64: 702.89 | I64: 0.0104 | J64: 24.82 | K64: 0 | L64: 0 | M64: 0.032 | N64: 76.15 | O64: 0.0033 | P64: 7.79 | Q64: 0 | R64: 0 | S64: 0.1207 | T64: 287.48 | U64: 0.0042 | V64: 9.98 | W64: 1.2878 | X64: 3066.85 | Y64: 5448.23
A65: P8130 | B65: Pedagogo pleno | C65: mês | D65: 3175.18 | E65: 0.8221 | F65: 2610.31 | G65: 0.2214 | H65: 702.89 | I65: 0.0078 | J65: 24.82 | K65: 0 | L65: 0 | M65: 0.009 | N65: 28.52 | O65: 0.0025 | P65: 7.79 | Q65: 0 | R65: 0 | S65: 0.0905 | T65: 287.48 | U65: 0.0031 | V65: 9.98 | W65: 1.1564 | X65: 3671.8 | Y65: 6846.98
A66: P8131 | B66: Pedagogo sênior | C66: mês | D66: 4835.3 | E66: 0.8221 | F66: 3975.1 | G66: 0.1454 | H66: 702.89 | I66: 0.0051 | J66: 24.82 | K66: 0 | L66: 0 | M66: 0 | N66: 0 | O66: 0.0016 | P66: 7.79 | Q66: 0 | R66: 0 | S66: 0.0595 | T66: 287.48 | U66: 0.0021 | V66: 9.98 | W66: 1.0357 | X66: 5008.07 | Y66: 9843.37
A67: P8135 | B67: Secretária | C67: mês | D67: 2466.16 | E67: 0.7987 | F67: 1969.72 | G67: 0.285 | H67: 702.89 | I67: 0 | J67: 0 | K67: 0 | L67: 0 | M67: 0.0288 | N67: 71.06 | O67: 0.0014 | P67: 3.46 | Q67: 0 | R67: 0 | S67: 0.1166 | T67: 287.48 | U67: 0.004 | V67: 9.98 | W67: 1.2346 | X67: 3044.6 | Y67: 5510.77
A68: P8139 | B68: Sondador | C68: mês | D68: 1920.73 | E68: 0.7984 | F68: 1533.51 | G68: 0.366 | H68: 702.89 | I68: 0.0145 | J68: 27.83 | K68: 0 | L68: 0 | M68: 0.054 | N68: 103.79 | O68: 0.0018 | P68: 3.47 | Q68: 0 | R68: 0 | S68: 0.1497 | T68: 287.48 | U68: 0.0052 | V68: 9.98 | W68: 1.3895 | X68: 2668.95 | Y68: 4589.68
A69: P8143 | B69: Técnico ambiental | C69: mês | D69: 2753.27 | E69: 0.8043 | F69: 2214.46 | G69: 0.2553 | H69: 702.89 | I69: 0.0101 | J69: 27.83 | K69: 0 | L69: 0 | M69: 0.0196 | N69: 53.84 | O69: 0.0019 | P69: 5.22 | Q69: 0 | R69: 0 | S69: 0.1044 | T69: 287.48 | U69: 0.0036 | V69: 9.98 | W69: 1.1992 | X69: 3301.7 | Y69: 6054.97
A70: P8147 | B70: Técnico de obras | C70: mês | D70: 3136.59 | E70: 0.8002 | F70: 2509.9 | G70: 0.2241 | H70: 702.89 | I70: 0.0089 | J70: 27.83 | K70: 0 | L70: 0 | M70: 0.0098 | N70: 30.84 | O70: 0.0012 | P70: 3.85 | Q70: 0 | R70: 0 | S70: 0.0917 | T70: 287.48 | U70: 0.0032 | V70: 9.98 | W70: 1.1391 | X70: 3572.76 | Y70: 6709.35
A71: P8151 | B71: Técnico de segurança do trabalho | C71: mês | D71: 4457.84 | E71: 0.807 | F71: 3597.48 | G71: 0.1577 | H71: 702.89 | I71: 0.0062 | J71: 27.83 | K71: 0 | L71: 0 | M71: 0 | N71: 0 | O71: 0.0011 | P71: 4.86 | Q71: 0 | R71: 0 | S71: 0.0645 | T71: 287.48 | U71: 0.0022 | V71: 9.98 | W71: 1.0387 | X71: 4630.52 | Y71: 9088.36
A72: P8155 | B72: Técnico em geoprocessamento | C72: mês | D72: 2657.22 | E72: 0.7966 | F72: 2116.75 | G72: 0.2645 | H72: 702.89 | I72: 0.0105 | J72: 27.83 | K72: 0 | L72: 0 | M72: 0.0224 | N72: 59.6 | O72: 0.0016 | P72: 4.28 | Q72: 0 | R72: 0 | S72: 0.1082 | T72: 287.48 | U72: 0.0038 | V72: 9.98 | W72: 1.2076 | X72: 3208.8 | Y72: 5866.03
A73: P8159 | B73: Técnico em informática - programador | C73: mês | D73: 4362.56 | E73: 0.7999 | F73: 3489.61 | G73: 0.1611 | H73: 702.89 | I73: 0 | J73: 0 | K73: 0 | L73: 0 | M73: 0 | N73: 0 | O73: 0.0009 | P73: 3.83 | Q73: 0 | R73: 0 | S73: 0.0659 | T73: 287.48 | U73: 0.0023 | V73: 9.98 | W73: 1.0301 | X73: 4493.8 | Y73: 8856.35
A74: P8163 | B74: Topógrafo | C74: mês | D74: 2324.62 | E74: 0.8046 | F74: 1870.39 | G74: 0.3024 | H74: 702.89 | I74: 0.012 | J74: 27.83 | K74: 0 | L74: 0 | M74: 0.0342 | N74: 79.55 | O74: 0.002 | P74: 4.69 | Q74: 0 | R74: 0 | S74: 0.1237 | T74: 287.48 | U74: 0.0043 | V74: 9.98 | W74: 1.2831 | X74: 2982.82 | Y74: 5307.44
A75: P8167 | B75: Arquivista júnior | C75: mês | D75: 2285.68 | E75: 0.7993 | F75: 1826.95 | G75: 0.3075 | H75: 702.89 | I75: 0 | J75: 0 | K75: 0 | L75: 0 | M75: 0.0358 | N75: 81.89 | O75: 0.0016 | P75: 3.55 | Q75: 0 | R75: 0 | S75: 0.1258 | T75: 287.48 | U75: 0.0044 | V75: 9.98 | W75: 1.2743 | X75: 2912.74 | Y75: 5198.42
A76: P8168 | B76: Arquivista pleno | C76: mês | D76: 3047.58 | E76: 0.7993 | F76: 2435.93 | G76: 0.2306 | H76: 702.89 | I76: 0 | J76: 0 | K76: 0 | L76: 0 | M76: 0.0119 | N76: 36.18 | O76: 0.0012 | P76: 3.55 | Q76: 0 | R76: 0 | S76: 0.0943 | T76: 287.48 | U76: 0.0033 | V76: 9.98 | W76: 1.1406 | X76: 3476.01 | Y76: 6523.58
A77: P8169 | B77: Arquivista sênior | C77: mês | D77: 4764.54 | E77: 0.7993 | F77: 3808.29 | G77: 0.1475 | H77: 702.89 | I77: 0 | J77: 0 | K77: 0 | L77: 0 | M77: 0 | N77: 0 | O77: 0.0007 | P77: 3.55 | Q77: 0 | R77: 0 | S77: 0.0603 | T77: 287.48 | U77: 0.0021 | V77: 9.98 | W77: 1.01 | X77: 4812.19 | Y77: 9576.73
A78: P8173 | B78: Administrador júnior | C78: mês | D78: 3196.19 | E78: 0.7975 | F78: 2548.96 | G78: 0.2199 | H78: 702.89 | I78: 0 | J78: 0 | K78: 0 | L78: 0 | M78: 0.0085 | N78: 27.26 | O78: 0.0012 | P78: 3.9 | Q78: 0 | R78: 0 | S78: 0.0899 | T78: 287.48 | U78: 0.0031 | V78: 9.98 | W78: 1.1202 | X78: 3580.48 | Y78: 6776.68
A79: P8174 | B79: Administrador pleno | C79: mês | D79: 4261.59 | E79: 0.7975 | F79: 3398.62 | G79: 0.1649 | H79: 702.89 | I79: 0 | J79: 0 | K79: 0 | L79: 0 | M79: 0 | N79: 0 | O79: 0.0009 | P79: 3.9 | Q79: 0 | R79: 0 | S79: 0.0675 | T79: 287.48 | U79: 0.0023 | V79: 9.98 | W79: 1.0332 | X79: 4402.88 | Y79: 8664.47
A80: P8175 | B80: Administrador sênior | C80: mês | D80: 7536.06 | E80: 0.7975 | F80: 6010.01 | G80: 0.0933 | H80: 702.89 | I80: 0 | J80: 0 | K80: 0 | L80: 0 | M80: 0 | N80: 0 | O80: 0.0005 | P80: 3.9 | Q80: 0 | R80: 0 | S80: 0.0381 | T80: 287.48 | U80: 0.0013 | V80: 9.98 | W80: 0.9308 | X80: 7014.27 | Y80: 14550.33
A81: P8180 | B81: Engenheiro agrimensor júnior | C81: mês | D81: 11220 | E81: 0.7958 | F81: 8928.88 | G81: 0.0626 | H81: 702.89 | I81: 0.0022 | J81: 24.82 | K81: 0 | L81: 0 | M81: 0 | N81: 0 | O81: 0.0004 | P81: 4.39 | Q81: 0 | R81: 0 | S81: 0.0256 | T81: 287.48 | U81: 0.0009 | V81: 9.98 | W81: 0.8876 | X81: 9958.44 | Y81: 21178.44
A82: P8181 | B82: Engenheiro agrimensor pleno | C82: mês | D82: 11653.18 | E82: 0.7958 | F82: 9273.6 | G82: 0.0603 | H82: 702.89 | I82: 0.0021 | J82: 24.82 | K82: 0 | L82: 0 | M82: 0 | N82: 0 | O82: 0.0004 | P82: 4.39 | Q82: 0 | R82: 0 | S82: 0.0247 | T82: 287.48 | U82: 0.0009 | V82: 9.98 | W82: 0.8842 | X82: 10303.16 | Y82: 21956.35
A83: P8182 | B83: Engenheiro agrimensor sênior | C83: mês | D83: 13092.54 | E83: 0.7958 | F83: 10419.05 | G83: 0.0537 | H83: 702.89 | I83: 0.0019 | J83: 24.82 | K83: 0 | L83: 0 | M83: 0 | N83: 0 | O83: 0.0003 | P83: 4.39 | Q83: 0 | R83: 0 | S83: 0.022 | T83: 287.48 | U83: 0.0008 | V83: 9.98 | W83: 0.8744 | X83: 11448.61 | Y83: 24541.15
A84: P8183 | B84: Geógrafo júnior | C84: mês | D84: 3543.97 | E84: 0.795 | F84: 2817.46 | G84: 0.1983 | H84: 702.89 | I84: 0.007 | J84: 24.82 | K84: 0 | L84: 0 | M84: 0.0018 | N84: 6.39 | O84: 0.0009 | P84: 3.2 | Q84: 0 | R84: 0 | S84: 0.0811 | T84: 287.48 | U84: 0.0028 | V84: 9.98 | W84: 1.087 | X84: 3852.22 | Y84: 7396.19
A85: P8184 | B85: Geógrafo pleno | C85: mês | D85: 4725.29 | E85: 0.795 | F85: 3756.61 | G85: 0.1488 | H85: 702.89 | I85: 0.0053 | J85: 24.82 | K85: 0 | L85: 0 | M85: 0 | N85: 0 | O85: 0.0007 | P85: 3.2 | Q85: 0 | R85: 0 | S85: 0.0608 | T85: 287.48 | U85: 0.0021 | V85: 9.98 | W85: 1.0126 | X85: 4784.98 | Y85: 9510.27
A86: P8185 | B86: Geógrafo sênior | C86: mês | D86: 9078 | E86: 0.795 | F86: 7217.01 | G86: 0.0774 | H86: 702.89 | I86: 0.0027 | J86: 24.82 | K86: 0 | L86: 0 | M86: 0 | N86: 0 | O86: 0.0004 | P86: 3.2 | Q86: 0 | R86: 0 | S86: 0.0317 | T86: 287.48 | U86: 0.0011 | V86: 9.98 | W86: 0.9083 | X86: 8245.38 | Y86: 17323.38
A87: P8186 | B87: Antropólogo júnior | C87: mês | D87: 3046.53 | E87: 0.8188 | F87: 2494.5 | G87: 0.2307 | H87: 702.89 | I87: 0.0081 | J87: 24.82 | K87: 0 | L87: 0 | M87: 0.0119 | N87: 36.24 | O87: 0.0019 | P87: 5.69 | Q87: 0 | R87: 0 | S87: 0.0944 | T87: 287.48 | U87: 0.0033 | V87: 9.98 | W87: 1.1691 | X87: 3561.6 | Y87: 6608.13
A88: P8187 | B88: Antropólogo pleno | C88: mês | D88: 4062.04 | E88: 0.8188 | F88: 3326 | G88: 0.173 | H88: 702.89 | I88: 0.0061 | J88: 24.82 | K88: 0 | L88: 0 | M88: 0 | N88: 0 | O88: 0.0014 | P88: 5.69 | Q88: 0 | R88: 0 | S88: 0.0708 | T88: 287.48 | U88: 0.0025 | V88: 9.98 | W88: 1.0726 | X88: 4356.86 | Y88: 8418.9
A89: P8188 | B89: Antropólogo sênior | C89: mês | D89: 6052.03 | E89: 0.8188 | F89: 4955.4 | G89: 0.1161 | H89: 702.89 | I89: 0.0041 | J89: 24.82 | K89: 0 | L89: 0 | M89: 0 | N89: 0 | O89: 0.0009 | P89: 5.69 | Q89: 0 | R89: 0 | S89: 0.0475 | T89: 287.48 | U89: 0.0016 | V89: 9.98 | W89: 0.9891 | X89: 5986.27 | Y89: 12038.3
A90: P8189 | B90: Arqueólogo júnior | C90: mês | D90: 2880.66 | E90: 0.8 | F90: 2304.53 | G90: 0.244 | H90: 702.89 | I90: 0.0086 | J90: 24.82 | K90: 0 | L90: 0 | M90: 0.016 | N90: 46.19 | O90: 0.0015 | P90: 4.25 | Q90: 0 | R90: 0 | S90: 0.0998 | T90: 287.48 | U90: 0.0035 | V90: 9.98 | W90: 1.1734 | X90: 3380.15 | Y90: 6260.81
A91: P8190 | B91: Arqueólogo pleno | C91: mês | D91: 3840.88 | E91: 0.8 | F91: 3072.71 | G91: 0.183 | H91: 702.89 | I91: 0.0065 | J91: 24.82 | K91: 0 | L91: 0 | M91: 0 | N91: 0 | O91: 0.0011 | P91: 4.25 | Q91: 0 | R91: 0 | S91: 0.0748 | T91: 287.48 | U91: 0.0026 | V91: 9.98 | W91: 1.068 | X91: 4102.13 | Y91: 7943.01
A92: P8191 | B92: Arqueólogo sênior | C92: mês | D92: 5758.93 | E92: 0.8 | F92: 4607.14 | G92: 0.1221 | H92: 702.89 | I92: 0.0043 | J92: 24.82 | K92: 0 | L92: 0 | M92: 0 | N92: 0 | O92: 0.0007 | P92: 4.25 | Q92: 0 | R92: 0 | S92: 0.0499 | T92: 287.48 | U92: 0.0017 | V92: 9.98 | W92: 0.9788 | X92: 5636.57 | Y92: 11395.5
A93: P8192 | B93: Historiador júnior | C93: mês | D93: 3563.77 | E93: 0.8264 | F93: 2945.1 | G93: 0.1972 | H93: 702.89 | I93: 0.007 | J93: 24.82 | K93: 0 | L93: 0 | M93: 0.0015 | N93: 5.21 | O93: 0.0017 | P93: 5.97 | Q93: 0 | R93: 0 | S93: 0.0807 | T93: 287.48 | U93: 0.0028 | V93: 9.98 | W93: 1.1172 | X93: 3981.45 | Y93: 7545.23
A94: P8193 | B94: Historiador pleno | C94: mês | D94: 4751.7 | E94: 0.8264 | F94: 3926.8 | G94: 0.1479 | H94: 702.89 | I94: 0.0052 | J94: 24.82 | K94: 0 | L94: 0 | M94: 0 | N94: 0 | O94: 0.0013 | P94: 5.97 | Q94: 0 | R94: 0 | S94: 0.0605 | T94: 287.48 | U94: 0.0021 | V94: 9.98 | W94: 1.0434 | X94: 4957.95 | Y94: 9709.65
A95: P8194 | B95: Historiador sênior | C95: mês | D95: 7604.92 | E95: 0.8264 | F95: 6284.71 | G95: 0.0924 | H95: 702.89 | I95: 0.0033 | J95: 24.82 | K95: 0 | L95: 0 | M95: 0 | N95: 0 | O95: 0.0008 | P95: 5.97 | Q95: 0 | R95: 0 | S95: 0.0378 | T95: 287.48 | U95: 0.0013 | V95: 9.98 | W95: 0.962 | X95: 7315.85 | Y95: 14920.77
A96: P8195 | B96: Paleontólogo júnior | C96: mês | D96: 3046.53 | E96: 0.8188 | F96: 2494.5 | G96: 0.2307 | H96: 702.89 | I96: 0.0081 | J96: 24.82 | K96: 0 | L96: 0 | M96: 0.0119 | N96: 36.24 | O96: 0.0019 | P96: 5.69 | Q96: 0 | R96: 0 | S96: 0.0944 | T96: 287.48 | U96: 0.0033 | V96: 9.98 | W96: 1.1691 | X96: 3561.6 | Y96: 6608.13
A97: P8196 | B97: Paleontólogo pleno | C97: mês | D97: 4062.04 | E97: 0.8188 | F97: 3326 | G97: 0.173 | H97: 702.89 | I97: 0.0061 | J97: 24.82 | K97: 0 | L97: 0 | M97: 0 | N97: 0 | O97: 0.0014 | P97: 5.69 | Q97: 0 | R97: 0 | S97: 0.0708 | T97: 287.48 | U97: 0.0025 | V97: 9.98 | W97: 1.0726 | X97: 4356.86 | Y97: 8418.9
A98: P8197 | B98: Paleontólogo sênior | C98: mês | D98: 6052.03 | E98: 0.8188 | F98: 4955.4 | G98: 0.1161 | H98: 702.89 | I98: 0.0041 | J98: 24.82 | K98: 0 | L98: 0 | M98: 0 | N98: 0 | O98: 0.0009 | P98: 5.69 | Q98: 0 | R98: 0 | S98: 0.0475 | T98: 287.48 | U98: 0.0016 | V98: 9.98 | W98: 0.9891 | X98: 5986.27 | Y98: 12038.3
A99: P8198 | B99: Sociólogo júnior | C99: mês | D99: 3780.56 | E99: 0.8276 | F99: 3128.79 | G99: 0.1859 | H99: 702.89 | I99: 0.0066 | J99: 24.82 | K99: 0 | L99: 0 | M99: 0 | N99: 0 | O99: 0.0016 | P99: 6.07 | Q99: 0 | R99: 0 | S99: 0.076 | T99: 287.48 | U99: 0.0026 | V99: 9.98 | W99: 1.1004 | X99: 4160.03 | Y99: 7940.59
A100: P8199 | B100: Sociólogo pleno | C100: mês | D100: 5040.75 | E100: 0.8276 | F100: 4171.72 | G100: 0.1394 | H100: 702.89 | I100: 0.0049 | J100: 24.82 | K100: 0 | L100: 0 | M100: 0 | N100: 0 | O100: 0.0012 | P100: 6.07 | Q100: 0 | R100: 0 | S100: 0.057 | T100: 287.48 | U100: 0.002 | V100: 9.98 | W100: 1.0322 | X100: 5202.96 | Y100: 10243.71
A101: P8200 | B101: Sociólogo sênior | C101: mês | D101: 7810.53 | E101: 0.8276 | F101: 6463.99 | G101: 0.09 | H101: 702.89 | I101: 0.0032 | J101: 24.82 | K101: 0 | L101: 0 | M101: 0 | N101: 0 | O101: 0.0008 | P101: 6.07 | Q101: 0 | R101: 0 | S101: 0.0368 | T101: 287.48 | U101: 0.0013 | V101: 9.98 | W101: 0.9596 | X101: 7495.23 | Y101: 15305.76
A102: P8264 | B102: Motorista de veículo leve - horista | C102: h | D102: 8.97 | E102: 1.1318 | F102: 10.15 | G102: 0.4296 | H102: 3.85 | I102: 0.0185 | J102: 0.17 | K102: 0 | L102: 0 | M102: 0.0615 | N102: 0.55 | O102: 0.0026 | P102: 0.02 | Q102: 0 | R102: 0 | S102: 0.1757 | T102: 1.58 | U102: 0.0061 | V102: 0.05 | W102: 1.8258 | X102: 16.37 | Y102: 25.34
B103: Fonte: FGV IBRE

Sheet DNIT TC - 072023 (hidden)
A1: Código | B1: Categoria | C1: Unid. | D1: Salário | E1: Encargos Sociais | G1: Encargos Complementares | Q1: Encargos Adicionais | W1: Encargos Totais | Y1: Valor Total
G2: Alimentação | I2: EPI | K2: Ferramenta | M2: Transporte | O2: Exame Ocupacional | Q2: Cesta Básica | S2: Assistência Médica | U2: Seguro de Vida
D3: R$ | E3: % | F3: R$ | G3: % | H3: R$ | I3: % | J3: R$ | K3: % | L3: R$ | M3: % | N3: R$ | O3: % | P3: R$ | Q3: % | R3: R$ | S3: % | T3: R$ | U3: % | V3: R$ | W3: % | X3: R$ | Y3: R$
A4: P8001 | B4: Advogado júnior | C4: mês | D4: 4281.78 | E4: 0.7952 | F4: 3404.88 | G4: 0.1642 | H4: 702.89 | I4: 0.0058 | J4: 24.8 | K4: 0 | L4: 0 | M4: 0 | N4: 0 | O4: 0.0007 | P4: 3.02 | Q4: 0 | R4: 0 | S4: 0.0671 | T4: 287.2 | U4: 0.0023 | V4: 9.98 | W4: 1.0353 | X4: 4432.76 | Y4: 8714.55
A5: P8002 | B5: Advogado pleno | C5: mês | D5: 5709.05 | E5: 0.7952 | F5: 4539.83 | G5: 0.1231 | H5: 702.89 | I5: 0.0043 | J5: 24.8 | K5: 0 | L5: 0 | M5: 0 | N5: 0 | O5: 0.0005 | P5: 3.02 | Q5: 0 | R5: 0 | S5: 0.0503 | T5: 287.2 | U5: 0.0017 | V5: 9.98 | W5: 0.9752 | X5: 5567.72 | Y5: 11276.77
A6: P8003 | B6: Advogado sênior | C6: mês | D6: 10130.91 | E6: 0.7952 | F6: 8056.1 | G6: 0.0694 | H6: 702.89 | I6: 0.0024 | J6: 24.8 | K6: 0 | L6: 0 | M6: 0 | N6: 0 | O6: 0.0003 | P6: 3.02 | Q6: 0 | R6: 0 | S6: 0.0283 | T6: 287.2 | U6: 0.001 | V6: 9.98 | W6: 0.8967 | X6: 9083.99 | Y6: 19214.9
A7: P8007 | B7: Analista de desenvolvimento de sistemas júnior | C7: mês | D7: 4013.75 | E7: 0.7941 | F7: 3187.32 | G7: 0.1751 | H7: 702.89 | I7: 0 | J7: 0 | K7: 0 | L7: 0 | M7: 0 | N7: 0 | O7: 0.0009 | P7: 3.46 | Q7: 0 | R7: 0 | S7: 0.0716 | T7: 287.2 | U7: 0.0025 | V7: 9.98 | W7: 1.0441 | X7: 4190.85 | Y7: 8204.59
A8: P8008 | B8: Analista de desenvolvimento de sistemas pleno | C8: mês | D8: 5130.15 | E8: 0.7941 | F8: 4073.85 | G8: 0.137 | H8: 702.89 | I8: 0 | J8: 0 | K8: 0 | L8: 0 | M8: 0 | N8: 0 | O8: 0.0007 | P8: 3.46 | Q8: 0 | R8: 0 | S8: 0.056 | T8: 287.2 | U8: 0.0019 | V8: 9.98 | W8: 0.9897 | X8: 5077.38 | Y8: 10207.53
A9: P8009 | B9: Analista de desenvolvimento de sistemas sênior | C9: mês | D9: 9196.66 | E9: 0.7941 | F9: 7303.07 | G9: 0.0764 | H9: 702.89 | I9: 0 | J9: 0 | K9: 0 | L9: 0 | M9: 0 | N9: 0 | O9: 0.0004 | P9: 3.46 | Q9: 0 | R9: 0 | S9: 0.0312 | T9: 287.2 | U9: 0.0011 | V9: 9.98 | W9: 0.9032 | X9: 8306.6 | Y9: 17503.26
A10: P8013 | B10: Arquiteto júnior | C10: mês | D10: 11220 | E10: 0.793 | F10: 8897.46 | G10: 0.0626 | H10: 702.89 | I10: 0.0022 | J10: 24.8 | K10: 0 | L10: 0 | M10: 0 | N10: 0 | O10: 0.0003 | P10: 3.43 | Q10: 0 | R10: 0 | S10: 0.0256 | T10: 287.2 | U10: 0.0009 | V10: 9.98 | W10: 0.8846 | X10: 9925.76 | Y10: 21145.76
A11: P8014 | B11: Arquiteto pleno | C11: mês | D11: 11626.7 | E11: 0.793 | F11: 9219.97 | G11: 0.0605 | H11: 702.89 | I11: 0.0021 | J11: 24.8 | K11: 0 | L11: 0 | M11: 0 | N11: 0 | O11: 0.0003 | P11: 3.43 | Q11: 0 | R11: 0 | S11: 0.0247 | T11: 287.2 | U11: 0.0009 | V11: 9.98 | W11: 0.8814 | X11: 10248.27 | Y11: 21874.97
A12: P8015 | B12: Arquiteto sênior | C12: mês | D12: 14229.73 | E12: 0.793 | F12: 11284.18 | G12: 0.0494 | H12: 702.89 | I12: 0.0017 | J12: 24.8 | K12: 0 | L12: 0 | M12: 0 | N12: 0 | O12: 0.0002 | P12: 3.43 | Q12: 0 | R12: 0 | S12: 0.0202 | T12: 287.2 | U12: 0.0007 | V12: 9.98 | W12: 0.8653 | X12: 12312.48 | Y12: 26542.21
A13: P8019 | B13: Assistente social júnior | C13: mês | D13: 3020.78 | E13: 0.7998 | F13: 2416.02 | G13: 0.2327 | H13: 702.89 | I13: 0.0082 | J13: 24.8 | K13: 0 | L13: 0 | M13: 0.0125 | N13: 37.78 | O13: 0.0016 | P13: 4.7 | Q13: 0 | R13: 0 | S13: 0.0951 | T13: 287.2 | U13: 0.0033 | V13: 9.98 | W13: 1.1531 | X13: 3483.38 | Y13: 6504.16
A14: P8020 | B14: Assistente social pleno | C14: mês | D14: 4027.71 | E14: 0.7998 | F14: 3221.36 | G14: 0.1745 | H14: 702.89 | I14: 0.0062 | J14: 24.8 | K14: 0 | L14: 0 | M14: 0 | N14: 0 | O14: 0.0012 | P14: 4.7 | Q14: 0 | R14: 0 | S14: 0.0713 | T14: 287.2 | U14: 0.0025 | V14: 9.98 | W14: 1.0554 | X14: 4250.93 | Y14: 8278.64
A15: P8021 | B15: Assistente social sênior | C15: mês | D15: 6830.21 | E15: 0.7998 | F15: 5462.8 | G15: 0.1029 | H15: 702.89 | I15: 0.0036 | J15: 24.8 | K15: 0 | L15: 0 | M15: 0 | N15: 0 | O15: 0.0007 | P15: 4.7 | Q15: 0 | R15: 0 | S15: 0.042 | T15: 287.2 | U15: 0.0015 | V15: 9.98 | W15: 0.9505 | X15: 6492.37 | Y15: 13322.58
A16: P8025 | B16: Auxiliar | C16: mês | D16: 1467.63 | E16: 0.8047 | F16: 1181 | G16: 0.4789 | H16: 702.89 | I16: 0.0206 | J16: 30.19 | K16: 0.0011 | L16: 1.55 | M16: 0.0892 | N16: 130.97 | O16: 0.0045 | P16: 6.67 | Q16: 0 | R16: 0 | S16: 0.1957 | T16: 287.2 | U16: 0.0068 | V16: 9.98 | W16: 1.6015 | X16: 2350.46 | Y16: 3818.09
A17: P8026 | B17: Auxiliar administrativo | C17: mês | D17: 1772.08 | E17: 0.8012 | F17: 1419.79 | G17: 0.3966 | H17: 702.89 | I17: 0 | J17: 0 | K17: 0 | L17: 0 | M17: 0.0636 | N17: 112.71 | O17: 0.0022 | P17: 3.83 | Q17: 0 | R17: 0 | S17: 0.1621 | T17: 287.2 | U17: 0.0056 | V17: 9.98 | W17: 1.4313 | X17: 2536.41 | Y17: 4308.49
A18: P8027 | B18: Auxiliar de laboratório | C18: mês | D18: 1618.28 | E18: 0.8008 | F18: 1295.92 | G18: 0.4343 | H18: 702.89 | I18: 0.0187 | J18: 30.19 | K18: 0.002 | L18: 3.19 | M18: 0.0753 | N18: 121.94 | O18: 0.0027 | P18: 4.31 | Q18: 0 | R18: 0 | S18: 0.1775 | T18: 287.2 | U18: 0.0062 | V18: 9.98 | W18: 1.5174 | X18: 2455.62 | Y18: 4073.9
A19: P8028 | B19: Auxiliar de topografia | C19: mês | D19: 1467.63 | E19: 0.8017 | F19: 1176.6 | G19: 0.4789 | H19: 702.89 | I19: 0.0206 | J19: 30.19 | K19: 0.0009 | L19: 1.35 | M19: 0.0892 | N19: 130.97 | O19: 0.0032 | P19: 4.7 | Q19: 0 | R19: 0 | S19: 0.1957 | T19: 287.2 | U19: 0.0068 | V19: 9.98 | W19: 1.5971 | X19: 2343.88 | Y19: 3811.52
A20: P8032 | B20: Biólogo júnior | C20: mês | D20: 3175.35 | E20: 0.7956 | F20: 2526.31 | G20: 0.2214 | H20: 702.89 | I20: 0.0078 | J20: 24.8 | K20: 0 | L20: 0 | M20: 0.009 | N20: 28.51 | O20: 0.0012 | P20: 3.77 | Q20: 0 | R20: 0 | S20: 0.0904 | T20: 287.2 | U20: 0.0031 | V20: 9.98 | W20: 1.1285 | X20: 3583.46 | Y20: 6758.81
A21: P8033 | B21: Biólogo pleno | C21: mês | D21: 4233.8 | E21: 0.7956 | F21: 3368.41 | G21: 0.166 | H21: 702.89 | I21: 0.0059 | J21: 24.8 | K21: 0 | L21: 0 | M21: 0 | N21: 0 | O21: 0.0009 | P21: 3.77 | Q21: 0 | R21: 0 | S21: 0.0678 | T21: 287.2 | U21: 0.0024 | V21: 9.98 | W21: 1.0386 | X21: 4397.05 | Y21: 8630.85
A22: P8034 | B22: Biólogo sênior | C22: mês | D22: 7434.92 | E22: 0.7956 | F22: 5915.22 | G22: 0.0945 | H22: 702.89 | I22: 0.0033 | J22: 24.8 | K22: 0 | L22: 0 | M22: 0 | N22: 0 | O22: 0.0005 | P22: 3.77 | Q22: 0 | R22: 0 | S22: 0.0386 | T22: 287.2 | U22: 0.0013 | V22: 9.98 | W22: 0.934 | X22: 6943.86 | Y22: 14378.78
A23: P8038 | B23: Chefe de escritório | C23: mês | D23: 3370.83 | E23: 0.7957 | F23: 2682.17 | G23: 0.2085 | H23: 702.89 | I23: 0 | J23: 0 | K23: 0 | L23: 0 | M23: 0.005 | N23: 16.78 | O23: 0.0008 | P23: 2.74 | Q23: 0 | R23: 0 | S23: 0.0852 | T23: 287.2 | U23: 0.003 | V23: 9.98 | W23: 1.0982 | X23: 3701.76 | Y23: 7072.59
A24: P8040 | B24: Contador júnior | C24: mês | D24: 4031.96 | E24: 0.7953 | F24: 3206.62 | G24: 0.1743 | H24: 702.89 | I24: 0 | J24: 0 | K24: 0 | L24: 0 | M24: 0 | N24: 0 | O24: 0.0006 | P24: 2.61 | Q24: 0 | R24: 0 | S24: 0.0712 | T24: 287.2 | U24: 0.0025 | V24: 9.98 | W24: 1.044 | X24: 4209.31 | Y24: 8241.27
A25: P8041 | B25: Contador pleno | C25: mês | D25: 5375.95 | E25: 0.7953 | F25: 4275.49 | G25: 0.1307 | H25: 702.89 | I25: 0 | J25: 0 | K25: 0 | L25: 0 | M25: 0 | N25: 0 | O25: 0.0005 | P25: 2.61 | Q25: 0 | R25: 0 | S25: 0.0534 | T25: 287.2 | U25: 0.0019 | V25: 9.98 | W25: 0.9818 | X25: 5278.18 | Y25: 10654.13
A26: P8042 | B26: Contador sênior | C26: mês | D26: 10196.46 | E26: 0.7953 | F26: 8109.24 | G26: 0.0689 | H26: 702.89 | I26: 0 | J26: 0 | K26: 0 | L26: 0 | M26: 0 | N26: 0 | O26: 0.0003 | P26: 2.61 | Q26: 0 | R26: 0 | S26: 0.0282 | T26: 287.2 | U26: 0.001 | V26: 9.98 | W26: 0.8936 | X26: 9111.93 | Y26: 19308.39
A27: P8044 | B27: Coordenador ambiental | C27: mês | D27: 16968.79 | E27: 0.7948 | F27: 13486.79 | G27: 0.0414 | H27: 702.89 | I27: 0.0013 | J27: 22.65 | K27: 0 | L27: 0 | M27: 0 | N27: 0 | O27: 0.0002 | P27: 3.32 | Q27: 0 | R27: 0 | S27: 0.0169 | T27: 287.2 | U27: 0.0006 | V27: 9.98 | W27: 0.8553 | X27: 14512.83 | Y27: 31481.62
A28: P8045 | B28: Economista júnior | C28: mês | D28: 4633.61 | E28: 0.79 | F28: 3660.55 | G28: 0.1517 | H28: 702.89 | I28: 0 | J28: 0 | K28: 0 | L28: 0 | M28: 0 | N28: 0 | O28: 0.0004 | P28: 1.78 | Q28: 0 | R28: 0 | S28: 0.062 | T28: 287.2 | U28: 0.0022 | V28: 9.98 | W28: 1.0062 | X28: 4662.4 | Y28: 9296
A29: P8046 | B29: Economista pleno | C29: mês | D29: 6178.14 | E29: 0.79 | F29: 4880.73 | G29: 0.1138 | H29: 702.89 | I29: 0 | J29: 0 | K29: 0 | L29: 0 | M29: 0 | N29: 0 | O29: 0.0003 | P29: 1.78 | Q29: 0 | R29: 0 | S29: 0.0465 | T29: 287.2 | U29: 0.0016 | V29: 9.98 | W29: 0.9522 | X29: 5882.58 | Y29: 12060.72
A30: P8047 | B30: Economista sênior | C30: mês | D30: 10535.44 | E30: 0.79 | F30: 8323 | G30: 0.0667 | H30: 702.89 | I30: 0 | J30: 0 | K30: 0 | L30: 0 | M30: 0 | N30: 0 | O30: 0.0002 | P30: 1.78 | Q30: 0 | R30: 0 | S30: 0.0273 | T30: 287.2 | U30: 0.0009 | V30: 9.98 | W30: 0.8851 | X30: 9324.84 | Y30: 19860.28
A31: P8054 | B31: Engenheiro agrônomo júnior | C31: mês | D31: 11220 | E31: 0.7905 | F31: 8869.41 | G31: 0.0626 | H31: 702.89 | I31: 0.0022 | J31: 24.8 | K31: 0 | L31: 0 | M31: 0 | N31: 0 | O31: 0.0002 | P31: 2.64 | Q31: 0 | R31: 0 | S31: 0.0256 | T31: 287.2 | U31: 0.0009 | V31: 9.98 | W31: 0.8821 | X31: 9896.93 | Y31: 21116.93
A32: P8055 | B32: Engenheiro agrônomo pleno | C32: mês | D32: 11530.62 | E32: 0.7905 | F32: 9114.95 | G32: 0.061 | H32: 702.89 | I32: 0.0022 | J32: 24.8 | K32: 0 | L32: 0 | M32: 0 | N32: 0 | O32: 0.0002 | P32: 2.64 | Q32: 0 | R32: 0 | S32: 0.0249 | T32: 287.2 | U32: 0.0009 | V32: 9.98 | W32: 0.8796 | X32: 10142.47 | Y32: 21673.09
A33: P8056 | B33: Engenheiro agrônomo sênior | C33: mês | D33: 13314.45 | E33: 0.7905 | F33: 10525.07 | G33: 0.0528 | H33: 702.89 | I33: 0.0019 | J33: 24.8 | K33: 0 | L33: 0 | M33: 0 | N33: 0 | O33: 0.0002 | P33: 2.64 | Q33: 0 | R33: 0 | S33: 0.0216 | T33: 287.2 | U33: 0.0007 | V33: 9.98 | W33: 0.8677 | X33: 11552.59 | Y33: 24867.03
A34: P8057 | B34: Engenheiro ambiental júnior | C34: mês | D34: 11220 | E34: 0.7958 | F34: 8928.88 | G34: 0.0626 | H34: 702.89 | I34: 0.0022 | J34: 24.8 | K34: 0 | L34: 0 | M34: 0 | N34: 0 | O34: 0.0003 | P34: 3.6 | Q34: 0 | R34: 0 | S34: 0.0256 | T34: 287.2 | U34: 0.0009 | V34: 9.98 | W34: 0.8875 | X34: 9957.34 | Y34: 21177.34
A35: P8058 | B35: Engenheiro ambiental pleno | C35: mês | D35: 11266.87 | E35: 0.7958 | F35: 8966.17 | G35: 0.0624 | H35: 702.89 | I35: 0.0022 | J35: 24.8 | K35: 0 | L35: 0 | M35: 0 | N35: 0 | O35: 0.0003 | P35: 3.6 | Q35: 0 | R35: 0 | S35: 0.0255 | T35: 287.2 | U35: 0.0009 | V35: 9.98 | W35: 0.8871 | X35: 9994.64 | Y35: 21261.51
A36: P8059 | B36: Engenheiro ambiental sênior | C36: mês | D36: 13578.83 | E36: 0.7958 | F36: 10806.03 | G36: 0.0518 | H36: 702.89 | I36: 0.0018 | J36: 24.8 | K36: 0 | L36: 0 | M36: 0 | N36: 0 | O36: 0.0003 | P36: 3.6 | Q36: 0 | R36: 0 | S36: 0.0212 | T36: 287.2 | U36: 0.0007 | V36: 9.98 | W36: 0.8715 | X36: 11834.5 | Y36: 25413.33
A37: P8060 | B37: Engenheiro consultor especial | C37: mês | D37: 20551.86 | E37: 0.7945 | F37: 16328.45 | G37: 0.0342 | H37: 702.89 | I37: 0.0011 | J37: 22.65 | K37: 0 | L37: 0 | M37: 0 | N37: 0 | O37: 0.0002 | P37: 3.66 | Q37: 0 | R37: 0 | S37: 0.014 | T37: 287.2 | U37: 0.0005 | V37: 9.98 | W37: 0.8444 | X37: 17354.83 | Y37: 37906.68
A38: P8061 | B38: Engenheiro coordenador | C38: mês | D38: 17126.55 | E38: 0.7945 | F38: 13607.04 | G38: 0.041 | H38: 702.89 | I38: 0.0013 | J38: 22.65 | K38: 0 | L38: 0 | M38: 0 | N38: 0 | O38: 0.0002 | P38: 3.66 | Q38: 0 | R38: 0 | S38: 0.0168 | T38: 287.2 | U38: 0.0006 | V38: 9.98 | W38: 0.8544 | X38: 14633.42 | Y38: 31759.96
A39: P8062 | B39: Engenheiro de pesca júnior | C39: mês | D39: 11220 | E39: 0.8012 | F39: 8989.46 | G39: 0.0626 | H39: 702.89 | I39: 0.0022 | J39: 24.8 | K39: 0 | L39: 0 | M39: 0 | N39: 0 | O39: 0.0004 | P39: 4.63 | Q39: 0 | R39: 0 | S39: 0.0256 | T39: 287.2 | U39: 0.0009 | V39: 9.98 | W39: 0.893 | X39: 10018.97 | Y39: 21238.97
A40: P8063 | B40: Engenheiro de pesca pleno | C40: mês | D40: 11526.37 | E40: 0.8012 | F40: 9234.93 | G40: 0.061 | H40: 702.89 | I40: 0.0022 | J40: 24.8 | K40: 0 | L40: 0 | M40: 0 | N40: 0 | O40: 0.0004 | P40: 4.63 | Q40: 0 | R40: 0 | S40: 0.0249 | T40: 287.2 | U40: 0.0009 | V40: 9.98 | W40: 0.8905 | X40: 10264.43 | Y40: 21790.8
A41: P8064 | B41: Engenheiro de pesca sênior | C41: mês | D41: 13764.58 | E41: 0.8012 | F41: 11028.19 | G41: 0.0511 | H41: 702.89 | I41: 0.0018 | J41: 24.8 | K41: 0 | L41: 0 | M41: 0 | N41: 0 | O41: 0.0003 | P41: 4.63 | Q41: 0 | R41: 0 | S41: 0.0209 | T41: 287.2 | U41: 0.0007 | V41: 9.98 | W41: 0.876 | X41: 12057.69 | Y41: 25822.27
A42: P8065 | B42: Engenheiro de projetos júnior | C42: mês | D42: 11220 | E42: 0.7945 | F42: 8914.29 | G42: 0.0626 | H42: 702.89 | I42: 0.0022 | J42: 24.8 | K42: 0 | L42: 0 | M42: 0 | N42: 0 | O42: 0.0003 | P42: 3.66 | Q42: 0 | R42: 0 | S42: 0.0256 | T42: 287.2 | U42: 0.0009 | V42: 9.98 | W42: 0.8862 | X42: 9942.82 | Y42: 21162.82
A43: P8066 | B43: Engenheiro de projetos pleno | C43: mês | D43: 11669.34 | E43: 0.7945 | F43: 9271.29 | G43: 0.0602 | H43: 702.89 | I43: 0.0021 | J43: 24.8 | K43: 0 | L43: 0 | M43: 0 | N43: 0 | O43: 0.0003 | P43: 3.66 | Q43: 0 | R43: 0 | S43: 0.0246 | T43: 287.2 | U43: 0.0009 | V43: 9.98 | W43: 0.8826 | X43: 10299.82 | Y43: 21969.16
A44: P8067 | B44: Engenheiro de projetos sênior | C44: mês | D44: 14809.88 | E44: 0.7945 | F44: 11766.45 | G44: 0.0475 | H44: 702.89 | I44: 0.0017 | J44: 24.8 | K44: 0 | L44: 0 | M44: 0 | N44: 0 | O44: 0.0002 | P44: 3.66 | Q44: 0 | R44: 0 | S44: 0.0194 | T44: 287.2 | U44: 0.0007 | V44: 9.98 | W44: 0.8639 | X44: 12794.98 | Y44: 27604.86
A45: P8068 | B45: Engenheiro florestal júnior | C45: mês | D45: 11220 | E45: 0.8012 | F45: 8989.46 | G45: 0.0626 | H45: 702.89 | I45: 0.0022 | J45: 24.8 | K45: 0 | L45: 0 | M45: 0 | N45: 0 | O45: 0.0004 | P45: 4.63 | Q45: 0 | R45: 0 | S45: 0.0256 | T45: 287.2 | U45: 0.0009 | V45: 9.98 | W45: 0.893 | X45: 10018.97 | Y45: 21238.97
A46: P8069 | B46: Engenheiro florestal pleno | C46: mês | D46: 11526.37 | E46: 0.8012 | F46: 9234.93 | G46: 0.061 | H46: 702.89 | I46: 0.0022 | J46: 24.8 | K46: 0 | L46: 0 | M46: 0 | N46: 0 | O46: 0.0004 | P46: 4.63 | Q46: 0 | R46: 0 | S46: 0.0249 | T46: 287.2 | U46: 0.0009 | V46: 9.98 | W46: 0.8905 | X46: 10264.43 | Y46: 21790.8
A47: P8070 | B47: Engenheiro florestal sênior | C47: mês | D47: 13764.58 | E47: 0.8012 | F47: 11028.19 | G47: 0.0511 | H47: 702.89 | I47: 0.0018 | J47: 24.8 | K47: 0 | L47: 0 | M47: 0 | N47: 0 | O47: 0.0003 | P47: 4.63 | Q47: 0 | R47: 0 | S47: 0.0209 | T47: 287.2 | U47: 0.0007 | V47: 9.98 | W47: 0.876 | X47: 12057.69 | Y47: 25822.27
A48: P8080 | B48: Geólogo júnior | C48: mês | D48: 10004.5 | E48: 0.7985 | F48: 7988.59 | G48: 0.0703 | H48: 702.89 | I48: 0.0025 | J48: 24.8 | K48: 0 | L48: 0 | M48: 0 | N48: 0 | O48: 0.0004 | P48: 3.91 | Q48: 0 | R48: 0 | S48: 0.0287 | T48: 287.2 | U48: 0.001 | V48: 9.98 | W48: 0.9013 | X48: 9017.38 | Y48: 19021.88
A49: P8081 | B49: Geólogo pleno | C49: mês | D49: 11482.37 | E49: 0.7985 | F49: 9168.67 | G49: 0.0612 | H49: 702.89 | I49: 0.0022 | J49: 24.8 | K49: 0 | L49: 0 | M49: 0 | N49: 0 | O49: 0.0003 | P49: 3.91 | Q49: 0 | R49: 0 | S49: 0.025 | T49: 287.2 | U49: 0.0009 | V49: 9.98 | W49: 0.8881 | X49: 10197.46 | Y49: 21679.83
A50: P8082 | B50: Geólogo sênior | C50: mês | D50: 13792.18 | E50: 0.7985 | F50: 11013.06 | G50: 0.051 | H50: 702.89 | I50: 0.0018 | J50: 24.8 | K50: 0 | L50: 0 | M50: 0 | N50: 0 | O50: 0.0003 | P50: 3.91 | Q50: 0 | R50: 0 | S50: 0.0208 | T50: 287.2 | U50: 0.0007 | V50: 9.98 | W50: 0.8731 | X50: 12041.84 | Y50: 25834.02
A51: P8092 | B51: Jornalista júnior | C51: mês | D51: 2779.77 | E51: 0.7961 | F51: 2212.97 | G51: 0.2529 | H51: 702.89 | I51: 0.0089 | J51: 24.8 | K51: 0 | L51: 0 | M51: 0.0188 | N51: 52.25 | O51: 0.001 | P51: 2.92 | Q51: 0 | R51: 0 | S51: 0.1033 | T51: 287.2 | U51: 0.0036 | V51: 9.98 | W51: 1.1846 | X51: 3293 | Y51: 6072.77
A52: P8093 | B52: Jornalista pleno | C52: mês | D52: 3706.35 | E52: 0.7961 | F52: 2950.63 | G52: 0.1896 | H52: 702.89 | I52: 0.0067 | J52: 24.8 | K52: 0 | L52: 0 | M52: 0 | N52: 0 | O52: 0.0008 | P52: 2.92 | Q52: 0 | R52: 0 | S52: 0.0775 | T52: 287.2 | U52: 0.0027 | V52: 9.98 | W52: 1.0734 | X52: 3978.42 | Y52: 7684.77
A53: P8094 | B53: Jornalista sênior | C53: mês | D53: 7205.54 | E53: 0.7961 | F53: 5736.33 | G53: 0.0975 | H53: 702.89 | I53: 0.0034 | J53: 24.8 | K53: 0 | L53: 0 | M53: 0 | N53: 0 | O53: 0.0004 | P53: 2.92 | Q53: 0 | R53: 0 | S53: 0.0399 | T53: 287.2 | U53: 0.0014 | V53: 9.98 | W53: 0.9387 | X53: 6764.12 | Y53: 13969.66
A54: P8098 | B54: Laboratorista | C54: mês | D54: 2157.71 | E54: 0.8008 | F54: 1727.89 | G54: 0.3258 | H54: 702.89 | I54: 0.0129 | J54: 27.8 | K54: 0 | L54: 0 | M54: 0.0415 | N54: 89.57 | O54: 0.002 | P54: 4.31 | Q54: 0 | R54: 0 | S54: 0.1331 | T54: 287.2 | U54: 0.0046 | V54: 9.98 | W54: 1.3207 | X54: 2849.65 | Y54: 5007.36
A55: P8102 | B55: Médico veterinário | C55: mês | D55: 11220 | E55: 0.7922 | F55: 8888.48 | G55: 0.0626 | H55: 702.89 | I55: 0.0022 | J55: 24.8 | K55: 0 | L55: 0 | M55: 0 | N55: 0 | O55: 0.0003 | P55: 3.08 | Q55: 0 | R55: 0 | S55: 0.0256 | T55: 287.2 | U55: 0.0009 | V55: 9.98 | W55: 0.8838 | X55: 9916.43 | Y55: 21136.43
A56: P8106 | B56: Meteorologista júnior | C56: mês | D56: 4941.05 | E56: 0.7932 | F56: 3919.24 | G56: 0.1423 | H56: 702.89 | I56: 0.005 | J56: 24.8 | K56: 0 | L56: 0 | M56: 0 | N56: 0 | O56: 0.0004 | P56: 2.18 | Q56: 0 | R56: 0 | S56: 0.0581 | T56: 287.2 | U56: 0.002 | V56: 9.98 | W56: 1.0011 | X56: 4946.29 | Y56: 9887.34
A57: P8107 | B57: Meteorologista pleno | C57: mês | D57: 6588.06 | E57: 0.7932 | F57: 5225.65 | G57: 0.1067 | H57: 702.89 | I57: 0.0038 | J57: 24.8 | K57: 0 | L57: 0 | M57: 0 | N57: 0 | O57: 0.0003 | P57: 2.18 | Q57: 0 | R57: 0 | S57: 0.0436 | T57: 287.2 | U57: 0.0015 | V57: 9.98 | W57: 0.9491 | X57: 6252.7 | Y57: 12840.76
A58: P8108 | B58: Meteorologista sênior | C58: mês | D58: 11069.44 | E58: 0.7932 | F58: 8780.28 | G58: 0.0635 | H58: 702.89 | I58: 0.0022 | J58: 24.8 | K58: 0 | L58: 0 | M58: 0 | N58: 0 | O58: 0.0002 | P58: 2.18 | Q58: 0 | R58: 0 | S58: 0.0259 | T58: 287.2 | U58: 0.0009 | V58: 9.98 | W58: 0.886 | X58: 9807.33 | Y58: 20876.78
A59: P8112 | B59: Motorista de caminhão | C59: mês | D59: 2154.65 | E59: 0.8021 | F59: 1728.24 | G59: 0.3262 | H59: 702.89 | I59: 0.014 | J59: 30.19 | K59: 0 | L59: 0 | M59: 0.0417 | N59: 89.75 | O59: 0.0022 | P59: 4.63 | Q59: 0 | R59: 0 | S59: 0.1333 | T59: 287.2 | U59: 0.0046 | V59: 9.98 | W59: 1.3241 | X59: 2852.89 | Y59: 5007.54
A60: P8113 | B60: Motorista de veículo leve | C60: mês | D60: 1953.12 | E60: 0.7992 | F60: 1560.93 | G60: 0.3599 | H60: 702.89 | I60: 0.0155 | J60: 30.19 | K60: 0 | L60: 0 | M60: 0.0521 | N60: 101.84 | O60: 0.0022 | P60: 4.35 | Q60: 0 | R60: 0 | S60: 0.147 | T60: 287.2 | U60: 0.0051 | V60: 9.98 | W60: 1.3811 | X60: 2697.39 | Y60: 4650.51
A61: P8117 | B61: Oceanógrafo júnior | C61: mês | D61: 4548.81 | E61: 0.8002 | F61: 3639.95 | G61: 0.1545 | H61: 702.89 | I61: 0.0055 | J61: 24.8 | K61: 0 | L61: 0 | M61: 0 | N61: 0 | O61: 0.0008 | P61: 3.5 | Q61: 0 | R61: 0 | S61: 0.0631 | T61: 287.2 | U61: 0.0022 | V61: 9.98 | W61: 1.0263 | X61: 4668.32 | Y61: 9217.13
A62: P8118 | B62: Oceanógrafo pleno | C62: mês | D62: 6065.08 | E62: 0.8002 | F62: 4853.27 | G62: 0.1159 | H62: 702.89 | I62: 0.0041 | J62: 24.8 | K62: 0 | L62: 0 | M62: 0 | N62: 0 | O62: 0.0006 | P62: 3.5 | Q62: 0 | R62: 0 | S62: 0.0474 | T62: 287.2 | U62: 0.0016 | V62: 9.98 | W62: 0.9698 | X62: 5881.64 | Y62: 11946.72
A63: P8119 | B63: Oceanógrafo sênior | C63: mês | D63: 10920.23 | E63: 0.8002 | F63: 8738.37 | G63: 0.0644 | H63: 702.89 | I63: 0.0023 | J63: 24.8 | K63: 0 | L63: 0 | M63: 0 | N63: 0 | O63: 0.0003 | P63: 3.5 | Q63: 0 | R63: 0 | S63: 0.0263 | T63: 287.2 | U63: 0.0009 | V63: 9.98 | W63: 0.8944 | X63: 9766.74 | Y63: 20686.96
A64: P8129 | B64: Pedagogo júnior | C64: mês | D64: 2395.68 | E64: 0.8095 | F64: 1939.31 | G64: 0.2934 | H64: 702.89 | I64: 0.0104 | J64: 24.8 | K64: 0 | L64: 0 | M64: 0.0314 | N64: 75.29 | O64: 0.0033 | P64: 7.79 | Q64: 0 | R64: 0 | S64: 0.1199 | T64: 287.2 | U64: 0.0042 | V64: 9.98 | W64: 1.272 | X64: 3047.26 | Y64: 5442.94
A65: P8130 | B65: Pedagogo pleno | C65: mês | D65: 3194.25 | E65: 0.8095 | F65: 2585.74 | G65: 0.22 | H65: 702.89 | I65: 0.0078 | J65: 24.8 | K65: 0 | L65: 0 | M65: 0.0086 | N65: 27.38 | O65: 0.0024 | P65: 7.79 | Q65: 0 | R65: 0 | S65: 0.0899 | T65: 287.2 | U65: 0.0031 | V65: 9.98 | W65: 1.1414 | X65: 3645.78 | Y65: 6840.03
A66: P8131 | B66: Pedagogo sênior | C66: mês | D66: 4952.66 | E66: 0.8095 | F66: 4009.18 | G66: 0.1419 | H66: 702.89 | I66: 0.005 | J66: 24.8 | K66: 0 | L66: 0 | M66: 0 | N66: 0 | O66: 0.0016 | P66: 7.79 | Q66: 0 | R66: 0 | S66: 0.058 | T66: 287.2 | U66: 0.002 | V66: 9.98 | W66: 1.018 | X66: 5041.84 | Y66: 9994.5
A67: P8135 | B67: Secretária | C67: mês | D67: 2434.74 | E67: 0.7988 | F67: 1944.87 | G67: 0.2887 | H67: 702.89 | I67: 0 | J67: 0 | K67: 0 | L67: 0 | M67: 0.03 | N67: 72.95 | O67: 0.0017 | P67: 4.15 | Q67: 0 | R67: 0 | S67: 0.118 | T67: 287.2 | U67: 0.0041 | V67: 9.98 | W67: 1.2412 | X67: 3022.03 | Y67: 5456.77
A68: P8139 | B68: Sondador | C68: mês | D68: 1882.18 | E68: 0.7978 | F68: 1501.6 | G68: 0.3734 | H68: 702.89 | I68: 0.0148 | J68: 27.8 | K68: 0 | L68: 0 | M68: 0.0564 | N68: 106.1 | O68: 0.0019 | P68: 3.57 | Q68: 0 | R68: 0 | S68: 0.1526 | T68: 287.2 | U68: 0.0053 | V68: 9.98 | W68: 1.4022 | X68: 2639.15 | Y68: 4521.33
A69: P8143 | B69: Técnico ambiental | C69: mês | D69: 2719.96 | E69: 0.801 | F69: 2178.69 | G69: 0.2584 | H69: 702.89 | I69: 0.0102 | J69: 27.8 | K69: 0 | L69: 0 | M69: 0.0205 | N69: 55.83 | O69: 0.002 | P69: 5.45 | Q69: 0 | R69: 0 | S69: 0.1056 | T69: 287.2 | U69: 0.0037 | V69: 9.98 | W69: 1.2014 | X69: 3267.85 | Y69: 5987.81
A70: P8147 | B70: Técnico de obras | C70: mês | D70: 3118.31 | E70: 0.7985 | F70: 2489.97 | G70: 0.2254 | H70: 702.89 | I70: 0.0089 | J70: 27.8 | K70: 0 | L70: 0 | M70: 0.0102 | N70: 31.93 | O70: 0.0012 | P70: 3.85 | Q70: 0 | R70: 0 | S70: 0.0921 | T70: 287.2 | U70: 0.0032 | V70: 9.98 | W70: 1.1396 | X70: 3553.62 | Y70: 6671.93
A71: P8151 | B71: Técnico de segurança do trabalho | C71: mês | D71: 4457.84 | E71: 0.8044 | F71: 3585.89 | G71: 0.1577 | H71: 702.89 | I71: 0.0062 | J71: 27.8 | K71: 0 | L71: 0 | M71: 0 | N71: 0 | O71: 0.0011 | P71: 4.87 | Q71: 0 | R71: 0 | S71: 0.0644 | T71: 287.2 | U71: 0.0022 | V71: 9.98 | W71: 1.0361 | X71: 4618.63 | Y71: 9076.47
A72: P8155 | B72: Técnico em geoprocessamento | C72: mês | D72: 2591.14 | E72: 0.7955 | F72: 2061.26 | G72: 0.2713 | H72: 702.89 | I72: 0.0107 | J72: 27.8 | K72: 0 | L72: 0 | M72: 0.0245 | N72: 63.56 | O72: 0.0016 | P72: 4.15 | Q72: 0 | R72: 0 | S72: 0.1108 | T72: 287.2 | U72: 0.0039 | V72: 9.98 | W72: 1.2183 | X72: 3156.85 | Y72: 5747.99
A73: P8159 | B73: Técnico em informática - programador | C73: mês | D73: 4013.75 | E73: 0.7982 | F73: 3203.77 | G73: 0.1751 | H73: 702.89 | I73: 0 | J73: 0 | K73: 0 | L73: 0 | M73: 0 | N73: 0 | O73: 0.0009 | P73: 3.8 | Q73: 0 | R73: 0 | S73: 0.0716 | T73: 287.2 | U73: 0.0025 | V73: 9.98 | W73: 1.0483 | X73: 4207.64 | Y73: 8221.39
A74: P8163 | B74: Topógrafo | C74: mês | D74: 2290.75 | E74: 0.8017 | F74: 1836.49 | G74: 0.3068 | H74: 702.89 | I74: 0.0121 | J74: 27.8 | K74: 0 | L74: 0 | M74: 0.0356 | N74: 81.59 | O74: 0.0021 | P74: 4.7 | Q74: 0 | R74: 0 | S74: 0.1254 | T74: 287.2 | U74: 0.0044 | V74: 9.98 | W74: 1.2881 | X74: 2950.65 | Y74: 5241.4
A75: P8167 | B75: Arquivista júnior | C75: mês | D75: 2182.42 | E75: 0.7984 | F75: 1742.44 | G75: 0.3221 | H75: 702.89 | I75: 0 | J75: 0 | K75: 0 | L75: 0 | M75: 0.0404 | N75: 88.09 | O75: 0.0016 | P75: 3.58 | Q75: 0 | R75: 0 | S75: 0.1316 | T75: 287.2 | U75: 0.0046 | V75: 9.98 | W75: 1.2986 | X75: 2834.19 | Y75: 5016.61
A76: P8168 | B76: Arquivista pleno | C76: mês | D76: 2909.89 | E76: 0.7984 | F76: 2323.26 | G76: 0.2416 | H76: 702.89 | I76: 0 | J76: 0 | K76: 0 | L76: 0 | M76: 0.0153 | N76: 44.44 | O76: 0.0012 | P76: 3.58 | Q76: 0 | R76: 0 | S76: 0.0987 | T76: 287.2 | U76: 0.0034 | V76: 9.98 | W76: 1.1586 | X76: 3371.35 | Y76: 6281.25
A77: P8169 | B77: Arquivista sênior | C77: mês | D77: 4542.09 | E77: 0.7984 | F77: 3626.41 | G77: 0.1548 | H77: 702.89 | I77: 0 | J77: 0 | K77: 0 | L77: 0 | M77: 0 | N77: 0 | O77: 0.0008 | P77: 3.58 | Q77: 0 | R77: 0 | S77: 0.0632 | T77: 287.2 | U77: 0.0022 | V77: 9.98 | W77: 1.0194 | X77: 4630.06 | Y77: 9172.15
A78: P8173 | B78: Administrador júnior | C78: mês | D78: 3166.55 | E78: 0.7972 | F78: 2524.37 | G78: 0.222 | H78: 702.89 | I78: 0 | J78: 0 | K78: 0 | L78: 0 | M78: 0.0092 | N78: 29.04 | O78: 0.0012 | P78: 3.87 | Q78: 0 | R78: 0 | S78: 0.0907 | T78: 287.2 | U78: 0.0032 | V78: 9.98 | W78: 1.1234 | X78: 3557.36 | Y78: 6723.91
A79: P8174 | B79: Administrador pleno | C79: mês | D79: 4222.07 | E79: 0.7972 | F79: 3365.83 | G79: 0.1665 | H79: 702.89 | I79: 0 | J79: 0 | K79: 0 | L79: 0 | M79: 0 | N79: 0 | O79: 0.0009 | P79: 3.87 | Q79: 0 | R79: 0 | S79: 0.068 | T79: 287.2 | U79: 0.0024 | V79: 9.98 | W79: 1.035 | X79: 4369.78 | Y79: 8591.84
A80: P8175 | B80: Administrador sênior | C80: mês | D80: 7442.19 | E80: 0.7972 | F80: 5932.92 | G80: 0.0944 | H80: 702.89 | I80: 0 | J80: 0 | K80: 0 | L80: 0 | M80: 0 | N80: 0 | O80: 0.0005 | P80: 3.87 | Q80: 0 | R80: 0 | S80: 0.0386 | T80: 287.2 | U80: 0.0013 | V80: 9.98 | W80: 0.9321 | X80: 6936.86 | Y80: 14379.06
A81: P8180 | B81: Engenheiro agrimensor júnior | C81: mês | D81: 11220 | E81: 0.7943 | F81: 8912.05 | G81: 0.0626 | H81: 702.89 | I81: 0.0022 | J81: 24.8 | K81: 0 | L81: 0 | M81: 0 | N81: 0 | O81: 0.0003 | P81: 3.87 | Q81: 0 | R81: 0 | S81: 0.0256 | T81: 287.2 | U81: 0.0009 | V81: 9.98 | W81: 0.886 | X81: 9940.79 | Y81: 21160.79
A82: P8181 | B82: Engenheiro agrimensor pleno | C82: mês | D82: 11491.01 | E82: 0.7943 | F82: 9127.31 | G82: 0.0612 | H82: 702.89 | I82: 0.0022 | J82: 24.8 | K82: 0 | L82: 0 | M82: 0 | N82: 0 | O82: 0.0003 | P82: 3.87 | Q82: 0 | R82: 0 | S82: 0.025 | T82: 287.2 | U82: 0.0009 | V82: 9.98 | W82: 0.8838 | X82: 10156.06 | Y82: 21647.07
A83: P8182 | B83: Engenheiro agrimensor sênior | C83: mês | D83: 12631.91 | E83: 0.7943 | F83: 10033.52 | G83: 0.0556 | H83: 702.89 | I83: 0.002 | J83: 24.8 | K83: 0 | L83: 0 | M83: 0 | N83: 0 | O83: 0.0003 | P83: 3.87 | Q83: 0 | R83: 0 | S83: 0.0227 | T83: 287.2 | U83: 0.0008 | V83: 9.98 | W83: 0.8757 | X83: 11062.27 | Y83: 23694.17
A84: P8183 | B84: Geógrafo júnior | C84: mês | D84: 3416.59 | E84: 0.7942 | F84: 2713.45 | G84: 0.2057 | H84: 702.89 | I84: 0.0073 | J84: 24.8 | K84: 0 | L84: 0 | M84: 0.0041 | N84: 14.04 | O84: 0.0008 | P84: 2.73 | Q84: 0 | R84: 0 | S84: 0.0841 | T84: 287.2 | U84: 0.0029 | V84: 9.98 | W84: 1.0991 | X84: 3755.09 | Y84: 7171.68
A85: P8184 | B85: Geógrafo pleno | C85: mês | D85: 4555.45 | E85: 0.7942 | F85: 3617.94 | G85: 0.1543 | H85: 702.89 | I85: 0.0054 | J85: 24.8 | K85: 0 | L85: 0 | M85: 0 | N85: 0 | O85: 0.0006 | P85: 2.73 | Q85: 0 | R85: 0 | S85: 0.063 | T85: 287.2 | U85: 0.0022 | V85: 9.98 | W85: 1.0198 | X85: 4645.54 | Y85: 9200.99
A86: P8185 | B86: Geógrafo sênior | C86: mês | D86: 8786.76 | E86: 0.7942 | F86: 6978.44 | G86: 0.08 | H86: 702.89 | I86: 0.0028 | J86: 24.8 | K86: 0 | L86: 0 | M86: 0 | N86: 0 | O86: 0.0003 | P86: 2.73 | Q86: 0 | R86: 0 | S86: 0.0327 | T86: 287.2 | U86: 0.0011 | V86: 9.98 | W86: 0.9111 | X86: 8006.04 | Y86: 16792.8
A87: P8186 | B87: Antropólogo júnior | C87: mês | D87: 3129 | E87: 0.82 | F87: 2565.78 | G87: 0.2246 | H87: 702.89 | I87: 0.0079 | J87: 24.8 | K87: 0 | L87: 0 | M87: 0.01 | N87: 31.29 | O87: 0.0018 | P87: 5.5 | Q87: 0 | R87: 0 | S87: 0.0918 | T87: 287.2 | U87: 0.0032 | V87: 9.98 | W87: 1.1593 | X87: 3627.44 | Y87: 6756.44
A88: P8187 | B88: Antropólogo pleno | C88: mês | D88: 4172 | E88: 0.82 | F88: 3421.04 | G88: 0.1685 | H88: 702.89 | I88: 0.0059 | J88: 24.8 | K88: 0 | L88: 0 | M88: 0 | N88: 0 | O88: 0.0013 | P88: 5.5 | Q88: 0 | R88: 0 | S88: 0.0688 | T88: 287.2 | U88: 0.0024 | V88: 9.98 | W88: 1.067 | X88: 4451.41 | Y88: 8623.41
A89: P8188 | B89: Antropólogo sênior | C89: mês | D89: 6159.78 | E89: 0.82 | F89: 5051.02 | G89: 0.1141 | H89: 702.89 | I89: 0.004 | J89: 24.8 | K89: 0 | L89: 0 | M89: 0 | N89: 0 | O89: 0.0009 | P89: 5.5 | Q89: 0 | R89: 0 | S89: 0.0466 | T89: 287.2 | U89: 0.0016 | V89: 9.98 | W89: 0.9873 | X89: 6081.39 | Y89: 12241.17
A90: P8189 | B90: Arqueólogo júnior | C90: mês | D90: 2980.05 | E90: 0.8051 | F90: 2399.24 | G90: 0.2359 | H90: 702.89 | I90: 0.0083 | J90: 24.8 | K90: 0 | L90: 0 | M90: 0.0135 | N90: 40.23 | O90: 0.0013 | P90: 3.74 | Q90: 0 | R90: 0 | S90: 0.0964 | T90: 287.2 | U90: 0.0033 | V90: 9.98 | W90: 1.1638 | X90: 3468.08 | Y90: 6448.13
A91: P8190 | B91: Arqueólogo pleno | C91: mês | D91: 3973.4 | E91: 0.8051 | F91: 3198.98 | G91: 0.1769 | H91: 702.89 | I91: 0.0062 | J91: 24.8 | K91: 0 | L91: 0 | M91: 0 | N91: 0 | O91: 0.0009 | P91: 3.74 | Q91: 0 | R91: 0 | S91: 0.0723 | T91: 287.2 | U91: 0.0025 | V91: 9.98 | W91: 1.064 | X91: 4227.6 | Y91: 8201
A92: P8191 | B92: Arqueólogo sênior | C92: mês | D92: 5890.45 | E92: 0.8051 | F92: 4742.4 | G92: 0.1193 | H92: 702.89 | I92: 0.0042 | J92: 24.8 | K92: 0 | L92: 0 | M92: 0 | N92: 0 | O92: 0.0006 | P92: 3.74 | Q92: 0 | R92: 0 | S92: 0.0488 | T92: 287.2 | U92: 0.0017 | V92: 9.98 | W92: 0.9797 | X92: 5771.02 | Y92: 11661.48
A93: P8192 | B93: Historiador júnior | C93: mês | D93: 3434.55 | E93: 0.8014 | F93: 2752.45 | G93: 0.2047 | H93: 702.89 | I93: 0.0072 | J93: 24.8 | K93: 0 | L93: 0 | M93: 0.0038 | N93: 12.96 | O93: 0.0013 | P93: 4.54 | Q93: 0 | R93: 0 | S93: 0.0836 | T93: 287.2 | U93: 0.0029 | V93: 9.98 | W93: 1.1049 | X93: 3794.82 | Y93: 7229.37
A94: P8193 | B94: Historiador pleno | C94: mês | D94: 4579.4 | E94: 0.8014 | F94: 3669.93 | G94: 0.1535 | H94: 702.89 | I94: 0.0054 | J94: 24.8 | K94: 0 | L94: 0 | M94: 0 | N94: 0 | O94: 0.001 | P94: 4.54 | Q94: 0 | R94: 0 | S94: 0.0627 | T94: 287.2 | U94: 0.0022 | V94: 9.98 | W94: 1.0262 | X94: 4699.34 | Y94: 9278.74
A95: P8194 | B95: Historiador sênior | C95: mês | D95: 7561.4 | E95: 0.8014 | F95: 6059.71 | G95: 0.093 | H95: 702.89 | I95: 0.0033 | J95: 24.8 | K95: 0 | L95: 0 | M95: 0 | N95: 0 | O95: 0.0006 | P95: 4.54 | Q95: 0 | R95: 0 | S95: 0.038 | T95: 287.2 | U95: 0.0013 | V95: 9.98 | W95: 0.9375 | X95: 7089.12 | Y95: 14650.53
A96: P8195 | B96: Paleontólogo júnior | C96: mês | D96: 3129 | E96: 0.8279 | F96: 2590.5 | G96: 0.2246 | H96: 702.89 | I96: 0.0079 | J96: 24.8 | K96: 0 | L96: 0 | M96: 0.01 | N96: 31.29 | O96: 0.0018 | P96: 5.5 | Q96: 0 | R96: 0 | S96: 0.0918 | T96: 287.2 | U96: 0.0032 | V96: 9.98 | W96: 1.1672 | X96: 3652.16 | Y96: 6781.16
A97: P8196 | B97: Paleontólogo pleno | C97: mês | D97: 4172 | E97: 0.8279 | F97: 3454 | G97: 0.1685 | H97: 702.89 | I97: 0.0059 | J97: 24.8 | K97: 0 | L97: 0 | M97: 0 | N97: 0 | O97: 0.0013 | P97: 5.5 | Q97: 0 | R97: 0 | S97: 0.0688 | T97: 287.2 | U97: 0.0024 | V97: 9.98 | W97: 1.0749 | X97: 4484.37 | Y97: 8656.37
A98: P8197 | B98: Paleontólogo sênior | C98: mês | D98: 6159.78 | E98: 0.8279 | F98: 5099.68 | G98: 0.1141 | H98: 702.89 | I98: 0.004 | J98: 24.8 | K98: 0 | L98: 0 | M98: 0 | N98: 0 | O98: 0.0009 | P98: 5.5 | Q98: 0 | R98: 0 | S98: 0.0466 | T98: 287.2 | U98: 0.0016 | V98: 9.98 | W98: 0.9952 | X98: 6130.05 | Y98: 12289.83
A99: P8198 | B99: Sociólogo júnior | C99: mês | D99: 3607.77 | E99: 0.8014 | F99: 2891.26 | G99: 0.1948 | H99: 702.89 | I99: 0.0069 | J99: 24.8 | K99: 0 | L99: 0 | M99: 0.0007 | N99: 2.57 | O99: 0.0013 | P99: 4.54 | Q99: 0 | R99: 0 | S99: 0.0796 | T99: 287.2 | U99: 0.0028 | V99: 9.98 | W99: 1.0874 | X99: 3923.24 | Y99: 7531.01
A100: P8199 | B100: Sociólogo pleno | C100: mês | D100: 4810.36 | E100: 0.8014 | F100: 3855.02 | G100: 0.1461 | H100: 702.89 | I100: 0.0052 | J100: 24.8 | K100: 0 | L100: 0 | M100: 0 | N100: 0 | O100: 0.0009 | P100: 4.54 | Q100: 0 | R100: 0 | S100: 0.0597 | T100: 287.2 | U100: 0.0021 | V100: 9.98 | W100: 1.0154 | X100: 4884.43 | Y100: 9694.79
A101: P8200 | B101: Sociólogo sênior | C101: mês | D101: 7731.83 | E101: 0.8014 | F101: 6196.29 | G101: 0.0909 | H101: 702.89 | I101: 0.0032 | J101: 24.8 | K101: 0 | L101: 0 | M101: 0 | N101: 0 | O101: 0.0006 | P101: 4.54 | Q101: 0 | R101: 0 | S101: 0.0371 | T101: 287.2 | U101: 0.0013 | V101: 9.98 | W101: 0.9345 | X101: 7225.7 | Y101: 14957.54

Sheet DNIT TC - 012023 (hidden)
A1: Código | B1: Categoria | C1: Unid. | D1: Salário | E1: Encargos Sociais | G1: Encargos Complementares | Q1: Encargos Adicionais | W1: Encargos Totais | Y1: Valor Total
G2: Alimentação | I2: EPI | K2: Ferramenta | M2: Transporte | O2: Exame Ocupacional | Q2: Cesta Básica | S2: Assistência Médica | U2: Seguro de Vida
D3: R$ | E3: % | F3: R$ | G3: % | H3: R$ | I3: % | J3: R$ | K3: % | L3: R$ | M3: % | N3: R$ | O3: % | P3: R$ | Q3: % | R3: R$ | S3: % | T3: R$ | U3: % | V3: R$ | W3: % | X3: R$ | Y3: R$
A4: P8001 | B4: Advogado júnior | C4: mês | D4: 4298.36 | E4: 0.7971 | F4: 3426.22 | G4: 0.1575 | H4: 677.01 | I4: 0.0089 | J4: 38.08 | K4: 0 | L4: 0 | M4: 0 | N4: 0 | O4: 0.0008 | P4: 3.43 | Q4: 0 | R4: 0 | S4: 0.0702 | T4: 301.75 | U4: 0.0023 | V4: 9.98 | W4: 1.0368 | X4: 4456.47 | Y4: 8754.83
A5: P8002 | B5: Advogado pleno | C5: mês | D5: 5731.15 | E5: 0.7971 | F5: 4568.3 | G5: 0.1181 | H5: 677.01 | I5: 0.0066 | J5: 38.08 | K5: 0 | L5: 0 | M5: 0 | N5: 0 | O5: 0.0006 | P5: 3.43 | Q5: 0 | R5: 0 | S5: 0.0527 | T5: 301.75 | U5: 0.0017 | V5: 9.98 | W5: 0.9769 | X5: 5598.54 | Y5: 11329.69
A6: P8003 | B6: Advogado sênior | C6: mês | D6: 9757.66 | E6: 0.7971 | F6: 7777.83 | G6: 0.0694 | H6: 677.01 | I6: 0.0039 | J6: 38.08 | K6: 0 | L6: 0 | M6: 0 | N6: 0 | O6: 0.0004 | P6: 3.43 | Q6: 0 | R6: 0 | S6: 0.0309 | T6: 301.75 | U6: 0.001 | V6: 9.98 | W6: 0.9027 | X6: 8808.08 | Y6: 18565.74
A7: P8007 | B7: Analista de desenvolvimento de sistemas júnior | C7: mês | D7: 3651.52 | E7: 0.7951 | F7: 2903.32 | G7: 0.1854 | H7: 677.01 | I7: 0 | J7: 0 | K7: 0 | L7: 0 | M7: 0 | N7: 0 | O7: 0.0009 | P7: 3.33 | Q7: 0 | R7: 0 | S7: 0.0826 | T7: 301.75 | U7: 0.0027 | V7: 9.98 | W7: 1.0668 | X7: 3895.39 | Y7: 7546.9
A8: P8008 | B8: Analista de desenvolvimento de sistemas pleno | C8: mês | D8: 4868.69 | E8: 0.7951 | F8: 3871.09 | G8: 0.1391 | H8: 677.01 | I8: 0 | J8: 0 | K8: 0 | L8: 0 | M8: 0 | N8: 0 | O8: 0.0007 | P8: 3.33 | Q8: 0 | R8: 0 | S8: 0.062 | T8: 301.75 | U8: 0.002 | V8: 9.98 | W8: 0.9989 | X8: 4863.16 | Y8: 9731.85
A9: P8009 | B9: Analista de desenvolvimento de sistemas sênior | C9: mês | D9: 8775.73 | E9: 0.7951 | F9: 6977.58 | G9: 0.0771 | H9: 677.01 | I9: 0 | J9: 0 | K9: 0 | L9: 0 | M9: 0 | N9: 0 | O9: 0.0004 | P9: 3.33 | Q9: 0 | R9: 0 | S9: 0.0344 | T9: 301.75 | U9: 0.0011 | V9: 9.98 | W9: 0.9081 | X9: 7969.65 | Y9: 16745.38
A10: P8013 | B10: Arquiteto júnior | C10: mês | D10: 11067 | E10: 0.7934 | F10: 8780.56 | G10: 0.0612 | H10: 677.01 | I10: 0.0034 | J10: 38.08 | K10: 0 | L10: 0 | M10: 0 | N10: 0 | O10: 0.0002 | P10: 2.49 | Q10: 0 | R10: 0 | S10: 0.0273 | T10: 301.75 | U10: 0.0009 | V10: 9.98 | W10: 0.8864 | X10: 9809.86 | Y10: 20876.86
A11: P8014 | B11: Arquiteto pleno | C11: mês | D11: 11353.02 | E11: 0.7934 | F11: 9007.49 | G11: 0.0596 | H11: 677.01 | I11: 0.0034 | J11: 38.08 | K11: 0 | L11: 0 | M11: 0 | N11: 0 | O11: 0.0002 | P11: 2.49 | Q11: 0 | R11: 0 | S11: 0.0266 | T11: 301.75 | U11: 0.0009 | V11: 9.98 | W11: 0.8841 | X11: 10036.79 | Y11: 21389.81
A12: P8015 | B12: Arquiteto sênior | C12: mês | D12: 14013.69 | E12: 0.7934 | F12: 11118.47 | G12: 0.0483 | H12: 677.01 | I12: 0.0027 | J12: 38.08 | K12: 0 | L12: 0 | M12: 0 | N12: 0 | O12: 0.0002 | P12: 2.49 | Q12: 0 | R12: 0 | S12: 0.0215 | T12: 301.75 | U12: 0.0007 | V12: 9.98 | W12: 0.8669 | X12: 12147.77 | Y12: 26161.47
A13: P8019 | B13: Assistente social júnior | C13: mês | D13: 2676.07 | E13: 0.8018 | F13: 2145.68 | G13: 0.253 | H13: 677.01 | I13: 0.0142 | J13: 38.08 | K13: 0 | L13: 0 | M13: 0.0218 | N13: 58.47 | O13: 0.0016 | P13: 4.21 | Q13: 0 | R13: 0 | S13: 0.1128 | T13: 301.75 | U13: 0.0037 | V13: 9.98 | W13: 1.2089 | X13: 3235.16 | Y13: 5911.24
A14: P8020 | B14: Assistente social pleno | C14: mês | D14: 3568.1 | E14: 0.8018 | F14: 2860.9 | G14: 0.1897 | H14: 677.01 | I14: 0.0107 | J14: 38.08 | K14: 0 | L14: 0 | M14: 0.0014 | N14: 4.95 | O14: 0.0012 | P14: 4.21 | Q14: 0 | R14: 0 | S14: 0.0846 | T14: 301.75 | U14: 0.0028 | V14: 9.98 | W14: 1.0921 | X14: 3896.87 | Y14: 7464.96
A15: P8021 | B15: Assistente social sênior | C15: mês | D15: 6285.93 | E15: 0.8018 | F15: 5040.06 | G15: 0.1077 | H15: 677.01 | I15: 0.0061 | J15: 38.08 | K15: 0 | L15: 0 | M15: 0 | N15: 0 | O15: 0.0007 | P15: 4.21 | Q15: 0 | R15: 0 | S15: 0.048 | T15: 301.75 | U15: 0.0016 | V15: 9.98 | W15: 0.9658 | X15: 6071.08 | Y15: 12357
A16: P8025 | B16: Auxiliar | C16: mês | D16: 1401.01 | E16: 0.8013 | F16: 1122.63 | G16: 0.4832 | H16: 677.01 | I16: 0 | J16: 0 | K16: 0.0012 | L16: 1.74 | M16: 0.0963 | N16: 134.97 | O16: 0.0025 | P16: 3.47 | Q16: 0 | R16: 0 | S16: 0.2154 | T16: 301.75 | U16: 0.0071 | V16: 9.98 | W16: 1.6071 | X16: 2251.55 | Y16: 3652.57
A17: P8026 | B17: Auxiliar administrativo | C17: mês | D17: 1681.55 | E17: 0.8022 | F17: 1348.94 | G17: 0.4026 | H17: 677.01 | I17: 0 | J17: 0 | K17: 0 | L17: 0 | M17: 0.0703 | N17: 118.14 | O17: 0.0026 | P17: 4.29 | Q17: 0 | R17: 0 | S17: 0.1794 | T17: 301.75 | U17: 0.0059 | V17: 9.98 | W17: 1.463 | X17: 2460.11 | Y17: 4141.66
A18: P8027 | B18: Auxiliar de laboratório | C18: mês | D18: 1553.91 | E18: 0.7993 | F18: 1242.04 | G18: 0.4357 | H18: 677.01 | I18: 0 | J18: 0 | K18: 0.0028 | L18: 4.3 | M18: 0.081 | N18: 125.8 | O18: 0.0028 | P18: 4.28 | Q18: 0 | R18: 0 | S18: 0.1942 | T18: 301.75 | U18: 0.0064 | V18: 9.98 | W18: 1.5221 | X18: 2365.17 | Y18: 3919.08
A19: P8028 | B19: Auxiliar de topografia | C19: mês | D19: 1401.01 | E19: 0.7997 | F19: 1120.39 | G19: 0.4832 | H19: 677.01 | I19: 0.028 | J19: 39.18 | K19: 0.0013 | L19: 1.87 | M19: 0.0963 | N19: 134.97 | O19: 0.0031 | P19: 4.31 | Q19: 0 | R19: 0 | S19: 0.2154 | T19: 301.75 | U19: 0.0071 | V19: 9.98 | W19: 1.6341 | X19: 2289.46 | Y19: 3690.47
A20: P8032 | B20: Biólogo júnior | C20: mês | D20: 3034.42 | E20: 0.7959 | F20: 2415.1 | G20: 0.2231 | H20: 677.01 | I20: 0.0125 | J20: 38.08 | K20: 0 | L20: 0 | M20: 0.0122 | N20: 36.97 | O20: 0.0011 | P20: 3.26 | Q20: 0 | R20: 0 | S20: 0.0994 | T20: 301.75 | U20: 0.0033 | V20: 9.98 | W20: 1.1475 | X20: 3482.14 | Y20: 6516.56
A21: P8033 | B21: Biólogo pleno | C21: mês | D21: 4045.9 | E21: 0.7959 | F21: 3220.13 | G21: 0.1673 | H21: 677.01 | I21: 0.0094 | J21: 38.08 | K21: 0 | L21: 0 | M21: 0 | N21: 0 | O21: 0.0008 | P21: 3.26 | Q21: 0 | R21: 0 | S21: 0.0746 | T21: 301.75 | U21: 0.0025 | V21: 9.98 | W21: 1.0505 | X21: 4250.2 | Y21: 8296.1
A22: P8034 | B22: Biólogo sênior | C22: mês | D22: 6946.81 | E22: 0.7959 | F22: 5528.97 | G22: 0.0975 | H22: 677.01 | I22: 0.0055 | J22: 38.08 | K22: 0 | L22: 0 | M22: 0 | N22: 0 | O22: 0.0005 | P22: 3.26 | Q22: 0 | R22: 0 | S22: 0.0434 | T22: 301.75 | U22: 0.0014 | V22: 9.98 | W22: 0.9442 | X22: 6559.04 | Y22: 13505.85
A23: P8038 | B23: Chefe de escritório | C23: mês | D23: 3329.2 | E23: 0.7983 | F23: 2657.7 | G23: 0.2034 | H23: 677.01 | I23: 0 | J23: 0 | K23: 0 | L23: 0 | M23: 0.0058 | N23: 19.28 | O23: 0.0009 | P23: 3.06 | Q23: 0 | R23: 0 | S23: 0.0906 | T23: 301.75 | U23: 0.003 | V23: 9.98 | W23: 1.102 | X23: 3668.78 | Y23: 6997.98
A24: P8040 | B24: Contador júnior | C24: mês | D24: 3809.75 | E24: 0.7971 | F24: 3036.76 | G24: 0.1777 | H24: 677.01 | I24: 0 | J24: 0 | K24: 0 | L24: 0 | M24: 0 | N24: 0 | O24: 0.0008 | P24: 3.06 | Q24: 0 | R24: 0 | S24: 0.0792 | T24: 301.75 | U24: 0.0026 | V24: 9.98 | W24: 1.0574 | X24: 4028.56 | Y24: 7838.31
A25: P8041 | B25: Contador pleno | C25: mês | D25: 5079.67 | E25: 0.7971 | F25: 4049.01 | G25: 0.1333 | H25: 677.01 | I25: 0 | J25: 0 | K25: 0 | L25: 0 | M25: 0 | N25: 0 | O25: 0.0006 | P25: 3.06 | Q25: 0 | R25: 0 | S25: 0.0594 | T25: 301.75 | U25: 0.002 | V25: 9.98 | W25: 0.9923 | X25: 5040.81 | Y25: 10120.48
A26: P8042 | B26: Contador sênior | C26: mês | D26: 9426.86 | E26: 0.7971 | F26: 7514.15 | G26: 0.0718 | H26: 677.01 | I26: 0 | J26: 0 | K26: 0 | L26: 0 | M26: 0 | N26: 0 | O26: 0.0003 | P26: 3.06 | Q26: 0 | R26: 0 | S26: 0.032 | T26: 301.75 | U26: 0.0011 | V26: 9.98 | W26: 0.9023 | X26: 8505.95 | Y26: 17932.81
A27: P8044 | B27: Coordenador ambiental | C27: mês | D27: 14992.13 | E27: 0.7949 | F27: 11917.25 | G27: 0.0452 | H27: 677.01 | I27: 0 | J27: 0 | K27: 0 | L27: 0 | M27: 0 | N27: 0 | O27: 0.0002 | P27: 2.92 | Q27: 0 | R27: 0 | S27: 0.0201 | T27: 301.75 | U27: 0.0007 | V27: 9.98 | W27: 0.861 | X27: 12908.91 | Y27: 27901.04
A28: P8045 | B28: Economista júnior | C28: mês | D28: 4427.89 | E28: 0.7939 | F28: 3515.31 | G28: 0.1529 | H28: 677.01 | I28: 0 | J28: 0 | K28: 0 | L28: 0 | M28: 0 | N28: 0 | O28: 0.0006 | P28: 2.65 | Q28: 0 | R28: 0 | S28: 0.0681 | T28: 301.75 | U28: 0.0023 | V28: 9.98 | W28: 1.0178 | X28: 4506.69 | Y28: 8934.58
A29: P8046 | B29: Economista pleno | C29: mês | D29: 5903.86 | E29: 0.7939 | F29: 4687.07 | G29: 0.1147 | H29: 677.01 | I29: 0 | J29: 0 | K29: 0 | L29: 0 | M29: 0 | N29: 0 | O29: 0.0004 | P29: 2.65 | Q29: 0 | R29: 0 | S29: 0.0511 | T29: 301.75 | U29: 0.0017 | V29: 9.98 | W29: 0.9618 | X29: 5678.46 | Y29: 11582.32
A30: P8047 | B30: Economista sênior | C30: mês | D30: 10342.63 | E30: 0.7939 | F30: 8211.02 | G30: 0.0655 | H30: 677.01 | I30: 0 | J30: 0 | K30: 0 | L30: 0 | M30: 0 | N30: 0 | O30: 0.0003 | P30: 2.65 | Q30: 0 | R30: 0 | S30: 0.0292 | T30: 301.75 | U30: 0.001 | V30: 9.98 | W30: 0.8898 | X30: 9202.4 | Y30: 19545.03
A31: P8054 | B31: Engenheiro agrônomo júnior | C31: mês | D31: 11067 | E31: 0.7906 | F31: 8749.57 | G31: 0.0612 | H31: 677.01 | I31: 0.0034 | J31: 38.08 | K31: 0 | L31: 0 | M31: 0 | N31: 0 | O31: 0.0002 | P31: 2.26 | Q31: 0 | R31: 0 | S31: 0.0273 | T31: 301.75 | U31: 0.0009 | V31: 9.98 | W31: 0.8836 | X31: 9778.65 | Y31: 20845.65
A32: P8055 | B32: Engenheiro agrônomo pleno | C32: mês | D32: 11980.97 | E32: 0.7906 | F32: 9472.16 | G32: 0.0565 | H32: 677.01 | I32: 0.0032 | J32: 38.08 | K32: 0 | L32: 0 | M32: 0 | N32: 0 | O32: 0.0002 | P32: 2.26 | Q32: 0 | R32: 0 | S32: 0.0252 | T32: 301.75 | U32: 0.0008 | V32: 9.98 | W32: 0.8765 | X32: 10501.24 | Y32: 22482.21
A33: P8056 | B33: Engenheiro agrônomo sênior | C33: mês | D33: 12894.95 | E33: 0.7906 | F33: 10194.75 | G33: 0.0525 | H33: 677.01 | I33: 0.003 | J33: 38.08 | K33: 0 | L33: 0 | M33: 0 | N33: 0 | O33: 0.0002 | P33: 2.26 | Q33: 0 | R33: 0 | S33: 0.0234 | T33: 301.75 | U33: 0.0008 | V33: 9.98 | W33: 0.8704 | X33: 11223.83 | Y33: 24118.77
A34: P8057 | B34: Engenheiro ambiental júnior | C34: mês | D34: 11067 | E34: 0.7968 | F34: 8818.19 | G34: 0.0612 | H34: 677.01 | I34: 0.0034 | J34: 38.08 | K34: 0 | L34: 0 | M34: 0 | N34: 0 | O34: 0.0003 | P34: 3.37 | Q34: 0 | R34: 0 | S34: 0.0273 | T34: 301.75 | U34: 0.0009 | V34: 9.98 | W34: 0.8899 | X34: 9848.37 | Y34: 20915.37
A35: P8058 | B35: Engenheiro ambiental pleno | C35: mês | D35: 12074.42 | E35: 0.7968 | F35: 9620.9 | G35: 0.0561 | H35: 677.01 | I35: 0.0032 | J35: 38.08 | K35: 0 | L35: 0 | M35: 0 | N35: 0 | O35: 0.0003 | P35: 3.37 | Q35: 0 | R35: 0 | S35: 0.025 | T35: 301.75 | U35: 0.0008 | V35: 9.98 | W35: 0.8821 | X35: 10651.08 | Y35: 22725.51
A36: P8059 | B36: Engenheiro ambiental sênior | C36: mês | D36: 13081.85 | E36: 0.7968 | F36: 10423.62 | G36: 0.0518 | H36: 677.01 | I36: 0.0029 | J36: 38.08 | K36: 0 | L36: 0 | M36: 0 | N36: 0 | O36: 0.0003 | P36: 3.37 | Q36: 0 | R36: 0 | S36: 0.0231 | T36: 301.75 | U36: 0.0008 | V36: 9.98 | W36: 0.8755 | X36: 11453.8 | Y36: 24535.65
A37: P8060 | B37: Engenheiro consultor especial | C37: mês | D37: 20302.32 | E37: 0.7951 | F37: 16142.37 | G37: 0.0333 | H37: 677.01 | I37: 0.0017 | J37: 34.78 | K37: 0 | L37: 0 | M37: 0 | N37: 0 | O37: 0.0002 | P37: 3.38 | Q37: 0 | R37: 0 | S37: 0.0149 | T37: 301.75 | U37: 0.0005 | V37: 9.98 | W37: 0.8457 | X37: 17169.26 | Y37: 37471.58
A38: P8061 | B38: Engenheiro coordenador | C38: mês | D38: 16918.6 | E38: 0.7951 | F38: 13451.98 | G38: 0.04 | H38: 677.01 | I38: 0.0021 | J38: 34.78 | K38: 0 | L38: 0 | M38: 0 | N38: 0 | O38: 0.0002 | P38: 3.38 | Q38: 0 | R38: 0 | S38: 0.0178 | T38: 301.75 | U38: 0.0006 | V38: 9.98 | W38: 0.8558 | X38: 14478.87 | Y38: 31397.46
A39: P8062 | B39: Engenheiro de pesca júnior | C39: mês | D39: 11067 | E39: 0.7975 | F39: 8825.93 | G39: 0.0612 | H39: 677.01 | I39: 0.0034 | J39: 38.08 | K39: 0 | L39: 0 | M39: 0 | N39: 0 | O39: 0.0004 | P39: 4.23 | Q39: 0 | R39: 0 | S39: 0.0273 | T39: 301.75 | U39: 0.0009 | V39: 9.98 | W39: 0.8907 | X39: 9856.98 | Y39: 20923.98
A40: P8063 | B40: Engenheiro de pesca pleno | C40: mês | D40: 11153.58 | E40: 0.7975 | F40: 8894.98 | G40: 0.0607 | H40: 677.01 | I40: 0.0034 | J40: 38.08 | K40: 0 | L40: 0 | M40: 0 | N40: 0 | O40: 0.0004 | P40: 4.23 | Q40: 0 | R40: 0 | S40: 0.0271 | T40: 301.75 | U40: 0.0009 | V40: 9.98 | W40: 0.8899 | X40: 9926.02 | Y40: 21079.6
A41: P8064 | B41: Engenheiro de pesca sênior | C41: mês | D41: 11240.15 | E41: 0.7975 | F41: 8964.02 | G41: 0.0602 | H41: 677.01 | I41: 0.0034 | J41: 38.08 | K41: 0 | L41: 0 | M41: 0 | N41: 0 | O41: 0.0004 | P41: 4.23 | Q41: 0 | R41: 0 | S41: 0.0268 | T41: 301.75 | U41: 0.0009 | V41: 9.98 | W41: 0.8892 | X41: 9995.07 | Y41: 21235.22
A42: P8065 | B42: Engenheiro de projetos júnior | C42: mês | D42: 11067 | E42: 0.7951 | F42: 8799.37 | G42: 0.0612 | H42: 677.01 | I42: 0.0034 | J42: 38.08 | K42: 0 | L42: 0 | M42: 0 | N42: 0 | O42: 0.0003 | P42: 3.38 | Q42: 0 | R42: 0 | S42: 0.0273 | T42: 301.75 | U42: 0.0009 | V42: 9.98 | W42: 0.8882 | X42: 9829.56 | Y42: 20896.56
A43: P8066 | B43: Engenheiro de projetos pleno | C43: mês | D43: 11294.64 | E43: 0.7951 | F43: 8980.37 | G43: 0.0599 | H43: 677.01 | I43: 0.0034 | J43: 38.08 | K43: 0 | L43: 0 | M43: 0 | N43: 0 | O43: 0.0003 | P43: 3.38 | Q43: 0 | R43: 0 | S43: 0.0267 | T43: 301.75 | U43: 0.0009 | V43: 9.98 | W43: 0.8863 | X43: 10010.56 | Y43: 21305.2
A44: P8067 | B44: Engenheiro de projetos sênior | C44: mês | D44: 14506.03 | E44: 0.7951 | F44: 11533.74 | G44: 0.0467 | H44: 677.01 | I44: 0.0026 | J44: 38.08 | K44: 0 | L44: 0 | M44: 0 | N44: 0 | O44: 0.0002 | P44: 3.38 | Q44: 0 | R44: 0 | S44: 0.0208 | T44: 301.75 | U44: 0.0007 | V44: 9.98 | W44: 0.8661 | X44: 12563.93 | Y44: 27069.96
A45: P8068 | B45: Engenheiro florestal júnior | C45: mês | D45: 11067 | E45: 0.7975 | F45: 8825.93 | G45: 0.0612 | H45: 677.01 | I45: 0.0034 | J45: 38.08 | K45: 0 | L45: 0 | M45: 0 | N45: 0 | O45: 0.0004 | P45: 4.23 | Q45: 0 | R45: 0 | S45: 0.0273 | T45: 301.75 | U45: 0.0009 | V45: 9.98 | W45: 0.8907 | X45: 9856.98 | Y45: 20923.98
A46: P8069 | B46: Engenheiro florestal pleno | C46: mês | D46: 11153.58 | E46: 0.7975 | F46: 8894.98 | G46: 0.0607 | H46: 677.01 | I46: 0.0034 | J46: 38.08 | K46: 0 | L46: 0 | M46: 0 | N46: 0 | O46: 0.0004 | P46: 4.23 | Q46: 0 | R46: 0 | S46: 0.0271 | T46: 301.75 | U46: 0.0009 | V46: 9.98 | W46: 0.8899 | X46: 9926.02 | Y46: 21079.6
A47: P8070 | B47: Engenheiro florestal sênior | C47: mês | D47: 11240.15 | E47: 0.7975 | F47: 8964.02 | G47: 0.0602 | H47: 677.01 | I47: 0.0034 | J47: 38.08 | K47: 0 | L47: 0 | M47: 0 | N47: 0 | O47: 0.0004 | P47: 4.23 | Q47: 0 | R47: 0 | S47: 0.0268 | T47: 301.75 | U47: 0.0009 | V47: 9.98 | W47: 0.8892 | X47: 9995.07 | Y47: 21235.22
A48: P8080 | B48: Geólogo júnior | C48: mês | D48: 10004.5 | E48: 0.7967 | F48: 7970.59 | G48: 0.0677 | H48: 677.01 | I48: 0.0037 | J48: 36.63 | K48: 0 | L48: 0 | M48: 0 | N48: 0 | O48: 0.0004 | P48: 3.69 | Q48: 0 | R48: 0 | S48: 0.0302 | T48: 301.75 | U48: 0.001 | V48: 9.98 | W48: 0.8996 | X48: 8999.64 | Y48: 19004.14
A49: P8081 | B49: Geólogo pleno | C49: mês | D49: 12022.42 | E49: 0.7967 | F49: 9578.26 | G49: 0.0563 | H49: 677.01 | I49: 0.003 | J49: 36.63 | K49: 0 | L49: 0 | M49: 0 | N49: 0 | O49: 0.0003 | P49: 3.69 | Q49: 0 | R49: 0 | S49: 0.0251 | T49: 301.75 | U49: 0.0008 | V49: 9.98 | W49: 0.8823 | X49: 10607.32 | Y49: 22629.73
A50: P8082 | B50: Geólogo sênior | C50: mês | D50: 14040.33 | E50: 0.7967 | F50: 11185.93 | G50: 0.0482 | H50: 677.01 | I50: 0.0026 | J50: 36.63 | K50: 0 | L50: 0 | M50: 0 | N50: 0 | O50: 0.0003 | P50: 3.69 | Q50: 0 | R50: 0 | S50: 0.0215 | T50: 301.75 | U50: 0.0007 | V50: 9.98 | W50: 0.87 | X50: 12214.99 | Y50: 26255.32
A51: P8092 | B51: Jornalista júnior | C51: mês | D51: 2640.43 | E51: 0.7972 | F51: 2104.95 | G51: 0.2564 | H51: 677.01 | I51: 0.0097 | J51: 25.61 | K51: 0 | L51: 0 | M51: 0.023 | N51: 60.61 | O51: 0.0011 | P51: 2.89 | Q51: 0 | R51: 0 | S51: 0.1143 | T51: 301.75 | U51: 0.0038 | V51: 9.98 | W51: 1.2054 | X51: 3182.79 | Y51: 5823.22
A52: P8093 | B52: Jornalista pleno | C52: mês | D52: 3520.57 | E52: 0.7972 | F52: 2806.6 | G52: 0.1923 | H52: 677.01 | I52: 0.0073 | J52: 25.61 | K52: 0 | L52: 0 | M52: 0.0022 | N52: 7.8 | O52: 0.0008 | P52: 2.89 | Q52: 0 | R52: 0 | S52: 0.0857 | T52: 301.75 | U52: 0.0028 | V52: 9.98 | W52: 1.0884 | X52: 3831.63 | Y52: 7352.2
A53: P8094 | B53: Jornalista sênior | C53: mês | D53: 6885.35 | E53: 0.7972 | F53: 5489 | G53: 0.0983 | H53: 677.01 | I53: 0.0037 | J53: 25.61 | K53: 0 | L53: 0 | M53: 0 | N53: 0 | O53: 0.0004 | P53: 2.89 | Q53: 0 | R53: 0 | S53: 0.0438 | T53: 301.75 | U53: 0.0014 | V53: 9.98 | W53: 0.9449 | X53: 6506.23 | Y53: 13391.58
A54: P8098 | B54: Laboratorista | C54: mês | D54: 2071.89 | E54: 0.7993 | F54: 1656.06 | G54: 0.3268 | H54: 677.01 | I54: 0.0178 | J54: 36.94 | K54: 0 | L54: 0 | M54: 0.0457 | N54: 94.72 | O54: 0.0021 | P54: 4.28 | Q54: 0 | R54: 0 | S54: 0.1456 | T54: 301.75 | U54: 0.0048 | V54: 9.98 | W54: 1.3421 | X54: 2780.73 | Y54: 4852.62
A55: P8102 | B55: Médico veterinário | C55: mês | D55: 11067 | E55: 0.7926 | F55: 8771.7 | G55: 0.0612 | H55: 677.01 | I55: 0.0034 | J55: 38.08 | K55: 0 | L55: 0 | M55: 0 | N55: 0 | O55: 0.0003 | P55: 2.86 | Q55: 0 | R55: 0 | S55: 0.0273 | T55: 301.75 | U55: 0.0009 | V55: 9.98 | W55: 0.8856 | X55: 9801.38 | Y55: 20868.38
A56: P8106 | B56: Meteorologista júnior | C56: mês | D56: 4563.01 | E56: 0.797 | F56: 3636.72 | G56: 0.1484 | H56: 677.01 | I56: 0.0056 | J56: 25.61 | K56: 0 | L56: 0 | M56: 0 | N56: 0 | O56: 0.0006 | P56: 2.8 | Q56: 0 | R56: 0 | S56: 0.0661 | T56: 301.75 | U56: 0.0022 | V56: 9.98 | W56: 1.0199 | X56: 4653.86 | Y56: 9216.87
A57: P8107 | B57: Meteorologista pleno | C57: mês | D57: 6084.01 | E57: 0.797 | F57: 4848.96 | G57: 0.1113 | H57: 677.01 | I57: 0.0042 | J57: 25.61 | K57: 0 | L57: 0 | M57: 0 | N57: 0 | O57: 0.0005 | P57: 2.8 | Q57: 0 | R57: 0 | S57: 0.0496 | T57: 301.75 | U57: 0.0016 | V57: 9.98 | W57: 0.9642 | X57: 5866.1 | Y57: 11950.12
A58: P8108 | B58: Meteorologista sênior | C58: mês | D58: 10409.09 | E58: 0.797 | F58: 8296.05 | G58: 0.065 | H58: 677.01 | I58: 0.0025 | J58: 25.61 | K58: 0 | L58: 0 | M58: 0 | N58: 0 | O58: 0.0003 | P58: 2.8 | Q58: 0 | R58: 0 | S58: 0.029 | T58: 301.75 | U58: 0.001 | V58: 9.98 | W58: 0.8947 | X58: 9313.19 | Y58: 19722.28
A59: P8112 | B59: Motorista de caminhão | C59: mês | D59: 2061.12 | E59: 0.8002 | F59: 1649.31 | G59: 0.3285 | H59: 677.01 | I59: 0.0157 | J59: 32.41 | K59: 0 | L59: 0 | M59: 0.0463 | N59: 95.36 | O59: 0.0021 | P59: 4.31 | Q59: 0 | R59: 0 | S59: 0.1464 | T59: 301.75 | U59: 0.0048 | V59: 9.98 | W59: 1.344 | X59: 2770.12 | Y59: 4831.24
A60: P8113 | B60: Motorista de veículo leve | C60: mês | D60: 1905.56 | E60: 0.7989 | F60: 1522.36 | G60: 0.3553 | H60: 677.01 | I60: 0.0178 | J60: 33.89 | K60: 0 | L60: 0 | M60: 0.0549 | N60: 104.7 | O60: 0.0021 | P60: 3.93 | Q60: 0 | R60: 0 | S60: 0.1584 | T60: 301.75 | U60: 0.0052 | V60: 9.98 | W60: 1.3926 | X60: 2653.61 | Y60: 4559.18
A61: P8117 | B61: Oceanógrafo júnior | C61: mês | D61: 4581.89 | E61: 0.8203 | F61: 3758.53 | G61: 0.1478 | H61: 677.01 | I61: 0.0081 | J61: 37.22 | K61: 0 | L61: 0 | M61: 0 | N61: 0 | O61: 0.0013 | P61: 5.93 | Q61: 0 | R61: 0 | S61: 0.0659 | T61: 301.75 | U61: 0.0022 | V61: 9.98 | W61: 1.0455 | X61: 4790.41 | Y61: 9372.3
A62: P8118 | B62: Oceanógrafo pleno | C62: mês | D62: 6109.19 | E62: 0.8203 | F62: 5011.37 | G62: 0.1108 | H62: 677.01 | I62: 0.0061 | J62: 37.22 | K62: 0 | L62: 0 | M62: 0 | N62: 0 | O62: 0.001 | P62: 5.93 | Q62: 0 | R62: 0 | S62: 0.0494 | T62: 301.75 | U62: 0.0016 | V62: 9.98 | W62: 0.9892 | X62: 6043.25 | Y62: 12152.44
A63: P8119 | B63: Oceanógrafo sênior | C63: mês | D63: 10247.31 | E63: 0.8203 | F63: 8405.87 | G63: 0.0661 | H63: 677.01 | I63: 0.0036 | J63: 37.22 | K63: 0 | L63: 0 | M63: 0 | N63: 0 | O63: 0.0006 | P63: 5.93 | Q63: 0 | R63: 0 | S63: 0.0294 | T63: 301.75 | U63: 0.001 | V63: 9.98 | W63: 0.921 | X63: 9437.75 | Y63: 19685.06
A64: P8129 | B64: Pedagogo júnior | C64: mês | D64: 2561.89 | E64: 0.7926 | F64: 2030.55 | G64: 0.2643 | H64: 677.01 | I64: 0.0149 | J64: 38.08 | K64: 0 | L64: 0 | M64: 0.0255 | N64: 65.32 | O64: 0.0011 | P64: 2.75 | Q64: 0 | R64: 0 | S64: 0.1178 | T64: 301.75 | U64: 0.0039 | V64: 9.98 | W64: 1.22 | X64: 3125.43 | Y64: 5687.32
A65: P8130 | B65: Pedagogo pleno | C65: mês | D65: 3415.85 | E65: 0.7926 | F65: 2707.4 | G65: 0.1982 | H65: 677.01 | I65: 0.0111 | J65: 38.08 | K65: 0 | L65: 0 | M65: 0.0041 | N65: 14.08 | O65: 0.0008 | P65: 2.75 | Q65: 0 | R65: 0 | S65: 0.0883 | T65: 301.75 | U65: 0.0029 | V65: 9.98 | W65: 1.0981 | X65: 3751.05 | Y65: 7166.89
A66: P8131 | B66: Pedagogo sênior | C66: mês | D66: 5543.52 | E66: 0.7926 | F66: 4393.79 | G66: 0.1221 | H66: 677.01 | I66: 0.0069 | J66: 38.08 | K66: 0 | L66: 0 | M66: 0 | N66: 0 | O66: 0.0005 | P66: 2.75 | Q66: 0 | R66: 0 | S66: 0.0544 | T66: 301.75 | U66: 0.0018 | V66: 9.98 | W66: 0.9783 | X66: 5423.36 | Y66: 10966.87
A67: P8135 | B67: Secretária | C67: mês | D67: 2364.31 | E67: 0.7983 | F67: 1887.43 | G67: 0.2863 | H67: 677.01 | I67: 0 | J67: 0 | K67: 0 | L67: 0 | M67: 0.0326 | N67: 77.17 | O67: 0.0013 | P67: 3.06 | Q67: 0 | R67: 0 | S67: 0.1276 | T67: 301.75 | U67: 0.0042 | V67: 9.98 | W67: 1.2504 | X67: 2956.4 | Y67: 5320.7
A68: P8139 | B68: Sondador | C68: mês | D68: 1824.64 | E68: 0.7976 | F68: 1455.33 | G68: 0.371 | H68: 677.01 | I68: 0.0234 | J68: 42.69 | K68: 0 | L68: 0 | M68: 0.06 | N68: 109.55 | O68: 0.0022 | P68: 4.03 | Q68: 0 | R68: 0 | S68: 0.1654 | T68: 301.75 | U68: 0.0055 | V68: 9.98 | W68: 1.4251 | X68: 2600.35 | Y68: 4424.99
A69: P8143 | B69: Técnico ambiental | C69: mês | D69: 2618.06 | E69: 0.7985 | F69: 2090.52 | G69: 0.2586 | H69: 677.01 | I69: 0.0142 | J69: 37.29 | K69: 0 | L69: 0 | M69: 0.0237 | N69: 61.95 | O69: 0.0015 | P69: 3.94 | Q69: 0 | R69: 0 | S69: 0.1153 | T69: 301.75 | U69: 0.0038 | V69: 9.98 | W69: 1.2156 | X69: 3182.44 | Y69: 5800.49
A70: P8147 | B70: Técnico de obras | C70: mês | D70: 3069.63 | E70: 0.7983 | F70: 2450.48 | G70: 0.2206 | H70: 677.01 | I70: 0.0139 | J70: 42.69 | K70: 0 | L70: 0 | M70: 0.0114 | N70: 34.85 | O70: 0.0013 | P70: 3.89 | Q70: 0 | R70: 0 | S70: 0.0983 | T70: 301.75 | U70: 0.0033 | V70: 9.98 | W70: 1.1469 | X70: 3520.66 | Y70: 6590.28
A71: P8151 | B71: Técnico de segurança do trabalho | C71: mês | D71: 4293.4 | E71: 0.802 | F71: 3443.31 | G71: 0.1577 | H71: 677.01 | I71: 0.0077 | J71: 33.13 | K71: 0 | L71: 0 | M71: 0 | N71: 0 | O71: 0.0011 | P71: 4.61 | Q71: 0 | R71: 0 | S71: 0.0703 | T71: 301.75 | U71: 0.0023 | V71: 9.98 | W71: 1.0411 | X71: 4469.78 | Y71: 8763.18
A72: P8155 | B72: Técnico em geoprocessamento | C72: mês | D72: 2433.29 | E72: 0.7962 | F72: 1937.39 | G72: 0.2782 | H72: 677.01 | I72: 0.0175 | J72: 42.69 | K72: 0 | L72: 0 | M72: 0.03 | N72: 73.03 | O72: 0.0013 | P72: 3.16 | Q72: 0 | R72: 0 | S72: 0.124 | T72: 301.75 | U72: 0.0041 | V72: 9.98 | W72: 1.2514 | X72: 3045.01 | Y72: 5478.3
A73: P8159 | B73: Técnico em informática - programador | C73: mês | D73: 3298.2 | E73: 0.7979 | F73: 2631.63 | G73: 0.2053 | H73: 677.01 | I73: 0 | J73: 0 | K73: 0 | L73: 0 | M73: 0.0064 | N73: 21.14 | O73: 0.0012 | P73: 3.86 | Q73: 0 | R73: 0 | S73: 0.0915 | T73: 301.75 | U73: 0.003 | V73: 9.98 | W73: 1.1053 | X73: 3645.37 | Y73: 6943.57
A74: P8163 | B74: Topógrafo | C74: mês | D74: 2215.09 | E74: 0.7997 | F74: 1771.41 | G74: 0.3056 | H74: 677.01 | I74: 0.0171 | J74: 37.98 | K74: 0 | L74: 0 | M74: 0.0389 | N74: 86.13 | O74: 0.0019 | P74: 4.31 | Q74: 0 | R74: 0 | S74: 0.1362 | T74: 301.75 | U74: 0.0045 | V74: 9.98 | W74: 1.304 | X74: 2888.56 | Y74: 5103.65
A75: P8167 | B75: Arquivista júnior | C75: mês | D75: 1929.44 | E75: 0.8001 | F75: 1543.75 | G75: 0.3509 | H75: 677.01 | I75: 0.0166 | J75: 32.1 | K75: 0 | L75: 0 | M75: 0.0535 | N75: 103.27 | O75: 0.0018 | P75: 3.52 | Q75: 0 | R75: 0 | S75: 0.1564 | T75: 301.75 | U75: 0.0052 | V75: 9.98 | W75: 1.3845 | X75: 2671.37 | Y75: 4600.82
A76: P8168 | B76: Arquivista pleno | C76: mês | D76: 2572.59 | E76: 0.8001 | F76: 2058.33 | G76: 0.2632 | H76: 677.01 | I76: 0.0125 | J76: 32.1 | K76: 0 | L76: 0 | M76: 0.0251 | N76: 64.68 | O76: 0.0014 | P76: 3.52 | Q76: 0 | R76: 0 | S76: 0.1173 | T76: 301.75 | U76: 0.0039 | V76: 9.98 | W76: 1.2234 | X76: 3147.37 | Y76: 5719.96
A77: P8169 | B77: Arquivista sênior | C77: mês | D77: 4087.98 | E77: 0.8001 | F77: 3270.8 | G77: 0.1656 | H77: 677.01 | I77: 0.0079 | J77: 32.1 | K77: 0 | L77: 0 | M77: 0 | N77: 0 | O77: 0.0009 | P77: 3.52 | Q77: 0 | R77: 0 | S77: 0.0738 | T77: 301.75 | U77: 0.0024 | V77: 9.98 | W77: 1.0507 | X77: 4295.16 | Y77: 8383.14
A78: P8173 | B78: Administrador júnior | C78: mês | D78: 3049.72 | E78: 0.7967 | F78: 2429.71 | G78: 0.222 | H78: 677.01 | I78: 0.0142 | J78: 43.24 | K78: 0 | L78: 0 | M78: 0.0118 | N78: 36.05 | O78: 0.0011 | P78: 3.22 | Q78: 0 | R78: 0 | S78: 0.0989 | T78: 301.75 | U78: 0.0033 | V78: 9.98 | W78: 1.148 | X78: 3500.96 | Y78: 6550.67
A79: P8174 | B79: Administrador pleno | C79: mês | D79: 4066.29 | E79: 0.7967 | F79: 3239.61 | G79: 0.1665 | H79: 677.01 | I79: 0.0106 | J79: 43.24 | K79: 0 | L79: 0 | M79: 0 | N79: 0 | O79: 0.0008 | P79: 3.22 | Q79: 0 | R79: 0 | S79: 0.0742 | T79: 301.75 | U79: 0.0025 | V79: 9.98 | W79: 1.0513 | X79: 4274.81 | Y79: 8341.1
A80: P8175 | B80: Administrador sênior | C80: mês | D80: 7066.51 | E80: 0.7967 | F80: 5629.88 | G80: 0.0958 | H80: 677.01 | I80: 0.0061 | J80: 43.24 | K80: 0 | L80: 0 | M80: 0 | N80: 0 | O80: 0.0005 | P80: 3.22 | Q80: 0 | R80: 0 | S80: 0.0427 | T80: 301.75 | U80: 0.0014 | V80: 9.98 | W80: 0.9432 | X80: 6665.08 | Y80: 13731.59
A81: P8180 | B81: Engenheiro agrimensor júnior | C81: mês | D81: 11067 | E81: 0.794 | F81: 8787.2 | G81: 0.0612 | H81: 677.01 | I81: 0 | J81: 0 | K81: 0 | L81: 0 | M81: 0 | N81: 0 | O81: 0 | P81: 0 | Q81: 0 | R81: 0 | S81: 0 | T81: 0 | U81: 0 | V81: 0 | W81: 0.8552 | X81: 9464.21 | Y81: 20531.21
A82: P8181 | B82: Engenheiro agrimensor pleno | C82: mês | D82: 11541.44 | E82: 0.794 | F82: 9163.9 | G82: 0.0587 | H82: 677.01 | I82: 0 | J82: 0 | K82: 0 | L82: 0 | M82: 0 | N82: 0 | O82: 0 | P82: 0 | Q82: 0 | R82: 0 | S82: 0 | T82: 0 | U82: 0 | V82: 0 | W82: 0.8527 | X82: 9840.91 | Y82: 21382.35
A83: P8182 | B83: Engenheiro agrimensor sênior | C83: mês | D83: 12015.88 | E83: 0.794 | F83: 9540.6 | G83: 0.0563 | H83: 677.01 | I83: 0 | J83: 0 | K83: 0 | L83: 0 | M83: 0 | N83: 0 | O83: 0 | P83: 0 | Q83: 0 | R83: 0 | S83: 0 | T83: 0 | U83: 0 | V83: 0 | W83: 0.8503 | X83: 10217.61 | Y83: 22233.49
A84: P8183 | B84: Geógrafo júnior | C84: mês | D84: 3239.76 | E84: 0.7944 | F84: 2573.67 | G84: 0.209 | H84: 677.01 | I84: 0 | J84: 0 | K84: 0 | L84: 0 | M84: 0.0076 | N84: 24.65 | O84: 0 | P84: 0 | Q84: 0 | R84: 0 | S84: 0 | T84: 0 | U84: 0 | V84: 0 | W84: 1.011 | X84: 3275.32 | Y84: 6515.09
A85: P8184 | B85: Geógrafo pleno | C85: mês | D85: 4319.68 | E85: 0.7944 | F85: 3431.56 | G85: 0.1567 | H85: 677.01 | I85: 0 | J85: 0 | K85: 0 | L85: 0 | M85: 0 | N85: 0 | O85: 0 | P85: 0 | Q85: 0 | R85: 0 | S85: 0 | T85: 0 | U85: 0 | V85: 0 | W85: 0.9511 | X85: 4108.57 | Y85: 8428.25
A86: P8185 | B86: Geógrafo sênior | C86: mês | D86: 8153.57 | E86: 0.7944 | F86: 6477.19 | G86: 0.083 | H86: 677.01 | I86: 0 | J86: 0 | K86: 0 | L86: 0 | M86: 0 | N86: 0 | O86: 0 | P86: 0 | Q86: 0 | R86: 0 | S86: 0 | T86: 0 | U86: 0 | V86: 0 | W86: 0.8774 | X86: 7154.2 | Y86: 15307.77
A87: P8186 | B87: Antropólogo júnior | C87: mês | D87: 3115.44 | E87: 0.8149 | F87: 2538.77 | G87: 0.2173 | H87: 677.01 | I87: 0.0121 | J87: 37.6 | K87: 0 | L87: 0 | M87: 0.0103 | N87: 32.11 | O87: 0.0015 | P87: 4.62 | Q87: 0 | R87: 0 | S87: 0.0969 | T87: 301.75 | U87: 0.0032 | V87: 9.98 | W87: 1.1561 | X87: 3601.84 | Y87: 6717.28
A88: P8187 | B88: Antropólogo pleno | C88: mês | D88: 4153.92 | E88: 0.8149 | F88: 3385.03 | G88: 0.163 | H88: 677.01 | I88: 0.0091 | J88: 37.6 | K88: 0 | L88: 0 | M88: 0 | N88: 0 | O88: 0.0011 | P88: 4.62 | Q88: 0 | R88: 0 | S88: 0.0726 | T88: 301.75 | U88: 0.0024 | V88: 9.98 | W88: 1.0631 | X88: 4415.99 | Y88: 8569.91
A89: P8188 | B89: Antropólogo sênior | C89: mês | D89: 6000.58 | E89: 0.8149 | F89: 4889.88 | G89: 0.1128 | H89: 677.01 | I89: 0.0063 | J89: 37.6 | K89: 0 | L89: 0 | M89: 0 | N89: 0 | O89: 0.0008 | P89: 4.62 | Q89: 0 | R89: 0 | S89: 0.0503 | T89: 301.75 | U89: 0.0017 | V89: 9.98 | W89: 0.9867 | X89: 5920.84 | Y89: 11921.42
A90: P8189 | B90: Arqueólogo júnior | C90: mês | D90: 3115.44 | E90: 0.8149 | F90: 2538.77 | G90: 0.2173 | H90: 677.01 | I90: 0.0121 | J90: 37.6 | K90: 0 | L90: 0 | M90: 0.0103 | N90: 32.11 | O90: 0.0015 | P90: 4.62 | Q90: 0 | R90: 0 | S90: 0.0969 | T90: 301.75 | U90: 0.0032 | V90: 9.98 | W90: 1.1561 | X90: 3601.84 | Y90: 6717.28
A91: P8190 | B91: Arqueólogo pleno | C91: mês | D91: 4153.92 | E91: 0.8149 | F91: 3385.03 | G91: 0.163 | H91: 677.01 | I91: 0.0091 | J91: 37.6 | K91: 0 | L91: 0 | M91: 0 | N91: 0 | O91: 0.0011 | P91: 4.62 | Q91: 0 | R91: 0 | S91: 0.0726 | T91: 301.75 | U91: 0.0024 | V91: 9.98 | W91: 1.0631 | X91: 4415.99 | Y91: 8569.91
A92: P8191 | B92: Arqueólogo sênior | C92: mês | D92: 6000.58 | E92: 0.8149 | F92: 4889.88 | G92: 0.1128 | H92: 677.01 | I92: 0.0063 | J92: 37.6 | K92: 0 | L92: 0 | M92: 0 | N92: 0 | O92: 0.0008 | P92: 4.62 | Q92: 0 | R92: 0 | S92: 0.0503 | T92: 301.75 | U92: 0.0017 | V92: 9.98 | W92: 0.9867 | X92: 5920.84 | Y92: 11921.42
A93: P8192 | B93: Historiador júnior | C93: mês | D93: 3289.63 | E93: 0.8002 | F93: 2632.36 | G93: 0.2058 | H93: 677.01 | I93: 0.0114 | J93: 37.38 | K93: 0 | L93: 0 | M93: 0.0066 | N93: 21.65 | O93: 0.0012 | P93: 3.98 | Q93: 0 | R93: 0 | S93: 0.0917 | T93: 301.75 | U93: 0.003 | V93: 9.98 | W93: 1.1199 | X93: 3684.12 | Y93: 6973.75
A94: P8193 | B94: Historiador pleno | C94: mês | D94: 4386.17 | E94: 0.8002 | F94: 3509.81 | G94: 0.1544 | H94: 677.01 | I94: 0.0085 | J94: 37.38 | K94: 0 | L94: 0 | M94: 0 | N94: 0 | O94: 0.0009 | P94: 3.98 | Q94: 0 | R94: 0 | S94: 0.0688 | T94: 301.75 | U94: 0.0023 | V94: 9.98 | W94: 1.0351 | X94: 4539.92 | Y94: 8926.09
A95: P8194 | B95: Historiador sênior | C95: mês | D95: 7321.05 | E95: 0.8002 | F95: 5858.3 | G95: 0.0925 | H95: 677.01 | I95: 0.0051 | J95: 37.38 | K95: 0 | L95: 0 | M95: 0 | N95: 0 | O95: 0.0005 | P95: 3.98 | Q95: 0 | R95: 0 | S95: 0.0412 | T95: 301.75 | U95: 0.0014 | V95: 9.98 | W95: 0.9409 | X95: 6888.41 | Y95: 14209.46
A96: P8195 | B96: Paleontólogo júnior | C96: mês | D96: 3115.44 | E96: 0.8149 | F96: 2538.77 | G96: 0.2173 | H96: 677.01 | I96: 0.0121 | J96: 37.6 | K96: 0 | L96: 0 | M96: 0.0103 | N96: 32.11 | O96: 0.0015 | P96: 4.62 | Q96: 0 | R96: 0 | S96: 0.0969 | T96: 301.75 | U96: 0.0032 | V96: 9.98 | W96: 1.1561 | X96: 3601.84 | Y96: 6717.28
A97: P8196 | B97: Paleontólogo pleno | C97: mês | D97: 4153.92 | E97: 0.8149 | F97: 3385.03 | G97: 0.163 | H97: 677.01 | I97: 0.0091 | J97: 37.6 | K97: 0 | L97: 0 | M97: 0 | N97: 0 | O97: 0.0011 | P97: 4.62 | Q97: 0 | R97: 0 | S97: 0.0726 | T97: 301.75 | U97: 0.0024 | V97: 9.98 | W97: 1.0631 | X97: 4415.99 | Y97: 8569.91
A98: P8197 | B98: Paleontólogo sênior | C98: mês | D98: 6000.58 | E98: 0.8149 | F98: 4889.88 | G98: 0.1128 | H98: 677.01 | I98: 0.0063 | J98: 37.6 | K98: 0 | L98: 0 | M98: 0 | N98: 0 | O98: 0.0008 | P98: 4.62 | Q98: 0 | R98: 0 | S98: 0.0503 | T98: 301.75 | U98: 0.0017 | V98: 9.98 | W98: 0.9867 | X98: 5920.84 | Y98: 11921.42
A99: P8198 | B99: Sociólogo júnior | C99: mês | D99: 3289.63 | E99: 0.8002 | F99: 2632.36 | G99: 0.2058 | H99: 677.01 | I99: 0.0114 | J99: 37.38 | K99: 0 | L99: 0 | M99: 0.0066 | N99: 21.65 | O99: 0.0012 | P99: 3.98 | Q99: 0 | R99: 0 | S99: 0.0917 | T99: 301.75 | U99: 0.003 | V99: 9.98 | W99: 1.1199 | X99: 3684.12 | Y99: 6973.75
A100: P8199 | B100: Sociólogo pleno | C100: mês | D100: 4386.17 | E100: 0.8002 | F100: 3509.81 | G100: 0.1544 | H100: 677.01 | I100: 0.0085 | J100: 37.38 | K100: 0 | L100: 0 | M100: 0 | N100: 0 | O100: 0.0009 | P100: 3.98 | Q100: 0 | R100: 0 | S100: 0.0688 | T100: 301.75 | U100: 0.0023 | V100: 9.98 | W100: 1.0351 | X100: 4539.92 | Y100: 8926.09
A101: P8200 | B101: Sociólogo sênior | C101: mês | D101: 7321.05 | E101: 0.8002 | F101: 5858.3 | G101: 0.0925 | H101: 677.01 | I101: 0.0051 | J101: 37.38 | K101: 0 | L101: 0 | M101: 0 | N101: 0 | O101: 0.0005 | P101: 3.98 | Q101: 0 | R101: 0 | S101: 0.0412 | T101: 301.75 | U101: 0.0014 | V101: 9.98 | W101: 0.9409 | X101: 6888.41 | Y101: 14209.46
A102: Fonte: FGV IBRE

Sheet DNIT TC -042023 (hidden)
A1: Código | B1: Categoria | C1: Unid. | D1: Salário | E1: Encargos Sociais | G1: Encargos Complementares | Q1: Encargos Adicionais | W1: Encargos Totais | Y1: Valor Total
G2: Alimentação | I2: EPI | K2: Ferramenta | M2: Transporte | O2: Exame Ocupacional | Q2: Cesta Básica | S2: Assistência Médica | U2: Seguro de Vida
D3: R$ | E3: % | F3: R$ | G3: % | H3: R$ | I3: % | J3: R$ | K3: % | L3: R$ | M3: % | N3: R$ | O3: % | P3: R$ | Q3: % | R3: R$ | S3: % | T3: R$ | U3: % | V3: R$ | W3: % | X3: R$ | Y3: R$
A4: P8001 | B4: Advogado júnior | C4: mês | D4: 4222.14 | E4: 0.7963 | F4: 3362.09 | G4: 0.1603 | H4: 677.01 | I4: 0.0062 | J4: 26.03 | K4: 0 | L4: 0 | M4: 0 | N4: 0 | O4: 0.0008 | P4: 3.47 | Q4: 0 | R4: 0 | S4: 0.0714 | T4: 301.42 | U4: 0.0024 | V4: 9.98 | W4: 1.0374 | X4: 4379.99 | Y4: 8602.13
A5: P8002 | B5: Advogado pleno | C5: mês | D5: 5629.52 | E5: 0.7963 | F5: 4482.78 | G5: 0.1203 | H5: 677.01 | I5: 0.0046 | J5: 26.03 | K5: 0 | L5: 0 | M5: 0 | N5: 0 | O5: 0.0006 | P5: 3.47 | Q5: 0 | R5: 0 | S5: 0.0535 | T5: 301.42 | U5: 0.0018 | V5: 9.98 | W5: 0.9771 | X5: 5500.69 | Y5: 11130.21
A6: P8003 | B6: Advogado sênior | C6: mês | D6: 9740.87 | E6: 0.7963 | F6: 7756.65 | G6: 0.0695 | H6: 677.01 | I6: 0.0027 | J6: 26.03 | K6: 0 | L6: 0 | M6: 0 | N6: 0 | O6: 0.0004 | P6: 3.47 | Q6: 0 | R6: 0 | S6: 0.0309 | T6: 301.42 | U6: 0.001 | V6: 9.98 | W6: 0.9008 | X6: 8774.56 | Y6: 18515.43
A7: P8007 | B7: Analista de desenvolvimento de sistemas júnior | C7: mês | D7: 3731.91 | E7: 0.7938 | F7: 2962.39 | G7: 0.1814 | H7: 677.01 | I7: 0 | J7: 0 | K7: 0 | L7: 0 | M7: 0 | N7: 0 | O7: 0.0009 | P7: 3.29 | Q7: 0 | R7: 0 | S7: 0.0808 | T7: 301.42 | U7: 0.0027 | V7: 9.98 | W7: 1.0595 | X7: 3954.09 | Y7: 7686
A8: P8008 | B8: Analista de desenvolvimento de sistemas pleno | C8: mês | D8: 4975.88 | E8: 0.7938 | F8: 3949.85 | G8: 0.1361 | H8: 677.01 | I8: 0 | J8: 0 | K8: 0 | L8: 0 | M8: 0 | N8: 0 | O8: 0.0007 | P8: 3.29 | Q8: 0 | R8: 0 | S8: 0.0606 | T8: 301.42 | U8: 0.002 | V8: 9.98 | W8: 0.9931 | X8: 4941.55 | Y8: 9917.43
A9: P8009 | B9: Analista de desenvolvimento de sistemas sênior | C9: mês | D9: 8853.75 | E9: 0.7938 | F9: 7028.1 | G9: 0.0765 | H9: 677.01 | I9: 0 | J9: 0 | K9: 0 | L9: 0 | M9: 0 | N9: 0 | O9: 0.0004 | P9: 3.29 | Q9: 0 | R9: 0 | S9: 0.034 | T9: 301.42 | U9: 0.0011 | V9: 9.98 | W9: 0.9058 | X9: 8019.8 | Y9: 16873.55
A10: P8013 | B10: Arquiteto júnior | C10: mês | D10: 11067 | E10: 0.7924 | F10: 8769.49 | G10: 0.0612 | H10: 677.01 | I10: 0.0024 | J10: 26.03 | K10: 0 | L10: 0 | M10: 0 | N10: 0 | O10: 0.0002 | P10: 2.6 | Q10: 0 | R10: 0 | S10: 0.0272 | T10: 301.42 | U10: 0.0009 | V10: 9.98 | W10: 0.8843 | X10: 9786.52 | Y10: 20853.52
A11: P8014 | B11: Arquiteto pleno | C11: mês | D11: 11492.2 | E11: 0.7924 | F11: 9106.42 | G11: 0.0589 | H11: 677.01 | I11: 0.0023 | J11: 26.03 | K11: 0 | L11: 0 | M11: 0 | N11: 0 | O11: 0.0002 | P11: 2.6 | Q11: 0 | R11: 0 | S11: 0.0262 | T11: 301.42 | U11: 0.0009 | V11: 9.98 | W11: 0.8809 | X11: 10123.45 | Y11: 21615.65
A12: P8015 | B12: Arquiteto sênior | C12: mês | D12: 14185.72 | E12: 0.7924 | F12: 11240.77 | G12: 0.0477 | H12: 677.01 | I12: 0.0018 | J12: 26.03 | K12: 0 | L12: 0 | M12: 0 | N12: 0 | O12: 0.0002 | P12: 2.6 | Q12: 0 | R12: 0 | S12: 0.0212 | T12: 301.42 | U12: 0.0007 | V12: 9.98 | W12: 0.8641 | X12: 12257.8 | Y12: 26443.52
A13: P8019 | B13: Assistente social júnior | C13: mês | D13: 2867.66 | E13: 0.7997 | F13: 2293.27 | G13: 0.2361 | H13: 677.01 | I13: 0.0091 | J13: 26.03 | K13: 0 | L13: 0 | M13: 0.0164 | N13: 46.97 | O13: 0.0013 | P13: 3.82 | Q13: 0 | R13: 0 | S13: 0.1051 | T13: 301.42 | U13: 0.0035 | V13: 9.98 | W13: 1.1712 | X13: 3358.5 | Y13: 6226.16
A14: P8020 | B14: Assistente social pleno | C14: mês | D14: 3823.55 | E14: 0.7997 | F14: 3057.69 | G14: 0.1771 | H14: 677.01 | I14: 0.0068 | J14: 26.03 | K14: 0 | L14: 0 | M14: 0 | N14: 0 | O14: 0.001 | P14: 3.82 | Q14: 0 | R14: 0 | S14: 0.0788 | T14: 301.42 | U14: 0.0026 | V14: 9.98 | W14: 1.066 | X14: 4075.95 | Y14: 7899.5
A15: P8021 | B15: Assistente social sênior | C15: mês | D15: 6517.04 | E15: 0.7997 | F15: 5211.68 | G15: 0.1039 | H15: 677.01 | I15: 0.004 | J15: 26.03 | K15: 0 | L15: 0 | M15: 0 | N15: 0 | O15: 0.0006 | P15: 3.82 | Q15: 0 | R15: 0 | S15: 0.0463 | T15: 301.42 | U15: 0.0015 | V15: 9.98 | W15: 0.9559 | X15: 6229.93 | Y15: 12746.97
A16: P8025 | B16: Auxiliar | C16: mês | D16: 1428.53 | E16: 0.7998 | F16: 1142.54 | G16: 0.4739 | H16: 677.01 | I16: 0.0222 | J16: 31.69 | K16: 0.0011 | L16: 1.62 | M16: 0.0933 | N16: 133.32 | O16: 0.0025 | P16: 3.57 | Q16: 0 | R16: 0 | S16: 0.211 | T16: 301.42 | U16: 0.007 | V16: 9.98 | W16: 1.6109 | X16: 2301.15 | Y16: 3729.68
A17: P8026 | B17: Auxiliar administrativo | C17: mês | D17: 1708.51 | E17: 0.8011 | F17: 1368.69 | G17: 0.3963 | H17: 677.01 | I17: 0 | J17: 0 | K17: 0 | L17: 0 | M17: 0.0682 | N17: 116.52 | O17: 0.0025 | P17: 4.28 | Q17: 0 | R17: 0 | S17: 0.1764 | T17: 301.42 | U17: 0.0058 | V17: 9.98 | W17: 1.4503 | X17: 2477.89 | Y17: 4186.4
A18: P8027 | B18: Auxiliar de laboratório | C18: mês | D18: 1609.67 | E18: 0.7988 | F18: 1285.81 | G18: 0.4206 | H18: 677.01 | I18: 0.0197 | J18: 31.69 | K18: 0.0021 | L18: 3.35 | M18: 0.0761 | N18: 122.45 | O18: 0.0027 | P18: 4.37 | Q18: 0 | R18: 0 | S18: 0.1873 | T18: 301.42 | U18: 0.0062 | V18: 9.98 | W18: 1.5134 | X18: 2436.08 | Y18: 4045.75
A19: P8028 | B19: Auxiliar de topografia | C19: mês | D19: 1428.53 | E19: 0.7994 | F19: 1141.97 | G19: 0.4739 | H19: 677.01 | I19: 0.0222 | J19: 31.69 | K19: 0.001 | L19: 1.41 | M19: 0.0933 | N19: 133.32 | O19: 0.0031 | P19: 4.48 | Q19: 0 | R19: 0 | S19: 0.211 | T19: 301.42 | U19: 0.007 | V19: 9.98 | W19: 1.6109 | X19: 2301.27 | Y19: 3729.8
A20: P8032 | B20: Biólogo júnior | C20: mês | D20: 3084.04 | E20: 0.7948 | F20: 2451.2 | G20: 0.2195 | H20: 677.01 | I20: 0.0084 | J20: 26.03 | K20: 0 | L20: 0 | M20: 0.011 | N20: 33.99 | O20: 0.0011 | P20: 3.31 | Q20: 0 | R20: 0 | S20: 0.0977 | T20: 301.42 | U20: 0.0032 | V20: 9.98 | W20: 1.1358 | X20: 3502.93 | Y20: 6586.97
A21: P8033 | B21: Biólogo pleno | C21: mês | D21: 4112.06 | E21: 0.7948 | F21: 3268.26 | G21: 0.1646 | H21: 677.01 | I21: 0.0063 | J21: 26.03 | K21: 0 | L21: 0 | M21: 0 | N21: 0 | O21: 0.0008 | P21: 3.31 | Q21: 0 | R21: 0 | S21: 0.0733 | T21: 301.42 | U21: 0.0024 | V21: 9.98 | W21: 1.0423 | X21: 4286.01 | Y21: 8398.06
A22: P8034 | B22: Biólogo sênior | C22: mês | D22: 7148.83 | E22: 0.7948 | F22: 5681.89 | G22: 0.0947 | H22: 677.01 | I22: 0.0036 | J22: 26.03 | K22: 0 | L22: 0 | M22: 0 | N22: 0 | O22: 0.0005 | P22: 3.31 | Q22: 0 | R22: 0 | S22: 0.0422 | T22: 301.42 | U22: 0.0014 | V22: 9.98 | W22: 0.9372 | X22: 6699.64 | Y22: 13848.47
A23: P8038 | B23: Chefe de escritório | C23: mês | D23: 3122.68 | E23: 0.7972 | F23: 2489.4 | G23: 0.2168 | H23: 677.01 | I23: 0 | J23: 0 | K23: 0 | L23: 0 | M23: 0.0101 | N23: 31.67 | O23: 0.001 | P23: 3.05 | Q23: 0 | R23: 0 | S23: 0.0965 | T23: 301.42 | U23: 0.0032 | V23: 9.98 | W23: 1.1248 | X23: 3512.52 | Y23: 6635.2
A24: P8040 | B24: Contador júnior | C24: mês | D24: 3909.36 | E24: 0.7961 | F24: 3112.24 | G24: 0.1732 | H24: 677.01 | I24: 0 | J24: 0 | K24: 0 | L24: 0 | M24: 0 | N24: 0 | O24: 0.0008 | P24: 3.14 | Q24: 0 | R24: 0 | S24: 0.0771 | T24: 301.42 | U24: 0.0026 | V24: 9.98 | W24: 1.0497 | X24: 4103.79 | Y24: 8013.14
A25: P8041 | B25: Contador pleno | C25: mês | D25: 5212.47 | E25: 0.7961 | F25: 4149.65 | G25: 0.1299 | H25: 677.01 | I25: 0 | J25: 0 | K25: 0 | L25: 0 | M25: 0 | N25: 0 | O25: 0.0006 | P25: 3.14 | Q25: 0 | R25: 0 | S25: 0.0578 | T25: 301.42 | U25: 0.0019 | V25: 9.98 | W25: 0.9863 | X25: 5141.2 | Y25: 10353.67
A26: P8042 | B26: Contador sênior | C26: mês | D26: 9737.02 | E26: 0.7961 | F26: 7751.64 | G26: 0.0695 | H26: 677.01 | I26: 0 | J26: 0 | K26: 0 | L26: 0 | M26: 0 | N26: 0 | O26: 0.0003 | P26: 3.14 | Q26: 0 | R26: 0 | S26: 0.031 | T26: 301.42 | U26: 0.001 | V26: 9.98 | W26: 0.8979 | X26: 8743.19 | Y26: 18480.22
A27: P8044 | B27: Coordenador ambiental | C27: mês | D27: 15552.43 | E27: 0.7945 | F27: 12356.4 | G27: 0.0435 | H27: 677.01 | I27: 0.0015 | J27: 23.77 | K27: 0 | L27: 0 | M27: 0 | N27: 0 | O27: 0.0002 | P27: 3.38 | Q27: 0 | R27: 0 | S27: 0.0194 | T27: 301.42 | U27: 0.0006 | V27: 9.98 | W27: 0.8598 | X27: 13371.96 | Y27: 28924.39
A28: P8045 | B28: Economista júnior | C28: mês | D28: 4306.55 | E28: 0.7922 | F28: 3411.65 | G28: 0.1572 | H28: 677.01 | I28: 0 | J28: 0 | K28: 0 | L28: 0 | M28: 0 | N28: 0 | O28: 0.0007 | P28: 3.03 | Q28: 0 | R28: 0 | S28: 0.07 | T28: 301.42 | U28: 0.0023 | V28: 9.98 | W28: 1.0224 | X28: 4403.09 | Y28: 8709.64
A29: P8046 | B29: Economista pleno | C29: mês | D29: 5742.07 | E29: 0.7922 | F29: 4548.87 | G29: 0.1179 | H29: 677.01 | I29: 0 | J29: 0 | K29: 0 | L29: 0 | M29: 0 | N29: 0 | O29: 0.0005 | P29: 3.03 | Q29: 0 | R29: 0 | S29: 0.0525 | T29: 301.42 | U29: 0.0017 | V29: 9.98 | W29: 0.9649 | X29: 5540.31 | Y29: 11282.38
A30: P8047 | B30: Economista sênior | C30: mês | D30: 9853.56 | E30: 0.7922 | F30: 7805.99 | G30: 0.0687 | H30: 677.01 | I30: 0 | J30: 0 | K30: 0 | L30: 0 | M30: 0 | N30: 0 | O30: 0.0003 | P30: 3.03 | Q30: 0 | R30: 0 | S30: 0.0306 | T30: 301.42 | U30: 0.001 | V30: 9.98 | W30: 0.8928 | X30: 8797.43 | Y30: 18650.99
A31: P8054 | B31: Engenheiro agrônomo júnior | C31: mês | D31: 11067 | E31: 0.7903 | F31: 8746.25 | G31: 0.0612 | H31: 677.01 | I31: 0.0024 | J31: 26.03 | K31: 0 | L31: 0 | M31: 0 | N31: 0 | O31: 0.0003 | P31: 3.08 | Q31: 0 | R31: 0 | S31: 0.0272 | T31: 301.42 | U31: 0.0009 | V31: 9.98 | W31: 0.8822 | X31: 9763.76 | Y31: 20830.76
A32: P8055 | B32: Engenheiro agrônomo pleno | C32: mês | D32: 12027.17 | E32: 0.7903 | F32: 9505.07 | G32: 0.0563 | H32: 677.01 | I32: 0.0022 | J32: 26.03 | K32: 0 | L32: 0 | M32: 0 | N32: 0 | O32: 0.0003 | P32: 3.08 | Q32: 0 | R32: 0 | S32: 0.0251 | T32: 301.42 | U32: 0.0008 | V32: 9.98 | W32: 0.8749 | X32: 10522.59 | Y32: 22549.76
A33: P8056 | B33: Engenheiro agrônomo sênior | C33: mês | D33: 12987.35 | E33: 0.7903 | F33: 10263.9 | G33: 0.0521 | H33: 677.01 | I33: 0.002 | J33: 26.03 | K33: 0 | L33: 0 | M33: 0 | N33: 0 | O33: 0.0002 | P33: 3.08 | Q33: 0 | R33: 0 | S33: 0.0232 | T33: 301.42 | U33: 0.0008 | V33: 9.98 | W33: 0.8686 | X33: 11281.41 | Y33: 24268.76
A34: P8057 | B34: Engenheiro ambiental júnior | C34: mês | D34: 11067 | E34: 0.7957 | F34: 8806.01 | G34: 0.0612 | H34: 677.01 | I34: 0.0024 | J34: 26.03 | K34: 0 | L34: 0 | M34: 0 | N34: 0 | O34: 0.0003 | P34: 3.45 | Q34: 0 | R34: 0 | S34: 0.0272 | T34: 301.42 | U34: 0.0009 | V34: 9.98 | W34: 0.8877 | X34: 9823.9 | Y34: 20890.9
A35: P8058 | B35: Engenheiro ambiental pleno | C35: mês | D35: 11113.77 | E35: 0.7957 | F35: 8843.23 | G35: 0.0609 | H35: 677.01 | I35: 0.0023 | J35: 26.03 | K35: 0 | L35: 0 | M35: 0 | N35: 0 | O35: 0.0003 | P35: 3.45 | Q35: 0 | R35: 0 | S35: 0.0271 | T35: 301.42 | U35: 0.0009 | V35: 9.98 | W35: 0.8873 | X35: 9861.12 | Y35: 20974.89
A36: P8059 | B36: Engenheiro ambiental sênior | C36: mês | D36: 13306.5 | E36: 0.7957 | F36: 10587.98 | G36: 0.0509 | H36: 677.01 | I36: 0.002 | J36: 26.03 | K36: 0 | L36: 0 | M36: 0 | N36: 0 | O36: 0.0003 | P36: 3.45 | Q36: 0 | R36: 0 | S36: 0.0227 | T36: 301.42 | U36: 0.0008 | V36: 9.98 | W36: 0.8722 | X36: 11605.87 | Y36: 24912.36
A37: P8060 | B37: Engenheiro consultor especial | C37: mês | D37: 20421.76 | E37: 0.7939 | F37: 16212.84 | G37: 0.0332 | H37: 677.01 | I37: 0.0012 | J37: 23.77 | K37: 0 | L37: 0 | M37: 0 | N37: 0 | O37: 0.0002 | P37: 3.32 | Q37: 0 | R37: 0 | S37: 0.0148 | T37: 301.42 | U37: 0.0005 | V37: 9.98 | W37: 0.8436 | X37: 17228.34 | Y37: 37650.1
A38: P8061 | B38: Engenheiro coordenador | C38: mês | D38: 17018.13 | E38: 0.7939 | F38: 13510.7 | G38: 0.0398 | H38: 677.01 | I38: 0.0014 | J38: 23.77 | K38: 0 | L38: 0 | M38: 0 | N38: 0 | O38: 0.0002 | P38: 3.32 | Q38: 0 | R38: 0 | S38: 0.0177 | T38: 301.42 | U38: 0.0006 | V38: 9.98 | W38: 0.8536 | X38: 14526.2 | Y38: 31544.33
A39: P8062 | B39: Engenheiro de pesca júnior | C39: mês | D39: 11067 | E39: 0.7971 | F39: 8821.51 | G39: 0.0612 | H39: 677.01 | I39: 0.0024 | J39: 26.03 | K39: 0 | L39: 0 | M39: 0 | N39: 0 | O39: 0.0004 | P39: 3.89 | Q39: 0 | R39: 0 | S39: 0.0272 | T39: 301.42 | U39: 0.0009 | V39: 9.98 | W39: 0.8891 | X39: 9839.83 | Y39: 20906.83
A40: P8063 | B40: Engenheiro de pesca pleno | C40: mês | D40: 11199.09 | E40: 0.7971 | F40: 8926.8 | G40: 0.0605 | H40: 677.01 | I40: 0.0023 | J40: 26.03 | K40: 0 | L40: 0 | M40: 0 | N40: 0 | O40: 0.0003 | P40: 3.89 | Q40: 0 | R40: 0 | S40: 0.0269 | T40: 301.42 | U40: 0.0009 | V40: 9.98 | W40: 0.888 | X40: 9945.12 | Y40: 21144.22
A41: P8064 | B41: Engenheiro de pesca sênior | C41: mês | D41: 12672.11 | E41: 0.7971 | F41: 10100.94 | G41: 0.0534 | H41: 677.01 | I41: 0.0021 | J41: 26.03 | K41: 0 | L41: 0 | M41: 0 | N41: 0 | O41: 0.0003 | P41: 3.89 | Q41: 0 | R41: 0 | S41: 0.0238 | T41: 301.42 | U41: 0.0008 | V41: 9.98 | W41: 0.8775 | X41: 11119.27 | Y41: 23791.38
A42: P8065 | B42: Engenheiro de projetos júnior | C42: mês | D42: 11067 | E42: 0.7939 | F42: 8786.09 | G42: 0.0612 | H42: 677.01 | I42: 0.0024 | J42: 26.03 | K42: 0 | L42: 0 | M42: 0 | N42: 0 | O42: 0.0003 | P42: 3.32 | Q42: 0 | R42: 0 | S42: 0.0272 | T42: 301.42 | U42: 0.0009 | V42: 9.98 | W42: 0.8859 | X42: 9803.85 | Y42: 20870.85
A43: P8066 | B43: Engenheiro de projetos pleno | C43: mês | D43: 11469.24 | E43: 0.7939 | F43: 9105.43 | G43: 0.059 | H43: 677.01 | I43: 0.0023 | J43: 26.03 | K43: 0 | L43: 0 | M43: 0 | N43: 0 | O43: 0.0003 | P43: 3.32 | Q43: 0 | R43: 0 | S43: 0.0263 | T43: 301.42 | U43: 0.0009 | V43: 9.98 | W43: 0.8826 | X43: 10123.19 | Y43: 21592.42
A44: P8067 | B44: Engenheiro de projetos sênior | C44: mês | D44: 14672.91 | E44: 0.7939 | F44: 11648.82 | G44: 0.0461 | H44: 677.01 | I44: 0.0018 | J44: 26.03 | K44: 0 | L44: 0 | M44: 0 | N44: 0 | O44: 0.0002 | P44: 3.32 | Q44: 0 | R44: 0 | S44: 0.0205 | T44: 301.42 | U44: 0.0007 | V44: 9.98 | W44: 0.8633 | X44: 12666.58 | Y44: 27339.49
A45: P8068 | B45: Engenheiro florestal júnior | C45: mês | D45: 11067 | E45: 0.7971 | F45: 8821.51 | G45: 0.0612 | H45: 677.01 | I45: 0.0024 | J45: 26.03 | K45: 0 | L45: 0 | M45: 0 | N45: 0 | O45: 0.0004 | P45: 3.89 | Q45: 0 | R45: 0 | S45: 0.0272 | T45: 301.42 | U45: 0.0009 | V45: 9.98 | W45: 0.8891 | X45: 9839.83 | Y45: 20906.83
A46: P8069 | B46: Engenheiro florestal pleno | C46: mês | D46: 11199.11 | E46: 0.7971 | F46: 8926.81 | G46: 0.0605 | H46: 677.01 | I46: 0.0023 | J46: 26.03 | K46: 0 | L46: 0 | M46: 0 | N46: 0 | O46: 0.0003 | P46: 3.89 | Q46: 0 | R46: 0 | S46: 0.0269 | T46: 301.42 | U46: 0.0009 | V46: 9.98 | W46: 0.888 | X46: 9945.14 | Y46: 21144.25
A47: P8070 | B47: Engenheiro florestal sênior | C47: mês | D47: 12672.11 | E47: 0.7971 | F47: 10100.94 | G47: 0.0534 | H47: 677.01 | I47: 0.0021 | J47: 26.03 | K47: 0 | L47: 0 | M47: 0 | N47: 0 | O47: 0.0003 | P47: 3.89 | Q47: 0 | R47: 0 | S47: 0.0238 | T47: 301.42 | U47: 0.0008 | V47: 9.98 | W47: 0.8775 | X47: 11119.27 | Y47: 23791.38
A48: P8080 | B48: Geólogo júnior | C48: mês | D48: 10004.5 | E48: 0.7959 | F48: 7962.58 | G48: 0.0677 | H48: 677.01 | I48: 0.0026 | J48: 26.03 | K48: 0 | L48: 0 | M48: 0 | N48: 0 | O48: 0.0004 | P48: 3.55 | Q48: 0 | R48: 0 | S48: 0.0301 | T48: 301.42 | U48: 0.001 | V48: 9.98 | W48: 0.8977 | X48: 8980.57 | Y48: 18985.07
A49: P8081 | B49: Geólogo pleno | C49: mês | D49: 10526.36 | E49: 0.7959 | F49: 8377.93 | G49: 0.0643 | H49: 677.01 | I49: 0.0025 | J49: 26.03 | K49: 0 | L49: 0 | M49: 0 | N49: 0 | O49: 0.0003 | P49: 3.55 | Q49: 0 | R49: 0 | S49: 0.0286 | T49: 301.42 | U49: 0.0009 | V49: 9.98 | W49: 0.8926 | X49: 9395.92 | Y49: 19922.28
A50: P8082 | B50: Geólogo sênior | C50: mês | D50: 14001.61 | E50: 0.7959 | F50: 11143.88 | G50: 0.0484 | H50: 677.01 | I50: 0.0019 | J50: 26.03 | K50: 0 | L50: 0 | M50: 0 | N50: 0 | O50: 0.0003 | P50: 3.55 | Q50: 0 | R50: 0 | S50: 0.0215 | T50: 301.42 | U50: 0.0007 | V50: 9.98 | W50: 0.8686 | X50: 12161.87 | Y50: 26163.48
A51: P8092 | B51: Jornalista júnior | C51: mês | D51: 2682.71 | E51: 0.7963 | F51: 2136.24 | G51: 0.2524 | H51: 677.01 | I51: 0.0097 | J51: 26.03 | K51: 0 | L51: 0 | M51: 0.0216 | N51: 58.07 | O51: 0.0011 | P51: 2.95 | Q51: 0 | R51: 0 | S51: 0.1124 | T51: 301.42 | U51: 0.0037 | V51: 9.98 | W51: 1.1972 | X51: 3211.7 | Y51: 5894.4
A52: P8093 | B52: Jornalista pleno | C52: mês | D52: 3576.94 | E52: 0.7963 | F52: 2848.32 | G52: 0.1893 | H52: 677.01 | I52: 0.0073 | J52: 26.03 | K52: 0 | L52: 0 | M52: 0.0012 | N52: 4.42 | O52: 0.0008 | P52: 2.95 | Q52: 0 | R52: 0 | S52: 0.0843 | T52: 301.42 | U52: 0.0028 | V52: 9.98 | W52: 1.082 | X52: 3870.12 | Y52: 7447.06
A53: P8094 | B53: Jornalista sênior | C53: mês | D53: 6931.43 | E53: 0.7963 | F53: 5519.5 | G53: 0.0977 | H53: 677.01 | I53: 0.0038 | J53: 26.03 | K53: 0 | L53: 0 | M53: 0 | N53: 0 | O53: 0.0004 | P53: 2.95 | Q53: 0 | R53: 0 | S53: 0.0435 | T53: 301.42 | U53: 0.0014 | V53: 9.98 | W53: 0.9431 | X53: 6536.88 | Y53: 13468.31
A54: P8098 | B54: Laboratorista | C54: mês | D54: 2146.23 | E54: 0.7988 | F54: 1714.41 | G54: 0.3154 | H54: 677.01 | I54: 0.0136 | J54: 29.18 | K54: 0 | L54: 0 | M54: 0.0421 | N54: 90.26 | O54: 0.002 | P54: 4.37 | Q54: 0 | R54: 0 | S54: 0.1404 | T54: 301.42 | U54: 0.0047 | V54: 9.98 | W54: 1.317 | X54: 2826.63 | Y54: 4972.86
A55: P8102 | B55: Médico veterinário | C55: mês | D55: 11067 | E55: 0.792 | F55: 8765.06 | G55: 0.0612 | H55: 677.01 | I55: 0.0024 | J55: 26.03 | K55: 0 | L55: 0 | M55: 0 | N55: 0 | O55: 0.0003 | P55: 2.98 | Q55: 0 | R55: 0 | S55: 0.0272 | T55: 301.42 | U55: 0.0009 | V55: 9.98 | W55: 0.8839 | X55: 9782.48 | Y55: 20849.48
A56: P8106 | B56: Meteorologista júnior | C56: mês | D56: 4696.66 | E56: 0.7956 | F56: 3736.66 | G56: 0.1441 | H56: 677.01 | I56: 0.0055 | J56: 26.03 | K56: 0 | L56: 0 | M56: 0 | N56: 0 | O56: 0.0006 | P56: 2.8 | Q56: 0 | R56: 0 | S56: 0.0642 | T56: 301.42 | U56: 0.0021 | V56: 9.98 | W56: 1.0122 | X56: 4753.9 | Y56: 9450.55
A57: P8107 | B57: Meteorologista pleno | C57: mês | D57: 6262.21 | E57: 0.7956 | F57: 4982.21 | G57: 0.1081 | H57: 677.01 | I57: 0.0042 | J57: 26.03 | K57: 0 | L57: 0 | M57: 0 | N57: 0 | O57: 0.0004 | P57: 2.8 | Q57: 0 | R57: 0 | S57: 0.0481 | T57: 301.42 | U57: 0.0016 | V57: 9.98 | W57: 0.958 | X57: 5999.45 | Y57: 12261.66
A58: P8108 | B58: Meteorologista sênior | C58: mês | D58: 10569.08 | E58: 0.7956 | F58: 8408.76 | G58: 0.0641 | H58: 677.01 | I58: 0.0025 | J58: 26.03 | K58: 0 | L58: 0 | M58: 0 | N58: 0 | O58: 0.0003 | P58: 2.8 | Q58: 0 | R58: 0 | S58: 0.0285 | T58: 301.42 | U58: 0.0009 | V58: 9.98 | W58: 0.8918 | X58: 9425.99 | Y58: 19995.07
A59: P8112 | B59: Motorista de caminhão | C59: mês | D59: 2096.81 | E59: 0.7998 | F59: 1677.03 | G59: 0.3229 | H59: 677.01 | I59: 0.0151 | J59: 31.69 | K59: 0 | L59: 0 | M59: 0.0445 | N59: 93.22 | O59: 0.0021 | P59: 4.41 | Q59: 0 | R59: 0 | S59: 0.1438 | T59: 301.42 | U59: 0.0048 | V59: 9.98 | W59: 1.3329 | X59: 2794.76 | Y59: 4891.57
A60: P8113 | B60: Motorista de veículo leve | C60: mês | D60: 1918.44 | E60: 0.7971 | F60: 1529.19 | G60: 0.3529 | H60: 677.01 | I60: 0.0165 | J60: 31.69 | K60: 0 | L60: 0 | M60: 0.0542 | N60: 103.93 | O60: 0.002 | P60: 3.88 | Q60: 0 | R60: 0 | S60: 0.1571 | T60: 301.42 | U60: 0.0052 | V60: 9.98 | W60: 1.385 | X60: 2657.09 | Y60: 4575.53
A61: P8117 | B61: Oceanógrafo júnior | C61: mês | D61: 4509.57 | E61: 0.8358 | F61: 3769.1 | G61: 0.1501 | H61: 677.01 | I61: 0.0058 | J61: 26.03 | K61: 0 | L61: 0 | M61: 0 | N61: 0 | O61: 0.0016 | P61: 7.38 | Q61: 0 | R61: 0 | S61: 0.0668 | T61: 301.42 | U61: 0.0022 | V61: 9.98 | W61: 1.0624 | X61: 4790.92 | Y61: 9300.5
A62: P8118 | B62: Oceanógrafo pleno | C62: mês | D62: 6012.77 | E62: 0.8358 | F62: 5025.47 | G62: 0.1126 | H62: 677.01 | I62: 0.0043 | J62: 26.03 | K62: 0 | L62: 0 | M62: 0 | N62: 0 | O62: 0.0012 | P62: 7.38 | Q62: 0 | R62: 0 | S62: 0.0501 | T62: 301.42 | U62: 0.0017 | V62: 9.98 | W62: 1.0057 | X62: 6047.29 | Y62: 12060.05
A63: P8119 | B63: Oceanógrafo sênior | C63: mês | D63: 9797.51 | E63: 0.8358 | F63: 8188.76 | G63: 0.0691 | H63: 677.01 | I63: 0.0027 | J63: 26.03 | K63: 0 | L63: 0 | M63: 0 | N63: 0 | O63: 0.0008 | P63: 7.38 | Q63: 0 | R63: 0 | S63: 0.0308 | T63: 301.42 | U63: 0.001 | V63: 9.98 | W63: 0.9401 | X63: 9210.58 | Y63: 19008.09
A64: P8129 | B64: Pedagogo júnior | C64: mês | D64: 2605.46 | E64: 0.7969 | F64: 2076.29 | G64: 0.2598 | H64: 677.01 | I64: 0.01 | J64: 26.03 | K64: 0 | L64: 0 | M64: 0.0241 | N64: 62.7 | O64: 0.0016 | P64: 4.22 | Q64: 0 | R64: 0 | S64: 0.1157 | T64: 301.42 | U64: 0.0038 | V64: 9.98 | W64: 1.2119 | X64: 3157.64 | Y64: 5763.1
A65: P8130 | B65: Pedagogo pleno | C65: mês | D65: 3473.94 | E65: 0.7969 | F65: 2768.38 | G65: 0.1949 | H65: 677.01 | I65: 0.0075 | J65: 26.03 | K65: 0 | L65: 0 | M65: 0.003 | N65: 10.6 | O65: 0.0012 | P65: 4.22 | Q65: 0 | R65: 0 | S65: 0.0868 | T65: 301.42 | U65: 0.0029 | V65: 9.98 | W65: 1.0932 | X65: 3797.63 | Y65: 7271.57
A66: P8131 | B66: Pedagogo sênior | C66: mês | D66: 5794.12 | E66: 0.7969 | F66: 4617.34 | G66: 0.1168 | H66: 677.01 | I66: 0.0045 | J66: 26.03 | K66: 0 | L66: 0 | M66: 0 | N66: 0 | O66: 0.0007 | P66: 4.22 | Q66: 0 | R66: 0 | S66: 0.052 | T66: 301.42 | U66: 0.0017 | V66: 9.98 | W66: 0.9727 | X66: 5635.99 | Y66: 11430.11
A67: P8135 | B67: Secretária | C67: mês | D67: 2335.81 | E67: 0.7972 | F67: 1862.11 | G67: 0.2898 | H67: 677.01 | I67: 0 | J67: 0 | K67: 0 | L67: 0 | M67: 0.0338 | N67: 78.88 | O67: 0.0013 | P67: 3.05 | Q67: 0 | R67: 0 | S67: 0.129 | T67: 301.42 | U67: 0.0043 | V67: 9.98 | W67: 1.2554 | X67: 2932.45 | Y67: 5268.26
A68: P8139 | B68: Sondador | C68: mês | D68: 1843.72 | E68: 0.7967 | F68: 1468.89 | G68: 0.3672 | H68: 677.01 | I68: 0.0158 | J68: 29.18 | K68: 0 | L68: 0 | M68: 0.0588 | N68: 108.41 | O68: 0.0022 | P68: 4.01 | Q68: 0 | R68: 0 | S68: 0.1635 | T68: 301.42 | U68: 0.0054 | V68: 9.98 | W68: 1.4096 | X68: 2598.9 | Y68: 4442.62
A69: P8143 | B69: Técnico ambiental | C69: mês | D69: 2751.31 | E69: 0.7985 | F69: 2196.92 | G69: 0.2461 | H69: 677.01 | I69: 0.0106 | J69: 29.18 | K69: 0 | L69: 0 | M69: 0.0196 | N69: 53.95 | O69: 0.0015 | P69: 4.05 | Q69: 0 | R69: 0 | S69: 0.1096 | T69: 301.42 | U69: 0.0036 | V69: 9.98 | W69: 1.1894 | X69: 3272.51 | Y69: 6023.83
A70: P8147 | B70: Técnico de obras | C70: mês | D70: 3091.07 | E70: 0.7968 | F70: 2462.97 | G70: 0.219 | H70: 677.01 | I70: 0.0094 | J70: 29.18 | K70: 0 | L70: 0 | M70: 0.0109 | N70: 33.57 | O70: 0.0012 | P70: 3.84 | Q70: 0 | R70: 0 | S70: 0.0975 | T70: 301.42 | U70: 0.0032 | V70: 9.98 | W70: 1.1381 | X70: 3517.96 | Y70: 6609.04
A71: P8151 | B71: Técnico de segurança do trabalho | C71: mês | D71: 4293.4 | E71: 0.8018 | F71: 3442.45 | G71: 0.1577 | H71: 677.01 | I71: 0.0068 | J71: 29.18 | K71: 0 | L71: 0 | M71: 0 | N71: 0 | O71: 0.0011 | P71: 4.61 | Q71: 0 | R71: 0 | S71: 0.0702 | T71: 301.42 | U71: 0.0023 | V71: 9.98 | W71: 1.0399 | X71: 4464.64 | Y71: 8758.04
A72: P8155 | B72: Técnico em geoprocessamento | C72: mês | D72: 2522.76 | E72: 0.7945 | F72: 2004.33 | G72: 0.2684 | H72: 677.01 | I72: 0.0116 | J72: 29.18 | K72: 0 | L72: 0 | M72: 0.0268 | N72: 67.67 | O72: 0.0013 | P72: 3.27 | Q72: 0 | R72: 0 | S72: 0.1195 | T72: 301.42 | U72: 0.004 | V72: 9.98 | W72: 1.226 | X72: 3092.86 | Y72: 5615.61
A73: P8159 | B73: Técnico em informática - programador | C73: mês | D73: 3610.93 | E73: 0.7965 | F73: 2876.1 | G73: 0.1875 | H73: 677.01 | I73: 0 | J73: 0 | K73: 0 | L73: 0 | M73: 0.0007 | N73: 2.38 | O73: 0.0011 | P73: 3.86 | Q73: 0 | R73: 0 | S73: 0.0835 | T73: 301.42 | U73: 0.0028 | V73: 9.98 | W73: 1.072 | X73: 3870.75 | Y73: 7481.67
A74: P8163 | B74: Topógrafo | C74: mês | D74: 2323.3 | E74: 0.7994 | F74: 1857.25 | G74: 0.2914 | H74: 677.01 | I74: 0.0126 | J74: 29.18 | K74: 0 | L74: 0 | M74: 0.0343 | N74: 79.63 | O74: 0.0019 | P74: 4.48 | Q74: 0 | R74: 0 | S74: 0.1297 | T74: 301.42 | U74: 0.0043 | V74: 9.98 | W74: 1.2736 | X74: 2958.95 | Y74: 5282.25
A75: P8167 | B75: Arquivista júnior | C75: mês | D75: 2018.26 | E75: 0.7981 | F75: 1610.77 | G75: 0.3354 | H75: 677.01 | I75: 0 | J75: 0 | K75: 0 | L75: 0 | M75: 0.0485 | N75: 97.94 | O75: 0.0017 | P75: 3.48 | Q75: 0 | R75: 0 | S75: 0.1493 | T75: 301.42 | U75: 0.0049 | V75: 9.98 | W75: 1.3381 | X75: 2700.6 | Y75: 4718.86
A76: P8168 | B76: Arquivista pleno | C76: mês | D76: 2691.02 | E76: 0.7981 | F76: 2147.7 | G76: 0.2516 | H76: 677.01 | I76: 0 | J76: 0 | K76: 0 | L76: 0 | M76: 0.0214 | N76: 57.57 | O76: 0.0013 | P76: 3.48 | Q76: 0 | R76: 0 | S76: 0.112 | T76: 301.42 | U76: 0.0037 | V76: 9.98 | W76: 1.1881 | X76: 3197.16 | Y76: 5888.17
A77: P8169 | B77: Arquivista sênior | C77: mês | D77: 4219.38 | E77: 0.7981 | F77: 3367.49 | G77: 0.1605 | H77: 677.01 | I77: 0 | J77: 0 | K77: 0 | L77: 0 | M77: 0 | N77: 0 | O77: 0.0008 | P77: 3.48 | Q77: 0 | R77: 0 | S77: 0.0714 | T77: 301.42 | U77: 0.0024 | V77: 9.98 | W77: 1.0332 | X77: 4359.37 | Y77: 8578.76
A78: P8173 | B78: Administrador júnior | C78: mês | D78: 3097.97 | E78: 0.7961 | F78: 2466.29 | G78: 0.2185 | H78: 677.01 | I78: 0 | J78: 0 | K78: 0 | L78: 0 | M78: 0.0107 | N78: 33.15 | O78: 0.001 | P78: 3.11 | Q78: 0 | R78: 0 | S78: 0.0973 | T78: 301.42 | U78: 0.0032 | V78: 9.98 | W78: 1.1269 | X78: 3490.96 | Y78: 6588.93
A79: P8174 | B79: Administrador pleno | C79: mês | D79: 4130.62 | E79: 0.7961 | F79: 3288.39 | G79: 0.1639 | H79: 677.01 | I79: 0 | J79: 0 | K79: 0 | L79: 0 | M79: 0 | N79: 0 | O79: 0.0008 | P79: 3.11 | Q79: 0 | R79: 0 | S79: 0.073 | T79: 301.42 | U79: 0.0024 | V79: 9.98 | W79: 1.0361 | X79: 4279.91 | Y79: 8410.53
A80: P8175 | B80: Administrador sênior | C80: mês | D80: 7233.66 | E80: 0.7961 | F80: 5758.72 | G80: 0.0936 | H80: 677.01 | I80: 0 | J80: 0 | K80: 0 | L80: 0 | M80: 0 | N80: 0 | O80: 0.0004 | P80: 3.11 | Q80: 0 | R80: 0 | S80: 0.0417 | T80: 301.42 | U80: 0.0014 | V80: 9.98 | W80: 0.9332 | X80: 6750.24 | Y80: 13983.9
A81: P8180 | B81: Engenheiro agrimensor júnior | C81: mês | D81: 11067 | E81: 0.7933 | F81: 8779.45 | G81: 0.0612 | H81: 677.01 | I81: 0.0024 | J81: 26.03 | K81: 0 | L81: 0 | M81: 0 | N81: 0 | O81: 0.0002 | P81: 2.71 | Q81: 0 | R81: 0 | S81: 0.0272 | T81: 301.42 | U81: 0.0009 | V81: 9.98 | W81: 0.8852 | X81: 9796.59 | Y81: 20863.59
A82: P8181 | B82: Engenheiro agrimensor pleno | C82: mês | D82: 11198.11 | E82: 0.7933 | F82: 8883.46 | G82: 0.0605 | H82: 677.01 | I82: 0.0023 | J82: 26.03 | K82: 0 | L82: 0 | M82: 0 | N82: 0 | O82: 0.0002 | P82: 2.71 | Q82: 0 | R82: 0 | S82: 0.0269 | T82: 301.42 | U82: 0.0009 | V82: 9.98 | W82: 0.8841 | X82: 9900.6 | Y82: 21098.71
A83: P8182 | B83: Engenheiro agrimensor sênior | C83: mês | D83: 12047.23 | E83: 0.7933 | F83: 9557.07 | G83: 0.0562 | H83: 677.01 | I83: 0.0022 | J83: 26.03 | K83: 0 | L83: 0 | M83: 0 | N83: 0 | O83: 0.0002 | P83: 2.71 | Q83: 0 | R83: 0 | S83: 0.025 | T83: 301.42 | U83: 0.0008 | V83: 9.98 | W83: 0.8777 | X83: 10574.21 | Y83: 22621.44
A84: P8183 | B84: Geógrafo júnior | C84: mês | D84: 3351.22 | E84: 0.7943 | F84: 2661.87 | G84: 0.202 | H84: 677.01 | I84: 0.0078 | J84: 26.03 | K84: 0 | L84: 0 | M84: 0.0054 | N84: 17.96 | O84: 0.0008 | P84: 2.71 | Q84: 0 | R84: 0 | S84: 0.0899 | T84: 301.42 | U84: 0.003 | V84: 9.98 | W84: 1.1032 | X84: 3696.98 | Y84: 7048.19
A85: P8184 | B85: Geógrafo pleno | C85: mês | D85: 4468.29 | E85: 0.7943 | F85: 3549.16 | G85: 0.1515 | H85: 677.01 | I85: 0.0058 | J85: 26.03 | K85: 0 | L85: 0 | M85: 0 | N85: 0 | O85: 0.0006 | P85: 2.71 | Q85: 0 | R85: 0 | S85: 0.0675 | T85: 301.42 | U85: 0.0022 | V85: 9.98 | W85: 1.0219 | X85: 4566.31 | Y85: 9034.6
A86: P8185 | B86: Geógrafo sênior | C86: mês | D86: 8514.33 | E86: 0.7943 | F86: 6762.93 | G86: 0.0795 | H86: 677.01 | I86: 0.0031 | J86: 26.03 | K86: 0 | L86: 0 | M86: 0 | N86: 0 | O86: 0.0003 | P86: 2.71 | Q86: 0 | R86: 0 | S86: 0.0354 | T86: 301.42 | U86: 0.0012 | V86: 9.98 | W86: 0.9138 | X86: 7780.08 | Y86: 16294.41
A87: P8186 | B87: Antropólogo júnior | C87: mês | D87: 3165.46 | E87: 0.8072 | F87: 2555.16 | G87: 0.2139 | H87: 677.01 | I87: 0.0082 | J87: 26.03 | K87: 0 | L87: 0 | M87: 0.0092 | N87: 29.1 | O87: 0.0015 | P87: 4.66 | Q87: 0 | R87: 0 | S87: 0.0952 | T87: 301.42 | U87: 0.0032 | V87: 9.98 | W87: 1.1383 | X87: 3603.36 | Y87: 6768.82
A88: P8187 | B88: Antropólogo pleno | C88: mês | D88: 4220.61 | E88: 0.8072 | F88: 3406.88 | G88: 0.1604 | H88: 677.01 | I88: 0.0062 | J88: 26.03 | K88: 0 | L88: 0 | M88: 0 | N88: 0 | O88: 0.0011 | P88: 4.66 | Q88: 0 | R88: 0 | S88: 0.0714 | T88: 301.42 | U88: 0.0024 | V88: 9.98 | W88: 1.0487 | X88: 4425.97 | Y88: 8646.58
A89: P8188 | B89: Antropólogo sênior | C89: mês | D89: 6078.95 | E89: 0.8072 | F89: 4906.93 | G89: 0.1114 | H89: 677.01 | I89: 0.0043 | J89: 26.03 | K89: 0 | L89: 0 | M89: 0 | N89: 0 | O89: 0.0008 | P89: 4.66 | Q89: 0 | R89: 0 | S89: 0.0496 | T89: 301.42 | U89: 0.0016 | V89: 9.98 | W89: 0.9748 | X89: 5926.02 | Y89: 12004.97
A90: P8189 | B90: Arqueólogo júnior | C90: mês | D90: 3085.16 | E90: 0.8271 | F90: 2551.74 | G90: 0.2194 | H90: 677.01 | I90: 0.0084 | J90: 26.03 | K90: 0 | L90: 0 | M90: 0.011 | N90: 33.92 | O90: 0.002 | P90: 6.32 | Q90: 0 | R90: 0 | S90: 0.0977 | T90: 301.42 | U90: 0.0032 | V90: 9.98 | W90: 1.169 | X90: 3606.42 | Y90: 6691.58
A91: P8190 | B91: Arqueólogo pleno | C91: mês | D91: 4113.55 | E91: 0.8271 | F91: 3402.32 | G91: 0.1646 | H91: 677.01 | I91: 0.0063 | J91: 26.03 | K91: 0 | L91: 0 | M91: 0 | N91: 0 | O91: 0.0015 | P91: 6.32 | Q91: 0 | R91: 0 | S91: 0.0733 | T91: 301.42 | U91: 0.0024 | V91: 9.98 | W91: 1.0752 | X91: 4423.07 | Y91: 8536.62
A92: P8191 | B92: Arqueólogo sênior | C92: mês | D92: 5832.14 | E92: 0.8271 | F92: 4823.76 | G92: 0.1161 | H92: 677.01 | I92: 0.0045 | J92: 26.03 | K92: 0 | L92: 0 | M92: 0 | N92: 0 | O92: 0.0011 | P92: 6.32 | Q92: 0 | R92: 0 | S92: 0.0517 | T92: 301.42 | U92: 0.0017 | V92: 9.98 | W92: 1.0021 | X92: 5844.52 | Y92: 11676.66
A93: P8192 | B93: Historiador júnior | C93: mês | D93: 3325.64 | E93: 0.7967 | F93: 2649.54 | G93: 0.2036 | H93: 677.01 | I93: 0.0078 | J93: 26.03 | K93: 0 | L93: 0 | M93: 0.0059 | N93: 19.49 | O93: 0.0011 | P93: 3.69 | Q93: 0 | R93: 0 | S93: 0.0906 | T93: 301.42 | U93: 0.003 | V93: 9.98 | W93: 1.1087 | X93: 3687.15 | Y93: 7012.79
A94: P8193 | B94: Historiador pleno | C94: mês | D94: 4434.18 | E94: 0.7967 | F94: 3532.71 | G94: 0.1527 | H94: 677.01 | I94: 0.0059 | J94: 26.03 | K94: 0 | L94: 0 | M94: 0 | N94: 0 | O94: 0.0008 | P94: 3.69 | Q94: 0 | R94: 0 | S94: 0.068 | T94: 301.42 | U94: 0.0023 | V94: 9.98 | W94: 1.0263 | X94: 4550.84 | Y94: 8985.02
A95: P8194 | B95: Historiador sênior | C95: mês | D95: 7403.84 | E95: 0.7967 | F95: 5898.64 | G95: 0.0914 | H95: 677.01 | I95: 0.0035 | J95: 26.03 | K95: 0 | L95: 0 | M95: 0 | N95: 0 | O95: 0.0005 | P95: 3.69 | Q95: 0 | R95: 0 | S95: 0.0407 | T95: 301.42 | U95: 0.0013 | V95: 9.98 | W95: 0.9342 | X95: 6916.76 | Y95: 14320.6
A96: P8195 | B96: Paleontólogo júnior | C96: mês | D96: 3141.84 | E96: 0.7981 | F96: 2507.51 | G96: 0.2155 | H96: 677.01 | I96: 0.0083 | J96: 26.03 | K96: 0 | L96: 0 | M96: 0.0097 | N96: 30.52 | O96: 0.0012 | P96: 3.91 | Q96: 0 | R96: 0 | S96: 0.0959 | T96: 301.42 | U96: 0.0032 | V96: 9.98 | W96: 1.1319 | X96: 3556.37 | Y96: 6698.22
A97: P8196 | B97: Paleontólogo pleno | C97: mês | D97: 4189.13 | E97: 0.7981 | F97: 3343.34 | G97: 0.1616 | H97: 677.01 | I97: 0.0062 | J97: 26.03 | K97: 0 | L97: 0 | M97: 0 | N97: 0 | O97: 0.0009 | P97: 3.91 | Q97: 0 | R97: 0 | S97: 0.072 | T97: 301.42 | U97: 0.0024 | V97: 9.98 | W97: 1.0412 | X97: 4361.69 | Y97: 8550.81
A98: P8197 | B98: Paleontólogo sênior | C98: mês | D98: 6069.84 | E98: 0.7981 | F98: 4844.34 | G98: 0.1115 | H98: 677.01 | I98: 0.0043 | J98: 26.03 | K98: 0 | L98: 0 | M98: 0 | N98: 0 | O98: 0.0006 | P98: 3.91 | Q98: 0 | R98: 0 | S98: 0.0497 | T98: 301.42 | U98: 0.0016 | V98: 9.98 | W98: 0.9659 | X98: 5862.69 | Y98: 11932.53
A99: P8198 | B99: Sociólogo júnior | C99: mês | D99: 3782.76 | E99: 0.8191 | F99: 3098.46 | G99: 0.179 | H99: 677.01 | I99: 0.0069 | J99: 26.03 | K99: 0 | L99: 0 | M99: 0 | N99: 0 | O99: 0.0015 | P99: 5.55 | Q99: 0 | R99: 0 | S99: 0.0797 | T99: 301.42 | U99: 0.0026 | V99: 9.98 | W99: 1.0887 | X99: 4118.44 | Y99: 7901.19
A100: P8199 | B100: Sociólogo pleno | C100: mês | D100: 5043.67 | E100: 0.8191 | F100: 4131.27 | G100: 0.1342 | H100: 677.01 | I100: 0.0052 | J100: 26.03 | K100: 0 | L100: 0 | M100: 0 | N100: 0 | O100: 0.0011 | P100: 5.55 | Q100: 0 | R100: 0 | S100: 0.0598 | T100: 301.42 | U100: 0.002 | V100: 9.98 | W100: 1.0213 | X100: 5151.26 | Y100: 10194.93
A101: P8200 | B101: Sociólogo sênior | C101: mês | D101: 7915.13 | E101: 0.8191 | F101: 6483.28 | G101: 0.0855 | H101: 677.01 | I101: 0.0033 | J101: 26.03 | K101: 0 | L101: 0 | M101: 0 | N101: 0 | O101: 0.0007 | P101: 5.55 | Q101: 0 | R101: 0 | S101: 0.0381 | T101: 301.42 | U101: 0.0013 | V101: 9.98 | W101: 0.948 | X101: 7503.26 | Y101: 15418.39
A102: Fonte: FGV IBRE

Sheet SINAPI_ES_RN (hidden)
